Workbook

Sheet Inicio_Duopolio
A25: Descargue la versión Kindle
K34: Miguel Cervantes Jiménez

Sheet Du_Cournot (hidden)
A1: DUOPOLIO
A2: MODELO DE COURNOT
B5: Parámetros función inversa de demanda
B6: b0 | D6: 200.0
B7: b1 | D7: -2.0
B8: Inserte los datos correspondientes
B9: Producción de equilibrio
B10: Empresa 1 | D10: =Oculto_Du!B9 -> 33.3
B11: Empresa 2 | D11: =Oculto_Du!B10 -> 33.3
B12: Industria | D12: =Oculto_Du!B11 -> 66.7
B14: Precio | D14: =Oculto_Du!B13 -> 66.7
B16: Beneficio 1 | D16: =Oculto_Du!B14 -> 2,222.2
B17: Beneficio 2 | D17: =Oculto_Du!B14 -> 2,222.2
B28: Títulos
B29: Resultados
B30: Insertar datos
B31: Valores de equilibrio

Sheet Du_Stackelberg (hidden)
A1: DUOPOLIO
A2: MODELO DE STACKELBERG
B5: Parámetros función inversa de la demanda
B6: b0 | D6: 20.0
B7: b1 | D7: -2.0
B8: Inserte los datos correspondientes
B9: Producción de equilibrio
B10: Empresa 1 | D10: =Oculto_Du!BL9 -> 5.0
B11: Empresa 2 | D11: =Oculto_Du!BL10 -> 2.5
B12: Industria | D12: =Oculto_Du!BL11 -> 7.5
B14: Precio | D14: =Oculto_Du!BL13 -> 5.0
B16: Beneficio 1 | D16: =Oculto_Du!B21 -> 2,500.0
B17: Beneficio 2 | D17: =Oculto_Du!B22 -> 1,250.0
B28: Títulos
B29: Resultados
B30: Insertar datos
B31: Valores de equilibrio

Sheet Du_Cártel (hidden)
A1: DUOPOLIO
A2: CÁRTEL
B5: Parámetros función inversa de demanda
B6: b0 | D6: 40.0
B7: b1 | D7: -2.0
B8: d | D8: 0.5
B9: Inserte los datos correspondientes
B10: Producción de equilibrio
B11: Empresa 1 | D11: =Oculto_Du!CM9 -> 5.0
B12: Empresa 2 | D12: =Oculto_Du!CM10 -> 5.0
B13: Industria | D13: =Oculto_Du!CM11 -> 10.0
B15: Precio | D15: =Oculto_Du!CM12 -> 20.0
B17: Beneficio 1 | D17: =Oculto_Du!CM13 -> 100.0
B18: Beneficio 2 | D18: =Oculto_Du!CM14 -> 100.0
B29: Títulos
B30: Resultados
B31: Insertar datos
B32: Valores de equilibrio

Sheet Bertrand (hidden)
A1: DUOPOLIO
A2: BERTRAND
B5: Parámetros función inversa de demanda
B6: b0 | D6: 200.0
B7: b1 | D7: -2.0
B8: Inserte los datos correspondientes
B9: Producción de equilibrio
B10: Empresa 1 | D10: =Oculto_Du!AB9 -> 50.0
B11: Empresa 2 | D11: =Oculto_Du!AB10 -> 50.0
B12: Industria | D12: =Oculto_Du!AB11 -> 100.0
B14: Precio | D14: =Oculto_Du!AB13 -> 0.0
B16: Beneficio 1 | D16: =Oculto_Du!AB14 -> 0.0
B17: Beneficio 2 | D17: =Oculto_Du!AB15 -> 0.0
B28: Títulos
B29: Resultados
B30: Insertar datos
B31: Valores de equilibrio

Sheet Du_Equilibrios (hidden)
A1: DUOPOLIO
A2: EQUILIBRIOS
B4: Parámetros función inversa de demanda
B5: b0 | D5: 300.0
B6: b1 | D6: -5.0
B7: Inserte los datos correspondientes
B9: Producción de equilibrio
C10: Cournot | D10: Stackelberg | E10: Cártel | F10: Bertrand
B11: Empresa 1 | C11: =Oculto_Du!EB15 -> 20.0 | D11: =Oculto_Du!EC15 -> 30.0 | E11: =Oculto_Du!ED15 -> 15.0 | F11: =Oculto_Du!EE15 -> 30.0
B12: Empresa 2 | C12: =Oculto_Du!EB16 -> 20.0 | D12: =Oculto_Du!EC16 -> 15.0 | E12: =Oculto_Du!ED16 -> 15.0 | F12: =Oculto_Du!EE16 -> 30.0
B13: Industria | C13: =Oculto_Du!EB17 -> 40.0 | D13: =Oculto_Du!EC17 -> 45.0 | E13: =Oculto_Du!ED17 -> 30.0 | F13: =Oculto_Du!EE17 -> 60.0
B15: Precio | C15: =Oculto_Du!EB19 -> 100.0 | D15: =Oculto_Du!EC19 -> 75.0 | E15: =Oculto_Du!ED19 -> 150.0 | F15: =Oculto_Du!EE19 -> 0.0
B17: Beneficio 1 | C17: =C15*C11 -> 2,000.0 | D17: =D15*D11 -> 2,250.0 | E17: =E15*E11 -> 2,250.0 | F17: =F15*F11 -> 0.0
B18: Beneficio 2 | C18: =C15*C12 -> 2,000.0 | D18: =D15*D12 -> 1,125.0 | E18: =E15*E12 -> 2,250.0 | F18: =F15*F12 -> 0.0
B28: Títulos
B29: Resultados
B30: Insertar datos
B31: Valores de equilibrio

Sheet Du_Equilibrios_costos (hidden)
A1: DUOPOLIO
A2: EQUILIBRIOS CON ESTRUCTURA DIFERENCIADA DE COSTOS
B5: Parámetros
B6: Función inversa de demanda | C6: b0 | D6: 600.0 | E6: Reparto del cártel | F6: d | G6: 0.5
C7: b1 | D7: -5.0 | F7: 1-d | G7: =1-G6 -> 0.5
B8: Función de costos | C8: a | D8: 0.0
C9: b | D9: 0.0
C10: c | D10: 0.0
C11: d | D11: 0.0
C12: e | D12: 0.0
C13: f | D13: 0.0
B14: Inserte los datos correspondientes
B16: Producción de equilibrio
C17: Cournot | D17: Stackelberg | E17: Cártel | F17: Bertrand | G17: Líder precio
B18: Empresa 1 | C18: =Oculto_Du!GC15 -> 40.0 | D18: =Oculto_Du!GD15 -> 60.0 | E18: =Oculto_Du!GE15 -> 30.0 | F18: =Oculto_Du!GF15 -> 60.0 | G18: =Oculto_Du!GG15 -> 
B19: Empresa 2 | C19: =Oculto_Du!GC16 -> 40.0 | D19: =Oculto_Du!GD16 -> 30.0 | E19: =Oculto_Du!GE16 -> 30.0 | F19: =Oculto_Du!GF16 -> 60.0 | G19: =Oculto_Du!GG16 -> 
B20: Industria | C20: =Oculto_Du!GC17 -> 80.0 | D20: =Oculto_Du!GD17 -> 90.0 | E20: =Oculto_Du!GE17 -> 60.0 | F20: =Oculto_Du!GF17 -> 120.0 | G20: =Oculto_Du!GG17 -> 
B22: Precio | C22: =Oculto_Du!GC19 -> 200.0 | D22: =Oculto_Du!GD19 -> 150.0 | E22: =Oculto_Du!GE19 -> 300.0 | F22: =Oculto_Du!GF19 -> 0.0 | G22: =Oculto_Du!GG19 -> 
B35: Títulos
B36: Resultados
B37: Insertar datos
B38: Valores de equilibrio | F38: 1.618

Sheet Du_Isobe (hidden)
A1: DUOPOLIO
A2: CURVAS DE ISOBENEFICIO
B5: Parámetros función inversa de demanda
B6: b0 | D6: 10.0
B7: b1 | D7: -1.0
B8: Beneficio | D8: 6.3
B9: Inserte los datos correspondientes
B10: Producción de equilibrio
C11: Cournot | D11: Stackelberg | E11: Cártel
B12: Empresa 1 | C12: =Oculto_Du!B47 -> 3.3 | D12: =Oculto_Du!B55 -> 5.0 | E12: =Oculto_Du!B64 -> 2.5
B13: Empresa 2 | C13: =Oculto_Du!B48 -> 3.3 | D13: =Oculto_Du!B56 -> 2.5 | E13: =Oculto_Du!B65 -> 2.5
B14: Industria | C14: =Oculto_Du!B49 -> 6.7 | D14: =Oculto_Du!B57 -> 7.5 | E14: =Oculto_Du!B66 -> 5.0
B15: Precio | C15: =Oculto_Du!B51 -> 3.3 | D15: =Oculto_Du!B58 -> 2.5 | E15: =Oculto_Du!B67 -> 5.0
B16: Beneficio | C16: =Oculto_Du!B52 -> 11.1 | D16: =Oculto_Du!B59 -> 12.5 | E16: =Oculto_Du!B68 -> 12.5
D17: =Oculto_Du!B60 -> 6.3
B29: Títulos
B30: Resultados
B31: Insertar datos
B32: Valores de equilibrio

Sheet Du_Cournot_pd (hidden)
A1: DUOPOLIO
A2: MODELO DE COURNOT PRODUCTOS DIFERENCIADOS
B5: Parámetros funciones inversas de las demandas
B6: b0 | C6: 20.0 | D6: b0' | E6: =C6 -> 20.0
B7: b1 | C7: -2.0 | D7: b2 | E7: =C7 -> -2.0
B8: g | C8: -2.0 | D8: g | E8: =C8 -> -2.0
B9: Inserte los datos correspondientes
B10: índice de diferenciación | D10: =Oculto_Du!C109 -> 1.0
B12: Producción de equilibrio
B13: Empresa 1 | D13: =Oculto_Du!B112 -> 3.3
B14: Empresa 2 | D14: =Oculto_Du!B113 -> 3.3
B15: Industria | D15: =Oculto_Du!B114 -> 6.7
B17: Precios de equilibrio
B18: Precio E1 | D18: =Oculto_Du!B116 -> 6.7
B19: Precio E2 | D19: =Oculto_Du!B117 -> 6.7
B21: Beneficio E1 | D21: =Oculto_Du!B119 -> 22.2
B22: Beneficio E2 | D22: =Oculto_Du!B120 -> 22.2
B29: Títulos
B30: Resultados
B31: Insertar datos
B32: Valores de equilibrio

Sheet Oculto_Du (hidden)
A1: COURNOT | AA1: BERTRAND | BK1: STACKELBERG | CL1: CÁRTEL | DM1: LIDER EN ELECCIÒN DE PRECIOS | EA1: To2 | EH1: COURNOT | EP1: STACKELBERG | EX1: CÁRTEL | FB1: Isobeneficio | FO1: ISOBENEFICIO | GB1: To2 con costos | GI1: COURNOT | GS1: STACKELBERG | HA1: CÁRTEL | HE1: BERTRAND | HI1: Isobeneficio | HV1: ISOBENEFICIO
GE2: =Du_Equilibrios_costos!G6 -> 0.5 | GF2: 0.5 | GK2: X | GL2: Y | GM2: X | GN2: Y
F3: EMPRESA 1 | H3: EMPRESA 2 | L3: E2CR3 | N3: E1CR3 | P3: E2ISO1 | T3: E2ISO2 | V3: E1ISO2 | AF3: EMPRESA 1 | AH3: EMPRESA 2 | AN3: E2CR3 | AP3: E1CR3 | AR3: E2ISO1 | AV3: E2ISO2 | AX3: E1ISO2 | BP3: EMPRESA 1 | BR3: EMPRESA 2 | BX3: E2CR3 | BZ3: E1CR3 | CB3: E2ISO1 | CF3: E2ISO2 | CH3: E1ISO2 | CQ3: EMPRESA 1 | CS3: EMPRESA 2 | CY3: E2CR3 | DA3: E1CR3 | DC3: E2ISO1 | DG3: E2ISO2 | DI3: E1ISO2 | DR3: EMPRESA 1 | DT3: EMPRESA 2 | EJ3: EMPRESA 1 | EL3: EMPRESA 2 | EP3: EMPRESA 1 | ER3: EMPRESA 2 | EZ3: Curva de reacción imaginaria | FB3: Cournot | FF3: Stackelberg | FJ3: Cartel | FR3: PONDERADORES | GE3: =Du_Equilibrios_costos!G7 -> 0.5 | GF3: 0.5 | GK3: EMPRESA 1 | GM3: EMPRESA 2 | GS3: EMPRESA 1 | GU3: EMPRESA 2 | HC3: Curva de reacción imaginaria | HI3: Cournot | HM3: Stackelberg | HQ3: Cartel | HY3: PONDERADORES
D4: Ponderador 1 | E4: Ponderador 2 | F4: X | G4: Y | H4: X | I4: Y | J4: X1line | K4: Y1line | L4: X | M4: Y | N4: X | O4: Y | P4: X | Q4: Y | R4: X | S4: Y | T4: X | U4: Y | V4: X | W4: Y | AD4: Ponderador 1 | AE4: Ponderador 2 | AF4: X | AG4: Y | AH4: X | AI4: Y | AJ4: X1line | AK4: Y1line | AL4: X2line | AM4: Y2line | AN4: X | AO4: Y | AP4: X | AQ4: Y | AR4: X | AS4: Y | AT4: X | AU4: Y | AV4: X | AW4: Y | AX4: X | AY4: Y | BN4: Ponderador 1 | BO4: Ponderador 2 | BP4: X | BQ4: Y | BR4: X | BS4: Y | BT4: X1line | BU4: Y1line | BV4: X2line | BW4: Y2line | BX4: X | BY4: Y | BZ4: X | CA4: Y | CB4: X | CC4: Y | CD4: X | CE4: Y | CF4: X | CG4: Y | CH4: X | CI4: Y | CO4: Ponderador 1 | CP4: Ponderador 2 | CQ4: X | CR4: Y | CS4: X | CT4: Y | CU4: X1line | CV4: Y1line | CY4: X | CZ4: Y | DA4: X | DB4: Y | DC4: X | DD4: Y | DE4: X | DF4: Y | DG4: X | DH4: Y | DI4: X | DJ4: Y | DP4: Ponderador 1 | DQ4: Ponderador 2 | DR4: X | DS4: Y | DT4: X | DU4: Y | DV4: X1line | DW4: Y1line | DX4: X2line | DY4: Y2line | EB4: Cournot | EC4: Stackelberg | ED4: Cártel | EE4: Bertrand | EF4: lider precio | EH4: Ponderador 1 | EI4: Ponderador 2 | EJ4: X | EK4: Y | EL4: X | EM4: Y | EN4: X1line | EO4: Y1line | EP4: X | EQ4: Y | ER4: X | ES4: Y | ET4: X1line | EU4: Y1line | EV4: X2line | EW4: Y2line | EX4: X1line | EY4: Y1line | FB4: X | FC4: Y | FD4: X | FE4: Y | FF4: X | FG4: Y | FH4: X | FI4: Y | FJ4: X | FK4: Y | FL4: X | FM4: Y | FO4: ISOBEN_E2 | FP4: ISOBEN_E1 | FQ4: X | FR4: =EB15 -> 20 | GC4: COURNOT | GD4: STACKELGERG | GE4: CÁRTEL | GF4: BERTRAND | GG4: LLIDER PRECIO | GI4: Ponderador 1 | GJ4: Ponderador 2 | GK4: y1e1 | GL4: y2e1 | GM4: y1e2 | GN4: y2e2 | GO4: X1line | GQ4: Y1line | GS4: X | GT4: Y | GU4: X | GV4: Y | GW4: X1line | GX4: Y1line | GY4: X2line | GZ4: Y2line | HA4: X1line | HB4: Y1line | HC4: X2line | HD4: Y2line | HE4: X1line | HF4: Y1line | HG4: X2line | HH4: Y2line | HI4: X | HJ4: Y | HK4: X | HL4: Y | HM4: X | HN4: Y | HO4: X | HP4: Y | HQ4: X | HR4: Y | HS4: X | HT4: Y | HV4: ISOBEN_E2 | HW4: ISOBEN_E1 | HX4: X | HY4: =GC15 -> 40
A5: a | B5: =Du_Cournot!$D$6 -> 200.0 | D5: 0 | E5: =1-D5 -> 1.00 | F5: =$B$5/(2*$B$6*-1)*D5 -> 0 | G5: =($B$5/$B$6)*-E5 -> 100.00 | H5: =$B$5/($B$6*-1)*D5 -> 0 | I5: =$B$5/(2*$B$6*-1)*E5 -> 50.00 | J5: =$B$9*D5 -> 0 | K5: =$B$9 -> 33.33 | L5: =H5 -> 0 | M5: =(-$B$14+($B$5*L5)+(($B$6)*(L5^2)))/((-$B$6)*L5) ->  | N5: =(-$B$14+($B$5*O5)+(($B$6)*(O5^2)))/((-$B$6)*O5) -> (11.11) | O5: =G5 -> 100.00 | P5: =L5 -> 0 | Q5: =(-$B$21+($B$5*P5)+(($B$6)*(P5^2)))/((-$B$6)*P5) ->  | R5: =(-$B$22+($B$5*S5)+(($B$6)*(S5^2)))/((-$B$6)*S5) -> (6.25) | S5: =O5 -> 100.00 | T5: =P5 -> 0 | U5: =(-$B$30+($B$5*T5)+(($B$6)*(T5^2)))/((-$B$6)*T5) ->  | V5: =(-$B$30+($B$5*W5)+(($B$6)*(W5^2)))/((-$B$6)*W5) -> (12.50) | W5: =O5 -> 100.00 | AA5: a | AB5: =Bertrand!D6 -> 200.0 | AD5: 0 | AE5: =1-AD5 -> 1.00 | AF5: =$AB$5/($AB$6*-1)*AD5 -> 0 | AG5: =($AB$5/(2*$AB$6)*-1)*AE5 -> 50.00 | AH5: =$AB$5/(2*$AB$6*-1)*AD5 -> 0 | AI5: =$AB$5/($AB$6*-1)*AE5 -> 100.00 | AJ5: =$AB$9 -> 50.00 | AK5: =$AB$10*AD5 -> 0 | AL5: =$AB$9*AD5 -> 0 | AM5: =$AB$10 -> 50.00 | AN5: =AF5 -> 0.00 | AO5: =(-$AB$14+($AB$5*AN5)+(($AB$6)*(AN5^2)))/((-$AB$6)*AN5) ->  | AP5: =(-$AB$15+($AB$5*AQ5)+(($AB$6)*(AQ5^2)))/((-$AB$6)*AQ5) -> 50.00 | AQ5: =AG5 -> 50.00 | AR5: =AN5 -> 0.00 | AS5: =(-$AB$21+($AB$5*AR5)+(($AB$6)*(AR5^2)))/((-$AB$6)*AR5) ->  | AT5: =(-$AB$21+($AB$5*AU5)+(($AB$6)*(AU5^2)))/((-$AB$6)*AU5) ->  | AU5: =AO5 ->  | AV5: =AR5 -> 0.00 | AW5: =(-$AB$28+($AB$5*AV5)+(($AB$6)*(AV5^2)))/((-$AB$6)*AV5) ->  | AX5: =(-$AB$28+($AB$5*AY5)+(($AB$6)*(AY5^2)))/((-$AB$6)*AY5) -> 45.25 | AY5: =AQ5 -> 50.00 | BK5: a | BL5: =Du_Stackelberg!D6 -> 20.0 | BN5: 0 | BO5: =1-BN5 -> 1.00 | BP5: =$BL$5/(2*$BL$6*-1)*BN5 -> 0 | BQ5: =($BL$5/$BL$6)*-BO5 -> 10.00 | BR5: =$BL$5/($BL$6*-1)*BN5 -> 0 | BS5: =$BL$5/(2*$BL$6*-1)*BO5 -> 5.00 | BT5: =$BL$9 -> 5.00 | BU5: =$BL$10*BN5 -> 0 | BV5: =$BL$9*BN5 -> 0 | BW5: =$BL$10 -> 2.50 | BX5: =BR5 -> 0.00 | BY5: =(-$BL$14+($BL$5*BX5)+(($BL$6)*(BX5^2)))/((-$BL$6)*BX5) ->  | BZ5: =(-$BL$15+($BL$5*CA5)+(($BL$6)*(CA5^2)))/((-$BL$6)*CA5) -> -0.63 | CA5: =BQ5 -> 10.00 | CB5: =BX5 -> 0.00 | CC5: =(-$BL$21+($BL$5*CB5)+(($BL$6)*(CB5^2)))/((-$BL$6)*CB5) ->  | CD5: =(-$BL$21+($BL$5*CE5)+(($BL$6)*(CE5^2)))/((-$BL$6)*CE5) -> -1.11 | CE5: =CA5 -> 10.00 | CF5: =CB5 -> 0.00 | CG5: =(-$BL$28+($BL$5*CF5)+(($BL$6)*(CF5^2)))/((-$BL$6)*CF5) ->  | CH5: =(-$BL$28+($BL$5*CI5)+(($BL$6)*(CI5^2)))/((-$BL$6)*CI5) -> -1.25 | CI5: =CA5 -> 10.00 | CL5: a | CM5: =Du_Cártel!D6 -> 40.0 | CO5: 0 | CP5: =1-CO5 -> 1.00 | CQ5: =$CM$5/(2*$CM$6*-1)*CO5 -> 0 | CR5: =($CM$5/$CM$6)*-CP5 -> 20.00 | CS5: =$CM$5/($CM$6*-1)*CO5 -> 0 | CT5: =$CM$5/(2*$CM$6*-1)*CP5 -> 10.00 | CU5: =$CM$9*CO5 -> 0 | CV5: =$CM$9 -> 5.00 | CW5: =$CM$5/(2*$CM$6*-1)*CO5 -> 0 | CX5: =$CM$5/(2*$CM$6*-1)*CP5 -> 10.00 | CY5: =CS5 -> 0.00 | CZ5: =(-$CM$13+($CM$5*CY5)+(($CM$6)*(CY5^2)))/((-$CM$6)*CY5) ->  | DA5: =(-$CM$13+($CM$5*DB5)+(($CM$6)*(DB5^2)))/((-$CM$6)*DB5) -> -2.50 | DB5: =CR5 -> 20.00 | DC5: =CY5 -> 0.00 | DD5: =(-$CM$22+($CM$5*DC5)+(($CM$6)*(DC5^2)))/((-$CM$6)*DC5) ->  | DE5: =(-$CM$22+($CM$5*DF5)+(($CM$6)*(DF5^2)))/((-$CM$6)*DF5) -> -2.22 | DF5: =DB5 -> 20.00 | DG5: =DC5 -> 0.00 | DH5: =(-$CM$29+($CM$5*DG5)+(($CM$6)*(DG5^2)))/((-$CM$6)*DG5) ->  | DI5: =(-$CM$30+($CM$5*DJ5)+(($CM$6)*(DJ5^2)))/((-$CM$6)*DJ5) -> -1.25 | DJ5: =DB5 -> 20.00 | DM5: a | DN5: =Du_Equilibrios!D5 -> 300.0 | DP5: 0 | DQ5: =1-DP5 -> 1.00 | DR5: =$BL$5/(2*$BL$6*-1)*DP5 -> 0 | DS5: =($BL$5/$BL$6)*-DQ5 -> 10.00 | DT5: =$BL$5/($BL$6*-1)*DP5 -> 0 | DU5: =$BL$5/(2*$BL$6*-1)*DQ5 -> 5.00 | DV5: =$BL$9 -> 5.00 | DW5: =$BL$10*DP5 -> 0 | DX5: =$BL$9*DP5 -> 0 | DY5: =$BL$10 -> 2.50 | EA5: b0 | EB5: =Du_Equilibrios!D5 -> 300.0 | EC5: =EB5 -> 300.0 | ED5: 300.0 | EE5: 300.0 | EF5: 300.0 | EH5: 0 | EI5: =1-EH5 -> 1.00 | EJ5: =$EB$5/(2*$EB$6*-1)*EH5 -> 0 | EK5: =($EB$5/$EB$6)*-EI5 -> 60.00 | EL5: =$EB$5/($EB$6*-1)*EH5 -> 0 | EM5: =$EB$5/(2*$EB$6*-1)*EI5 -> 30.00 | EN5: =$EB$15*EH5 -> 0 | EO5: =$EB$15 -> 20.00 | EP5: =$EC$5/(2*$EC$6*-1)*EH5 -> 0 | EQ5: =($EC$5/$EC$6)*-EI5 -> 60.00 | ER5: =$EC$5/($EC$6*-1)*EH5 -> 0 | ES5: =$EC$5/(2*$EC$6*-1)*EI5 -> 30.00 | ET5: =$EC$15 -> 30.00 | EU5: =$EC$16*EH5 -> 0 | EV5: =$EC$15*EH5 -> 0 | EW5: =$EC$16 -> 15.00 | EX5: =$ED$15*EH5 -> 0 | EY5: =$ED$15 -> 15.00 | EZ5: =$ED$5/(2*$ED$6*-1)*EH5 -> 0 | FA5: =$ED$5/(2*$ED$6*-1)*EI5 -> 30.00 | FB5: =EL5 -> 0 | FC5: =(-$EB$23+($EB$5*FB5)+(($EB$6)*(FB5^2)))/((-$EB$6)*FB5) ->  | FD5: =(-$EB$23+($EC$5*FE5)+(($EC$6)*(FE5^2)))/((-$EC$6)*FE5) -> (6.67) | FE5: =EK5 -> 60.00 | FF5: =FB5 -> 0 | FG5: =(-$EC$21+($EB$5*FF5)+(($EB$6)*(FF5^2)))/((-$EB$6)*FF5) ->  | FH5: =(-$EC$22+($EC$5*FI5)+(($EC$6)*(FI5^2)))/((-$EC$6)*FI5) -> (3.75) | FI5: =FE5 -> 60.00 | FJ5: =FF5 -> 0 | FK5: =(-$ED$21+($EB$5*FJ5)+(($EB$6)*(FJ5^2)))/((-$EB$6)*FJ5) ->  | FL5: =(-$ED$22+($EC$5*FM5)+(($EC$6)*(FM5^2)))/((-$EC$6)*FM5) -> (7.50) | FM5: =FE5 -> 60.00 | FO5: =($EB$21-($EB$5*FQ5)+($EB$6*(FQ5*FQ5)))/(-($EB$6*FQ5)) -> 49 | FP5: =($EB$21-($EB$5*FQ5)+($EB$6*(FQ5*FQ5)))/(-($EB$6*FQ5)) -> 49 | FQ5: =FR4*0.8 -> 16 | FR5: =FQ15-FQ5 -> 4.00 | FS5: =FQ25-FQ15 -> 3.00 | GA5: =GC5 -> 600.0 | GB5: b0 | GC5: =Du_Equilibrios_costos!D6 -> 600.0 | GD5: =GC5 -> 600.0 | GE5: =GD5 -> 600.0 | GF5: =GE5 -> 600.0 | GG5: 600.0 | GI5: 0 | GJ5: =1-GI5 -> 1.00 | GK5: =($GC$5+$GC$8*-1)/(2*($GC$6*-1+$GC$7))-((($GC$6*-1)/(2*($GC$6*-1+$GC$7)))*GL5) -> 0 | GL5: =($GC$5+$GC$8*-1)/($GC$6*-1)*GJ5 -> 120.00 | GM5: =($GC$5+$GC$11*-1)/($GC$6*-1)*GI5 -> 0 | GN5: =($GC$5+$GC$11*-1)/(2*($GC$6*-1+$GC$10))-(($GC$6*-1/(2*($GC$6*-1+$GC$10)))*GM5) -> 60.00 | GO5: =$GC$15*GI5 -> 0 | GP5: =$GC$16 -> 40.00 | GQ5: =$GC$15 -> 40.00 | GR5: =$GC$16*GI5 -> 0 | GS5: =GK5 -> 0 | GT5: =GL5 -> 120.00 | GU5: =GM5 -> 0 | GV5: =GN5 -> 60.00 | GW5: =$GD$15 -> 60.00 | GX5: =$GD$16*GI5 -> 0 | GY5: =$GD$15*GI5 -> 0 | GZ5: =$GD$16 -> 30.00 | HA5: =$GE$15 -> 30.00 | HB5: =$GE$16*GI5 -> 0 | HC5: =$GE$15*GI5 -> 0 | HD5: =$GE$16 -> 30.00 | HE5: =$GF$15 -> 60.00 | HF5: =$GF$16*GI5 -> 0 | HG5: =$GF$15*GI5 -> 0 | HH5: =$GF$16 -> 60.00 | HI5: =GM5 -> 0 | HJ5: =((-$GC$21)+($GC$5*HI5)-(($GC$6*-1)*HI5^2)-($GC$7*HI5^2)+($GC$8*-1*HI5)-$GC$9)/(($GC$6*-1)*HI5) ->  | HK5: =((-$GC$22)+($GC$5*HL5)-(($GC$6*-1)*HL5^2)-($GC$10*HL5^2)+($GC$11*-1*HL5)-$GC$12)/(($GC$6*-1)*HL5) -> -13.33 | HL5: =GL5 -> 120.00 | HM5: =HI5 -> 0 | HN5: =((-$GD$21)+($GC$5*HM5)-(($GC$6*-1)*HM5^2)-($GC$7*HM5^2)+($GC$8*-1*HM5)-$GC$9)/(($GC$6*-1)*HM5) ->  | HO5: =((-$GD$22)+($GC$5*HP5)-(($GC$6*-1)*HP5^2)-($GC$10*HP5^2)+($GC$11*-1*HP5)-$GC$12)/(($GC$6*-1)*HP5) -> -7.50 | HP5: =HL5 -> 120.00 | HQ5: =HM5 -> 0 | HR5: =((-$GE$21)+($GC$5*HQ5)-(($GC$6*-1)*HQ5^2)-($GC$7*HQ5^2)+($GC$8*-1*HQ5)-$GC$9)/(($GC$6*-1)*HQ5) ->  | HS5: =((-$GE$22)+($GC$5*HT5)-(($GC$6*-1)*HT5^2)-($GC$10*HT5^2)+($GC$11*-1*HT5)-$GC$12)/(($GC$6*-1)*HT5) -> -15.00 | HT5: =HL5 -> 120.00 | HV5: =($EB$21-($EB$5*HX5)+($EB$6*(HX5*HX5)))/(-($EB$6*HX5)) -> -29.5 | HW5: =($EB$21-($EB$5*HX5)+($EB$6*(HX5*HX5)))/(-($EB$6*HX5)) -> -29.5 | HX5: =HY4*0.8 -> 32 | HY5: =HX15-HX5 -> 8.00 | HZ5: =HX25-HX15 -> 6.00
A6: b | B6: =Du_Cournot!$D$7 -> -2.0 | D6: 0.05 | E6: =1-D6 -> 0.95 | F6: =$B$5/(2*$B$6*-1)*D6 -> 2.50 | G6: =($B$5/$B$6)*-E6 -> 95.00 | H6: 5.00 | I6: 47.50 | J6: =$B$9*D6 -> 1.67 | K6: =$B$9 -> 33.33 | L6: =H6 -> 5.00 | M6: =(-$B$14+($B$5*L6)+(($B$6)*(L6^2)))/((-$B$6)*L6) -> -127.2222222 | N6: =(-$B$14+($B$5*O6)+(($B$6)*(O6^2)))/((-$B$6)*O6) -> (6.70) | O6: =G6 -> 95.00 | P6: =L6 -> 5.00 | Q6: =(-$B$21+($B$5*P6)+(($B$6)*(P6^2)))/((-$B$6)*P6) -> -155 | R6: =(-$B$22+($B$5*S6)+(($B$6)*(S6^2)))/((-$B$6)*S6) -> (1.58) | S6: =O6 -> 95.00 | T6: =P6 -> 5.00 | U6: =(-$B$30+($B$5*T6)+(($B$6)*(T6^2)))/((-$B$6)*T6) -> -155 | V6: =(-$B$30+($B$5*W6)+(($B$6)*(W6^2)))/((-$B$6)*W6) -> (8.16) | W6: =O6 -> 95.00 | AA6: b | AB6: =Bertrand!D7 -> -2.0 | AD6: 0.05 | AE6: =1-AD6 -> 0.95 | AF6: =$AB$5/($AB$6*-1)*AD6 -> 5.00 | AG6: =($AB$5/(2*$AB$6)*-1)*AE6 -> 47.50 | AH6: =$AB$5/(2*$AB$6*-1)*AD6 -> 2.50 | AI6: =$AB$5/($AB$6*-1)*AE6 -> 95.00 | AJ6: =$AB$9 -> 50.00 | AK6: =$AB$10*AD6 -> 2.50 | AL6: =$AB$9*AD6 -> 2.50 | AM6: =$AB$10 -> 50.00 | AN6: =AF6 -> 5.00 | AO6: =(-$AB$14+($AB$5*AN6)+(($AB$6)*(AN6^2)))/((-$AB$6)*AN6) -> 95.00 | AP6: =(-$AB$15+($AB$5*AQ6)+(($AB$6)*(AQ6^2)))/((-$AB$6)*AQ6) -> 52.50 | AQ6: =AG6 -> 47.50 | AR6: =AN6 -> 5.00 | AS6: =(-$AB$21+($AB$5*AR6)+(($AB$6)*(AR6^2)))/((-$AB$6)*AR6) -> 32.78 | AT6: =(-$AB$21+($AB$5*AU6)+(($AB$6)*(AU6^2)))/((-$AB$6)*AU6) -> 1.73 | AU6: =AO6 -> 95.00 | AV6: =AR6 -> 5.00 | AW6: =(-$AB$28+($AB$5*AV6)+(($AB$6)*(AV6^2)))/((-$AB$6)*AV6) -> 47.50 | AX6: =(-$AB$28+($AB$5*AY6)+(($AB$6)*(AY6^2)))/((-$AB$6)*AY6) -> 47.50 | AY6: =AQ6 -> 47.50 | BK6: b | BL6: =Du_Stackelberg!D7 -> -2.0 | BN6: 0.05 | BO6: =1-BN6 -> 0.95 | BP6: =$BL$5/(2*$BL$6*-1)*BN6 -> 0.25 | BQ6: =($BL$5/$BL$6)*-BO6 -> 9.50 | BR6: =$BL$5/($BL$6*-1)*BN6 -> 0.50 | BS6: =$BL$5/(2*$BL$6*-1)*BO6 -> 4.75 | BT6: =$BL$9 -> 5.00 | BU6: =$BL$10*BN6 -> 0.13 | BV6: =$BL$9*BN6 -> 0.25 | BW6: =$BL$10 -> 2.50 | BX6: =BR6 -> 0.50 | BY6: =(-$BL$14+($BL$5*BX6)+(($BL$6)*(BX6^2)))/((-$BL$6)*BX6) -> -15.50 | BZ6: =(-$BL$15+($BL$5*CA6)+(($BL$6)*(CA6^2)))/((-$BL$6)*CA6) -> -0.16 | CA6: =BQ6 -> 9.50 | CB6: =BX6 -> 0.50 | CC6: =(-$BL$21+($BL$5*CB6)+(($BL$6)*(CB6^2)))/((-$BL$6)*CB6) -> -12.72 | CD6: =(-$BL$21+($BL$5*CE6)+(($BL$6)*(CE6^2)))/((-$BL$6)*CE6) -> -0.67 | CE6: =CA6 -> 9.50 | CF6: =CB6 -> 0.50 | CG6: =(-$BL$28+($BL$5*CF6)+(($BL$6)*(CF6^2)))/((-$BL$6)*CF6) -> -15.50 | CH6: =(-$BL$28+($BL$5*CI6)+(($BL$6)*(CI6^2)))/((-$BL$6)*CI6) -> -0.82 | CI6: =CA6 -> 9.50 | CL6: b | CM6: =Du_Cártel!D7 -> -2.0 | CO6: 0.05 | CP6: =1-CO6 -> 0.95 | CQ6: =$CM$5/(2*$CM$6*-1)*CO6 -> 0.50 | CR6: =($CM$5/$CM$6)*-CP6 -> 19.00 | CS6: =$CM$5/($CM$6*-1)*CO6 -> 1.00 | CT6: =$CM$5/(2*$CM$6*-1)*CP6 -> 9.50 | CU6: 0.25 | CV6: 5.00 | CW6: =$CM$5/(2*$CM$6*-1)*CO6 -> 0.50 | CX6: =$CM$5/(2*$CM$6*-1)*CP6 -> 9.50 | CY6: =CS6 -> 1.00 | CZ6: -31.00 | DA6: -1.63 | DB6: =CR6 -> 19.00 | DC6: =CY6 -> 1.00 | DD6: -25.44 | DE6: -1.34 | DF6: =DB6 -> 19.00 | DG6: =DC6 -> 1.00 | DH6: -31.00 | DI6: -0.32 | DJ6: =DB6 -> 19.00 | DM6: b | DN6: =Du_Equilibrios!D6 -> -5.0 | DP6: 0.05 | DQ6: =1-DP6 -> 0.95 | DR6: =$BL$5/(2*$BL$6*-1)*DP6 -> 0.25 | DS6: =($BL$5/$BL$6)*-DQ6 -> 9.50 | DT6: =$BL$5/($BL$6*-1)*DP6 -> 0.50 | DU6: =$BL$5/(2*$BL$6*-1)*DQ6 -> 4.75 | DV6: =$BL$9 -> 5.00 | DW6: =$BL$10*DP6 -> 0.13 | DX6: =$BL$9*DP6 -> 0.25 | DY6: =$BL$10 -> 2.50 | EA6: b1 | EB6: =Du_Equilibrios!D6 -> -5.0 | EC6: -5.0 | ED6: -5.0 | EE6: -5.0 | EF6: -5.0 | EH6: 0.05 | EI6: =1-EH6 -> 0.95 | EJ6: =$EB$5/(2*$EB$6*-1)*EH6 -> 1.50 | EK6: =($EB$5/$EB$6)*-EI6 -> 57.00 | EL6: =$EB$5/($EB$6*-1)*EH6 -> 3.00 | EM6: =$EB$5/(2*$EB$6*-1)*EI6 -> 28.50 | EN6: 1.00 | EO6: 20.00 | EP6: 1.50 | EQ6: 57.00 | ER6: 3.00 | ES6: 28.50 | ET6: 30.00 | EU6: 0.75 | EV6: 1.50 | EW6: 15.00 | EX6: 0.75 | EY6: 15.00 | EZ6: =$ED$5/(2*$ED$6*-1)*EH6 -> 1.50 | FA6: =$ED$5/(2*$ED$6*-1)*EI6 -> 28.50 | FB6: =EL6 -> 3.00 | FC6: =(-$EB$23+($EB$5*FB6)+(($EB$6)*(FB6^2)))/((-$EB$6)*FB6) -> -76.33 | FD6: =(-$EB$23+($EC$5*FE6)+(($EC$6)*(FE6^2)))/((-$EC$6)*FE6) -> (4.02) | FE6: =EK6 -> 57.00 | FF6: =FB6 -> 3.00 | FG6: =(-$EC$21+($EB$5*FF6)+(($EB$6)*(FF6^2)))/((-$EB$6)*FF6) -> -93.00 | FH6: (0.95) | FI6: =FE6 -> 57.00 | FJ6: =FF6 -> 3.00 | FK6: -93 | FL6: (4.89) | FM6: =FE6 -> 57.00 | FO6: 45.55121951 | FP6: 45.55121951 | FQ6: =FQ5+$FR$6 -> 16.40 | FR6: =FR5/10 -> 0.40 | FS6: =FS5/10 -> 0.30 | GA6: =ABS(GC6) -> 5 | GB6: b1 | GC6: =Du_Equilibrios_costos!D7 -> -5.0 | GD6: -5.0 | GE6: -5.0 | GF6: -5.0 | GG6: -5.0 | GI6: 0.05 | GJ6: =1-GI6 -> 0.95 | GK6: 3.00 | GL6: =($GC$5+$GC$8*-1)/($GC$6*-1)*GJ6 -> 114.00 | GM6: =($GC$5+$GC$11*-1)/($GC$6*-1)*GI6 -> 6.00 | GN6: =($GC$5+$GC$11*-1)/(2*($GC$6*-1+$GC$10))-(($GC$6*-1/(2*($GC$6*-1+$GC$10)))*GM6) -> 57.00 | GO6: =$GC$15*GI6 -> 2.00 | GP6: =$GC$16 -> 40.00 | GQ6: =$GC$15 -> 40.00 | GR6: =$GC$16*GI6 -> 2.00 | GS6: =GK6 -> 3.00 | GT6: 114.00 | GU6: 6.00 | GV6: 57.00 | GW6: =$GD$15 -> 60.00 | GX6: =$GD$16*GI6 -> 1.50 | GY6: =$GD$15*GI6 -> 3.00 | GZ6: =$GD$16 -> 30.00 | HA6: =$GE$15 -> 30.00 | HB6: =$GE$16*GI6 -> 1.50 | HC6: =$GE$15*GI6 -> 1.50 | HD6: =$GE$16 -> 30.00 | HE6: =$GF$15 -> 60.00 | HF6: =$GF$16*GI6 -> 3.00 | HG6: =$GF$15*GI6 -> 3.00 | HH6: =$GF$16 -> 60.00 | HI6: =GM6 -> 6.00 | HJ6: =((-$GC$21)+($GC$5*HI6)-(($GC$6*-1)*HI6^2)-($GC$7*HI6^2)+($GC$8*-1*HI6)-$GC$9)/(($GC$6*-1)*HI6) -> -152.67 | HK6: =((-$GC$22)+($GC$5*HL6)-(($GC$6*-1)*HL6^2)-($GC$10*HL6^2)+($GC$11*-1*HL6)-$GC$12)/(($GC$6*-1)*HL6) -> -8.04 | HL6: =GL6 -> 114.00 | HM6: =HI6 -> 6.00 | HN6: =((-$GD$21)+($GC$5*HM6)-(($GC$6*-1)*HM6^2)-($GC$7*HM6^2)+($GC$8*-1*HM6)-$GC$9)/(($GC$6*-1)*HM6) -> -186 | HO6: =((-$GD$22)+($GC$5*HP6)-(($GC$6*-1)*HP6^2)-($GC$10*HP6^2)+($GC$11*-1*HP6)-$GC$12)/(($GC$6*-1)*HP6) -> -1.89 | HP6: =HL6 -> 114.00 | HQ6: =HM6 -> 6.00 | HR6: =((-$GE$21)+($GC$5*HQ6)-(($GC$6*-1)*HQ6^2)-($GC$7*HQ6^2)+($GC$8*-1*HQ6)-$GC$9)/(($GC$6*-1)*HQ6) -> -186 | HS6: =((-$GE$22)+($GC$5*HT6)-(($GC$6*-1)*HT6^2)-($GC$10*HT6^2)+($GC$11*-1*HT6)-$GC$12)/(($GC$6*-1)*HT6) -> -9.79 | HT6: =HL6 -> 114.00 | HV6: -30.67160494 | HW6: -30.67160494 | HX6: =HX5+$FR$6 -> 32.40 | HY6: =HY5/10 -> 0.80 | HZ6: =HZ5/10 -> 0.60
D7: 0.10 | E7: 0.90 | F7: 5.00 | G7: 90.00 | H7: 10.00 | I7: 45.00 | J7: 3.33 | K7: 33.33 | L7: 10.00 | M7: -21.11111111 | N7: (2.35) | O7: 90.00 | P7: 10.00 | Q7: -35 | R7: 3.06 | S7: 90.00 | T7: 10.00 | U7: -35 | V7: (3.89) | W7: 90.00 | AD7: 0.10 | AE7: 0.90 | AF7: 10.00 | AG7: 45.00 | AH7: 5.00 | AI7: 90.00 | AJ7: 50.00 | AK7: 5.00 | AL7: 5.00 | AM7: 50.00 | AN7: 10.00 | AO7: =(-$AB$14+($AB$5*AN7)+(($AB$6)*(AN7^2)))/((-$AB$6)*AN7) -> 90.00 | AP7: 55.00 | AQ7: 45.00 | AR7: 10.00 | AS7: 58.89 | AT7: 6.54 | AU7: 90.00 | AV7: 10.00 | AW7: 66.25 | AX7: 49.72 | AY7: 45.00 | BN7: 0.10 | BO7: 0.90 | BP7: 0.50 | BQ7: 9.00 | BR7: 1.00 | BS7: 4.50 | BT7: 5.00 | BU7: 0.25 | BV7: 0.50 | BW7: 2.50 | BX7: 1.00 | BY7: -3.50 | BZ7: 0.31 | CA7: 9.00 | CB7: 1.00 | CC7: -2.11 | CD7: -0.23 | CE7: 9.00 | CF7: 1.00 | CG7: -3.50 | CH7: -0.39 | CI7: 9.00 | CL7: g | CM7: =Du_Cártel!D8 -> 0.50 | CO7: 0.10 | CP7: 0.90 | CQ7: =$CM$5/(2*$CM$6*-1)*CO7 -> 1.00 | CR7: =($CM$5/$CM$6)*-CP7 -> 18.00 | CS7: =$CM$5/($CM$6*-1)*CO7 -> 2.00 | CT7: =$CM$5/(2*$CM$6*-1)*CP7 -> 9.00 | CU7: 0.50 | CV7: 5.00 | CW7: 1.00 | CX7: 9.00 | CY7: 2.00 | CZ7: -7.00 | DA7: -0.78 | DB7: 18.00 | DC7: 2.00 | DD7: -4.22 | DE7: -0.47 | DF7: 18.00 | DG7: 2.00 | DH7: -7.00 | DI7: 0.61 | DJ7: 18.00 | DM7: c | DN7: 6.0 | DP7: 0.10 | DQ7: 0.90 | DR7: 0.50 | DS7: 9.00 | DT7: 1.00 | DU7: 4.50 | DV7: 5.00 | DW7: 0.25 | DX7: 0.50 | DY7: 2.50 | EA7: a | EC7: =EB7 -> 0.0 | ED7: 0.0 | EE7: =ED7 -> 0.0 | EF7: 0.0 | EH7: 0.10 | EI7: 0.90 | EJ7: 3.00 | EK7: 54.00 | EL7: 6.00 | EM7: 27.00 | EN7: 2.00 | EO7: 20.00 | EP7: 3.00 | EQ7: 54.00 | ER7: 6.00 | ES7: 27.00 | ET7: 30.00 | EU7: 1.50 | EV7: 3.00 | EW7: 15.00 | EX7: 1.50 | EY7: 15.00 | EZ7: 3.00 | FA7: 27.00 | FB7: 6.00 | FC7: =(-$EB$23+($EB$5*FB7)+(($EB$6)*(FB7^2)))/((-$EB$6)*FB7) -> -12.66666667 | FD7: (1.41) | FE7: 54.00 | FF7: 6.00 | FG7: -21 | FH7: 1.83 | FI7: 54.00 | FJ7: 6.00 | FK7: -21 | FL7: (2.33) | FM7: 54.00 | FO7: 42.24761905 | FP7: 42.24761905 | FQ7: 16.80 | GA7: =GC7 -> 0.0 | GB7: a | GC7: =Du_Equilibrios_costos!D8 -> 0.0 | GD7: 0.0 | GE7: 0.0 | GF7: 0.0 | GG7: 0.0 | GI7: 0.10 | GJ7: 0.90 | GK7: 6.00 | GL7: 108.00 | GM7: 12.00 | GN7: 54.00 | GO7: 4.00 | GP7: 40.00 | GQ7: 40.00 | GR7: 4.00 | GS7: 6.00 | GT7: 108.00 | GU7: 12.00 | GV7: 54.00 | GW7: 60.00 | GX7: 3.00 | GY7: 6.00 | GZ7: =$GD$16 -> 30.00 | HA7: 30.00 | HB7: 3.00 | HC7: 3.00 | HD7: 30.00 | HE7: =$GF$15 -> 60.00 | HF7: 6.00 | HG7: 6.00 | HH7: =$GF$16 -> 60.00 | HI7: =GM7 -> 12.00 | HJ7: =((-$GC$21)+($GC$5*HI7)-(($GC$6*-1)*HI7^2)-($GC$7*HI7^2)+($GC$8*-1*HI7)-$GC$9)/(($GC$6*-1)*HI7) -> -25.33 | HK7: -2.81 | HL7: 108.00 | HM7: 12.00 | HN7: -42 | HO7: 3.67 | HP7: 108.00 | HQ7: 12.00 | HR7: -42 | HS7: -4.67 | HT7: 108.00 | HV7: -31.82439024 | HW7: -31.82439024 | HX7: 32.80
D8: 0.15 | E8: 0.85 | F8: 7.50 | G8: 85.00 | H8: 15.00 | I8: 42.50 | J8: 5.00 | K8: 33.33 | L8: 15.00 | M8: 10.92592593 | N8: 1.93 | O8: 85.00 | P8: 15.00 | Q8: 1.666666667 | R8: 7.65 | S8: 85.00 | T8: 15.00 | U8: 1.666666667 | V8: 0.29 | W8: 85.00 | AD8: 0.15 | AE8: 0.85 | AF8: 15.00 | AG8: 42.50 | AH8: 7.50 | AI8: 85.00 | AJ8: 50.00 | AK8: 7.50 | AL8: 7.50 | AM8: 50.00 | AN8: 15.00 | AO8: 85.00 | AP8: 57.50 | AQ8: 42.50 | AR8: 15.00 | AS8: 64.26 | AT8: 11.34 | AU8: 85.00 | AV8: 15.00 | AW8: 69.17 | AX8: 51.91 | AY8: 42.50 | BN8: 0.15 | BO8: 0.85 | BP8: 0.75 | BQ8: 8.50 | BR8: 1.50 | BS8: 4.25 | BT8: 5.00 | BU8: 0.38 | BV8: 0.75 | BW8: 2.50 | BX8: 1.50 | BY8: 0.17 | BZ8: 0.76 | CA8: 8.50 | CB8: 1.50 | CC8: 1.09 | CD8: 0.19 | CE8: 8.50 | CF8: 1.50 | CG8: 0.17 | CH8: 0.03 | CI8: 8.50 | CO8: 0.15 | CP8: 0.85 | CQ8: 1.50 | CR8: 17.00 | CS8: 3.00 | CT8: 8.50 | CU8: 0.75 | CV8: 5.00 | CW8: 1.50 | CX8: 8.50 | CY8: 3.00 | CZ8: 0.33 | DA8: 0.06 | DB8: 17.00 | DC8: 3.00 | DD8: 2.19 | DE8: 0.39 | DF8: 17.00 | DG8: 3.00 | DH8: 0.33 | DI8: 1.53 | DJ8: 17.00 | DP8: 0.15 | DQ8: 0.85 | DR8: 0.75 | DS8: 8.50 | DT8: 1.50 | DU8: 4.25 | DV8: 5.00 | DW8: 0.38 | DX8: 0.75 | DY8: 2.50 | EA8: b | EC8: 0.0 | ED8: 0.0 | EE8: 0.0 | EF8: 0.0 | EH8: 0.15 | EI8: 0.85 | EJ8: 4.50 | EK8: 51.00 | EL8: 9.00 | EM8: 25.50 | EN8: 3.00 | EO8: 20.00 | EP8: 4.50 | EQ8: 51.00 | ER8: 9.00 | ES8: 25.50 | ET8: 30.00 | EU8: 2.25 | EV8: 4.50 | EW8: 15.00 | EX8: 2.25 | EY8: 15.00 | EZ8: 4.50 | FA8: 25.50 | FB8: 9.00 | FC8: 6.555555556 | FD8: 1.16 | FE8: 51.00 | FF8: 9.00 | FG8: 1 | FH8: 4.59 | FI8: 51.00 | FJ8: 9.00 | FK8: 1 | FL8: 0.18 | FM8: 51.00 | FO8: 39.07906977 | FP8: 39.07906977 | FQ8: 17.20 | GA8: 0.0 | GB8: b | GC8: =Du_Equilibrios_costos!D9 -> 0.0 | GD8: 0.0 | GE8: 0.0 | GF8: 0.0 | GG8: 0.0 | GI8: 0.15 | GJ8: 0.85 | GK8: 9.00 | GL8: 102.00 | GM8: 18.00 | GN8: 51.00 | GO8: 6.00 | GP8: 40.00 | GQ8: 40.00 | GR8: 6.00 | GS8: 9.00 | GT8: 102.00 | GU8: 18.00 | GV8: 51.00 | GW8: 60.00 | GX8: 4.50 | GY8: 9.00 | GZ8: 30.00 | HA8: 30.00 | HB8: 4.50 | HC8: 4.50 | HD8: 30.00 | HE8: 60.00 | HF8: 9.00 | HG8: 9.00 | HH8: 60.00 | HI8: 18.00 | HJ8: 13.11 | HK8: 2.31 | HL8: 102.00 | HM8: 18.00 | HN8: 2 | HO8: 9.18 | HP8: 102.00 | HQ8: 18.00 | HR8: 2 | HS8: 0.35 | HT8: 102.00 | HV8: -32.95903614 | HW8: -32.95903614 | HX8: 33.20
A9: Q de la empresa 1 | B9: =(-1/3)*(B5/B6) -> 33.33 | D9: 0.20 | E9: 0.80 | F9: 10.00 | G9: 80.00 | H9: 20.00 | I9: 40.00 | J9: 6.67 | K9: 33.33 | L9: 20.00 | M9: 24.44444444 | N9: 6.11 | O9: 80.00 | P9: 20.00 | Q9: 17.5 | R9: 12.19 | S9: 80.00 | T9: 20.00 | U9: 17.5 | V9: 4.38 | W9: 80.00 | AA9: Q de la empresa 1 | AB9: =(-1/2)*(AB5/AB6) -> 50.00 | AD9: 0.20 | AE9: 0.80 | AF9: 20.00 | AG9: 40.00 | AH9: 10.00 | AI9: 80.00 | AJ9: 50.00 | AK9: 10.00 | AL9: 10.00 | AM9: 50.00 | AN9: 20.00 | AO9: 80.00 | AP9: 60.00 | AQ9: 40.00 | AR9: 20.00 | AS9: 64.44 | AT9: 16.11 | AU9: 80.00 | AV9: 20.00 | AW9: 68.13 | AX9: 54.06 | AY9: 40.00 | BK9: Q de la empresa 1 | BL9: =BL5/(-2*BL6) -> 5.00 | BN9: 0.20 | BO9: 0.80 | BP9: 1.00 | BQ9: 8.00 | BR9: 2.00 | BS9: 4.00 | BT9: 5.00 | BU9: 0.50 | BV9: 1.00 | BW9: 2.50 | BX9: 2.00 | BY9: 1.75 | BZ9: 1.22 | CA9: 8.00 | CB9: 2.00 | CC9: 2.44 | CD9: 0.61 | CE9: 8.00 | CF9: 2.00 | CG9: 1.75 | CH9: 0.44 | CI9: 8.00 | CL9: Q de la empresa 1 | CM9: =(-1/2)*(CM5/CM6)*CM7 -> 5.00 | CO9: 0.20 | CP9: 0.80 | CQ9: 2.00 | CR9: 16.00 | CS9: 4.00 | CT9: 8.00 | CU9: 1.00 | CV9: 5.00 | CW9: 2.00 | CX9: 8.00 | CY9: 4.00 | CZ9: 3.50 | DA9: 0.88 | DB9: 16.00 | DC9: 4.00 | DD9: 4.89 | DE9: 1.22 | DF9: 16.00 | DG9: 4.00 | DH9: 3.50 | DI9: 2.44 | DJ9: 16.00 | DM9: Q de la empresa 1 | DN9: =(DN5/2)-((DN7/2)*(-DN6+1)) -> 132.00 | DP9: 0.20 | DQ9: 0.80 | DR9: 1.00 | DS9: 8.00 | DT9: 2.00 | DU9: 4.00 | DV9: 5.00 | DW9: 0.50 | DX9: 1.00 | DY9: 2.50 | EA9: c | EC9: 0.0 | ED9: 0.0 | EE9: 0.0 | EF9: 0.0 | EH9: 0.20 | EI9: 0.80 | EJ9: 6.00 | EK9: 48.00 | EL9: 12.00 | EM9: 24.00 | EN9: 4.00 | EO9: 20.00 | EP9: 6.00 | EQ9: 48.00 | ER9: 12.00 | ES9: 24.00 | ET9: 30.00 | EU9: 3.00 | EV9: 6.00 | EW9: 15.00 | EX9: 3.00 | EY9: 15.00 | EZ9: 6.00 | FA9: 24.00 | FB9: 12.00 | FC9: 14.66666667 | FD9: 3.67 | FE9: 48.00 | FF9: 12.00 | FG9: 10.5 | FH9: 7.31 | FI9: 48.00 | FJ9: 12.00 | FK9: 10.5 | FL9: 2.63 | FM9: 48.00 | FO9: 36.03636364 | FP9: 36.03636364 | FQ9: 17.60 | GA9: 0.0 | GB9: c | GC9: =Du_Equilibrios_costos!D10 -> 0.0 | GD9: 0.0 | GE9: 0.0 | GF9: 0.0 | GG9: 0.0 | GI9: 0.20 | GJ9: 0.80 | GK9: 12.00 | GL9: 96.00 | GM9: 24.00 | GN9: 48.00 | GO9: 8.00 | GP9: 40.00 | GQ9: 40.00 | GR9: 8.00 | GS9: 12.00 | GT9: 96.00 | GU9: 24.00 | GV9: 48.00 | GW9: 60.00 | GX9: 6.00 | GY9: 12.00 | GZ9: 30.00 | HA9: 30.00 | HB9: 6.00 | HC9: 6.00 | HD9: 30.00 | HE9: 60.00 | HF9: 12.00 | HG9: 12.00 | HH9: 60.00 | HI9: 24.00 | HJ9: 29.33 | HK9: 7.33 | HL9: 96.00 | HM9: 24.00 | HN9: 21 | HO9: 14.63 | HP9: 96.00 | HQ9: 24.00 | HR9: 21 | HS9: 5.25 | HT9: 96.00 | HV9: -34.07619048 | HW9: -34.07619048 | HX9: 33.60
A10: Q de la empresa 2 | B10: =(-1/3)*(B5/B6) -> 33.33 | D10: 0.25 | E10: 0.75 | F10: 12.50 | G10: 75.00 | H10: 25.00 | I10: 37.50 | J10: 8.33 | K10: 33.33 | L10: 25.00 | M10: 30.55555556 | N10: 10.19 | O10: 75.00 | P10: 25.00 | Q10: 25 | R10: 16.67 | S10: 75.00 | T10: 25.00 | U10: 25 | V10: 8.33 | W10: 75.00 | AA10: Q de la empresa 2 | AB10: =(-1/2)*(AB5/AB6) -> 50.00 | AD10: 0.25 | AE10: 0.75 | AF10: 25.00 | AG10: 37.50 | AH10: 12.50 | AI10: 75.00 | AJ10: 50.00 | AK10: 12.50 | AL10: 12.50 | AM10: 50.00 | AN10: 25.00 | AO10: 75.00 | AP10: 62.50 | AQ10: 37.50 | AR10: 25.00 | AS10: 62.56 | AT10: 20.85 | AU10: 75.00 | AV10: 25.00 | AW10: 65.50 | AX10: 56.17 | AY10: 37.50 | BK10: Q de la empresa 2 | BL10: =BL5/(4*-BL6) -> 2.50 | BN10: 0.25 | BO10: 0.75 | BP10: 1.25 | BQ10: 7.50 | BR10: 2.50 | BS10: 3.75 | BT10: 5.00 | BU10: 0.63 | BV10: 1.25 | BW10: 2.50 | BX10: 2.50 | BY10: 2.50 | BZ10: 1.67 | CA10: 7.50 | CB10: 2.50 | CC10: 3.06 | CD10: 1.02 | CE10: 7.50 | CF10: 2.50 | CG10: 2.50 | CH10: 0.83 | CI10: 7.50 | CL10: Q de la empresa 2 | CM10: =(-1/2)*(CM5/CM6)*(1-CM7) -> 5.00 | CO10: 0.25 | CP10: 0.75 | CQ10: 2.50 | CR10: 15.00 | CS10: 5.00 | CT10: 7.50 | CU10: 1.25 | CV10: 5.00 | CW10: 2.50 | CX10: 7.50 | CY10: 5.00 | CZ10: 5.00 | DA10: 1.67 | DB10: 15.00 | DC10: 5.00 | DD10: 6.11 | DE10: 2.04 | DF10: 15.00 | DG10: 5.00 | DH10: 5.00 | DI10: 3.33 | DJ10: 15.00 | DM10: Q de la empresa 2 | DN10: =DN13 -> 28.00 | DP10: 0.25 | DQ10: 0.75 | DR10: 1.25 | DS10: 7.50 | DT10: 2.50 | DU10: 3.75 | DV10: 5.00 | DW10: 0.63 | DX10: 1.25 | DY10: 2.50 | EA10: d | EC10: 0.0 | ED10: 0.0 | EE10: =ED10 -> 0.0 | EF10: 0.0 | EH10: 0.25 | EI10: 0.75 | EJ10: 7.50 | EK10: 45.00 | EL10: 15.00 | EM10: 22.50 | EN10: 5.00 | EO10: 20.00 | EP10: 7.50 | EQ10: 45.00 | ER10: 15.00 | ES10: 22.50 | ET10: 30.00 | EU10: 3.75 | EV10: 7.50 | EW10: 15.00 | EX10: 3.75 | EY10: 15.00 | EZ10: 7.50 | FA10: 22.50 | FB10: 15.00 | FC10: 18.33333333 | FD10: 6.11 | FE10: 45.00 | FF10: 15.00 | FG10: 15 | FH10: 10.00 | FI10: 45.00 | FJ10: 15.00 | FK10: 15 | FL10: 5.00 | FM10: 45.00 | FO10: 33.11111111 | FP10: 33.11111111 | FQ10: 18.00 | GA10: 0.0 | GB10: d | GC10: =Du_Equilibrios_costos!D11 -> 0.0 | GD10: 0.0 | GE10: 0.0 | GF10: 0.0 | GG10: 0.0 | GI10: 0.25 | GJ10: 0.75 | GK10: 15.00 | GL10: 90.00 | GM10: 30.00 | GN10: 45.00 | GO10: 10.00 | GP10: 40.00 | GQ10: 40.00 | GR10: 10.00 | GS10: 15.00 | GT10: 90.00 | GU10: 30.00 | GV10: 45.00 | GW10: 60.00 | GX10: 7.50 | GY10: 15.00 | GZ10: 30.00 | HA10: 30.00 | HB10: 7.50 | HC10: 7.50 | HD10: 30.00 | HE10: 60.00 | HF10: 15.00 | HG10: 15.00 | HH10: =$GF$16 -> 60.00 | HI10: 30.00 | HJ10: 36.67 | HK10: 12.22 | HL10: 90.00 | HM10: 30.00 | HN10: 30 | HO10: 20.00 | HP10: 90.00 | HQ10: 30.00 | HR10: 30 | HS10: 10.00 | HT10: 90.00 | HV10: -35.17647059 | HW10: -35.17647059 | HX10: 34.00
A11: Producción Industria | B11: =SUM(B9:B10) -> 66.67 | D11: 0.30 | E11: 0.70 | F11: 15.00 | G11: 70.00 | H11: 30.00 | I11: 35.00 | J11: 10.00 | K11: 33.33 | L11: 30.00 | M11: 32.96296296 | N11: 14.13 | O11: 70.00 | P11: 30.00 | Q11: 28.33333333 | R11: 21.07 | S11: 70.00 | T11: 30.00 | U11: 28.33333333 | V11: 12.14 | W11: 70.00 | AA11: Producción Industria | AB11: =SUM(AB9:AB10) -> 100.00 | AD11: 0.30 | AE11: 0.70 | AF11: 30.00 | AG11: 35.00 | AH11: 15.00 | AI11: 70.00 | AJ11: 50.00 | AK11: 15.00 | AL11: 15.00 | AM11: 50.00 | AN11: 30.00 | AO11: 70.00 | AP11: 65.00 | AQ11: 35.00 | AR11: 30.00 | AS11: 59.63 | AT11: 25.56 | AU11: 70.00 | AV11: 30.00 | AW11: 62.08 | AX11: 58.21 | AY11: 35.00 | BK11: Producción Industria | BL11: =SUM(BL9:BL10) -> 7.50 | BN11: 0.30 | BO11: 0.70 | BP11: 1.50 | BQ11: 7.00 | BR11: 3.00 | BS11: 3.50 | BT11: 5.00 | BU11: 0.75 | BV11: 1.50 | BW11: 2.50 | BX11: 3.00 | BY11: 2.83 | BZ11: 2.11 | CA11: 7.00 | CB11: 3.00 | CC11: 3.30 | CD11: 1.41 | CE11: 7.00 | CF11: 3.00 | CG11: 2.83 | CH11: 1.21 | CI11: 7.00 | CL11: Producción Industria | CM11: =(-1/2)*(CM5/CM6) -> 10.00 | CO11: 0.30 | CP11: 0.70 | CQ11: 3.00 | CR11: 14.00 | CS11: 6.00 | CT11: 7.00 | CU11: 1.50 | CV11: 5.00 | CW11: 3.00 | CX11: 7.00 | CY11: 6.00 | CZ11: 5.67 | DA11: 2.43 | DB11: 14.00 | DC11: 6.00 | DD11: 6.59 | DE11: 2.83 | DF11: 14.00 | DG11: 6.00 | DH11: 5.67 | DI11: 4.21 | DJ11: 14.00 | DM11: Producción Industria | DN11: =SUM(DN9:DN10) -> 160.00 | DP11: 0.30 | DQ11: 0.70 | DR11: 1.50 | DS11: 7.00 | DT11: 3.00 | DU11: 3.50 | DV11: 5.00 | DW11: 0.75 | DX11: 1.50 | DY11: 2.50 | EA11: e | EC11: 0.0 | ED11: 0.0 | EE11: 0.0 | EF11: 0.0 | EH11: 0.30 | EI11: 0.70 | EJ11: 9.00 | EK11: 42.00 | EL11: 18.00 | EM11: 21.00 | EN11: 6.00 | EO11: 20.00 | EP11: 9.00 | EQ11: 42.00 | ER11: 18.00 | ES11: 21.00 | ET11: 30.00 | EU11: 4.50 | EV11: 9.00 | EW11: 15.00 | EX11: 4.50 | EY11: 15.00 | EZ11: 9.00 | FA11: 21.00 | FB11: =EL11 -> 18.00 | FC11: 19.77777778 | FD11: 8.48 | FE11: =EK11 -> 42.00 | FF11: 18.00 | FG11: 17 | FH11: 12.64 | FI11: 42.00 | FJ11: 18.00 | FK11: 17 | FL11: 7.29 | FM11: 42.00 | FO11: 30.29565217 | FP11: 30.29565217 | FQ11: 18.40 | GA11: 0.0 | GB11: e | GC11: =Du_Equilibrios_costos!D12 -> 0.0 | GD11: 0.0 | GE11: 0.0 | GF11: 0.0 | GG11: 0.0 | GI11: 0.30 | GJ11: 0.70 | GK11: 18.00 | GL11: 84.00 | GM11: 36.00 | GN11: 42.00 | GO11: 12.00 | GP11: 40.00 | GQ11: 40.00 | GR11: 12.00 | GS11: 18.00 | GT11: 84.00 | GU11: 36.00 | GV11: 42.00 | GW11: 60.00 | GX11: 9.00 | GY11: 18.00 | GZ11: 30.00 | HA11: 30.00 | HB11: 9.00 | HC11: 9.00 | HD11: 30.00 | HE11: 60.00 | HF11: 18.00 | HG11: 18.00 | HH11: 60.00 | HI11: 36.00 | HJ11: 39.56 | HK11: 16.95 | HL11: 84.00 | HM11: 36.00 | HN11: 34 | HO11: 25.29 | HP11: 84.00 | HQ11: 36.00 | HR11: 34 | HS11: 14.57 | HT11: 84.00 | HV11: -36.26046512 | HW11: -36.26046512 | HX11: 34.40
A12: MAX Q de la empresa 2 | B12: =B5/(2*-B6) -> 50.00 | D12: 0.35 | E12: 0.65 | F12: 17.50 | G12: 65.00 | H12: 35.00 | I12: 32.50 | J12: 11.67 | K12: 33.33 | L12: 35.00 | M12: 33.25396825 | N12: 17.91 | O12: 65.00 | P12: 35.00 | Q12: 29.28571429 | R12: 25.38 | S12: 65.00 | T12: 35.00 | U12: 29.28571429 | V12: 15.77 | W12: 65.00 | AA12: MAX Q de la empresa 2 | AB12: =AB5/(2*-AB6) -> 50.00 | AD12: 0.35 | AE12: 0.65 | AF12: 35.00 | AG12: 32.50 | AH12: 17.50 | AI12: 65.00 | AJ12: 50.00 | AK12: 17.50 | AL12: 17.50 | AM12: 50.00 | AN12: 35.00 | AO12: 65.00 | AP12: 67.50 | AQ12: 32.50 | AR12: 35.00 | AS12: 56.11 | AT12: 30.21 | AU12: 65.00 | AV12: 35.00 | AW12: 58.21 | AX12: 60.19 | AY12: 32.50 | BK12: MAX Q de la empresa 2 | BL12: =BL5/(2*-BL6) -> 5.00 | BN12: 0.35 | BO12: 0.65 | BP12: 1.75 | BQ12: 6.50 | BR12: 3.50 | BS12: 3.25 | BT12: 5.00 | BU12: 0.88 | BV12: 1.75 | BW12: 2.50 | BX12: 3.50 | BY12: 2.93 | BZ12: 2.54 | CA12: 6.50 | CB12: 3.50 | CC12: 3.33 | CD12: 1.79 | CE12: 6.50 | CF12: 3.50 | CG12: 2.93 | CH12: 1.58 | CI12: 6.50 | CL12: Precio | CM12: =CM5/2 -> 20.00 | CO12: 0.35 | CP12: 0.65 | CQ12: 3.50 | CR12: 13.00 | CS12: 7.00 | CT12: 6.50 | CU12: 1.75 | CV12: 5.00 | CW12: 3.50 | CX12: 6.50 | CY12: 7.00 | CZ12: 5.86 | DA12: 3.15 | DB12: 13.00 | DC12: 7.00 | DD12: 6.65 | DE12: 3.58 | DF12: 13.00 | DG12: 7.00 | DH12: 5.86 | DI12: 5.08 | DJ12: 13.00 | DM12: MAX Q de la empresa 2 | DN12: =DN5/(2*-DN6) -> 30.00 | DP12: 0.35 | DQ12: 0.65 | DR12: 1.75 | DS12: 6.50 | DT12: 3.50 | DU12: 3.25 | DV12: 5.00 | DW12: 0.88 | DX12: 1.75 | DY12: 2.50 | EA12: f | EC12: 0.0 | ED12: 0.0 | EE12: 0.0 | EF12: 0.0 | EH12: 0.35 | EI12: 0.65 | EJ12: 10.50 | EK12: 39.00 | EL12: 21.00 | EM12: 19.50 | EN12: 7.00 | EO12: 20.00 | EP12: 10.50 | EQ12: 39.00 | ER12: 21.00 | ES12: 19.50 | ET12: 30.00 | EU12: 5.25 | EV12: 10.50 | EW12: 15.00 | EX12: 5.25 | EY12: 15.00 | EZ12: 10.50 | FA12: 19.50 | FB12: =EL12 -> 21.00 | FC12: 19.95238095 | FD12: 10.74 | FE12: 39.00 | FF12: 21.00 | FG12: 17.57142857 | FH12: 15.23 | FI12: 39.00 | FJ12: 21.00 | FK12: 17.57142857 | FL12: 9.46 | FM12: 39.00 | FO12: 27.58297872 | FP12: 27.58297872 | FQ12: 18.80 | GA12: 0.0 | GB12: f | GC12: =Du_Equilibrios_costos!D13 -> 0.0 | GD12: 0.0 | GE12: 0.0 | GF12: 0.0 | GG12: 0.0 | GI12: 0.35 | GJ12: 0.65 | GK12: 21.00 | GL12: 78.00 | GM12: 42.00 | GN12: 39.00 | GO12: 14.00 | GP12: 40.00 | GQ12: 40.00 | GR12: 14.00 | GS12: 21.00 | GT12: 78.00 | GU12: 42.00 | GV12: 39.00 | GW12: 60.00 | GX12: 10.50 | GY12: 21.00 | GZ12: 30.00 | HA12: 30.00 | HB12: 10.50 | HC12: 10.50 | HD12: 30.00 | HE12: 60.00 | HF12: 21.00 | HG12: 21.00 | HH12: 60.00 | HI12: 42.00 | HJ12: 39.90 | HK12: 21.49 | HL12: 78.00 | HM12: 42.00 | HN12: 35.14285714 | HO12: 30.46 | HP12: 78.00 | HQ12: 42.00 | HR12: 35.14285714 | HS12: 18.92 | HT12: 78.00 | HV12: -37.32873563 | HW12: -37.32873563 | HX12: 34.80
A13: Precio | B13: =B5+(B6*B11) -> 66.67 | D13: 0.40 | E13: 0.60 | F13: 20.00 | G13: 60.00 | H13: 40.00 | I13: 30.00 | J13: 13.33 | K13: 33.33 | L13: 40.00 | M13: 32.22222222 | N13: 21.48 | O13: 60.00 | P13: 40.00 | Q13: 28.75 | R13: 29.58 | S13: 60.00 | T13: 40.00 | U13: 28.75 | V13: 19.17 | W13: 60.00 | AA13: Precio | AB13: =AB5-((AB6*AB11)*-1) -> 0.00 | AD13: 0.40 | AE13: 0.60 | AF13: 40.00 | AG13: 30.00 | AH13: 20.00 | AI13: 60.00 | AJ13: 50.00 | AK13: 20.00 | AL13: 20.00 | AM13: 50.00 | AN13: 40.00 | AO13: 60.00 | AP13: 70.00 | AQ13: 30.00 | AR13: 40.00 | AS13: 52.22 | AT13: 34.81 | AU13: 60.00 | AV13: 40.00 | AW13: 54.06 | AX13: 62.08 | AY13: 30.00 | BK13: Precio | BL13: =BL5-((BL6*BL11)*-1) -> 5.00 | BN13: 0.40 | BO13: 0.60 | BP13: 2.00 | BQ13: 6.00 | BR13: 4.00 | BS13: 3.00 | BT13: 5.00 | BU13: 1.00 | BV13: 2.00 | BW13: 2.50 | BX13: 4.00 | BY13: 2.88 | BZ13: 2.96 | CA13: 6.00 | CB13: 4.00 | CC13: 3.22 | CD13: 2.15 | CE13: 6.00 | CF13: 4.00 | CG13: 2.88 | CH13: 1.92 | CI13: 6.00 | CL13: Beneficio 1 | CM13: =CM9*CM12 -> 100.00 | CO13: 0.40 | CP13: 0.60 | CQ13: 4.00 | CR13: 12.00 | CS13: 8.00 | CT13: 6.00 | CU13: 2.00 | CV13: 5.00 | CW13: 4.00 | CX13: 6.00 | CY13: 8.00 | CZ13: 5.75 | DA13: 3.83 | DB13: 12.00 | DC13: 8.00 | DD13: 6.44 | DE13: 4.30 | DF13: 12.00 | DG13: 8.00 | DH13: 5.75 | DI13: 5.92 | DJ13: 12.00 | DM13: Precio | DN13: =(DN5-DN9)/(-DN6+1) -> 28.00 | DP13: 0.40 | DQ13: 0.60 | DR13: 2.00 | DS13: 6.00 | DT13: 4.00 | DU13: 3.00 | DV13: 5.00 | DW13: 1.00 | DX13: 2.00 | DY13: 2.50 | EH13: 0.40 | EI13: 0.60 | EJ13: 12.00 | EK13: 36.00 | EL13: 24.00 | EM13: 18.00 | EN13: 8.00 | EO13: 20.00 | EP13: 12.00 | EQ13: 36.00 | ER13: 24.00 | ES13: 18.00 | ET13: 30.00 | EU13: 6.00 | EV13: 12.00 | EW13: 15.00 | EX13: 6.00 | EY13: 15.00 | EZ13: 12.00 | FA13: 18.00 | FB13: 24.00 | FC13: 19.33333333 | FD13: 12.89 | FE13: =EK13 -> 36.00 | FF13: 24.00 | FG13: 17.25 | FH13: 17.75 | FI13: 36.00 | FJ13: 24.00 | FK13: 17.25 | FL13: 11.50 | FM13: 36.00 | FO13: 24.96666667 | FP13: 24.96666667 | FQ13: 19.20 | GI13: 0.40 | GJ13: 0.60 | GK13: 24.00 | GL13: 72.00 | GM13: 48.00 | GN13: 36.00 | GO13: 16.00 | GP13: 40.00 | GQ13: 40.00 | GR13: 16.00 | GS13: 24.00 | GT13: 72.00 | GU13: 48.00 | GV13: 36.00 | GW13: 60.00 | GX13: 12.00 | GY13: 24.00 | GZ13: 30.00 | HA13: 30.00 | HB13: 12.00 | HC13: 12.00 | HD13: 30.00 | HE13: 60.00 | HF13: 24.00 | HG13: 24.00 | HH13: 60.00 | HI13: 48.00 | HJ13: 38.67 | HK13: 25.78 | HL13: 72.00 | HM13: 48.00 | HN13: 34.5 | HO13: 35.50 | HP13: 72.00 | HQ13: 48.00 | HR13: 34.5 | HS13: 23.00 | HT13: 72.00 | HV13: -38.38181818 | HW13: -38.38181818 | HX13: 35.20
A14: Beneficio | B14: =B9*B13 -> 2,222.22 | D14: 0.45 | E14: 0.55 | F14: 22.50 | G14: 55.00 | H14: 45.00 | I14: 27.50 | J14: 15.00 | K14: 33.33 | L14: 45.00 | M14: 30.30864198 | N14: 24.80 | O14: 55.00 | P14: 45.00 | Q14: 27.22222222 | R14: 33.64 | S14: 55.00 | T14: 45.00 | U14: 27.22222222 | V14: 22.27 | W14: 55.00 | AA14: Beneficio 1 | AB14: =AB13*AB9 -> 0.00 | AD14: 0.45 | AE14: 0.55 | AF14: 45.00 | AG14: 27.50 | AH14: 22.50 | AI14: 55.00 | AJ14: 50.00 | AK14: 22.50 | AL14: 22.50 | AM14: 50.00 | AN14: 45.00 | AO14: 55.00 | AP14: 72.50 | AQ14: 27.50 | AR14: 45.00 | AS14: 48.09 | AT14: 39.34 | AU14: 55.00 | AV14: 45.00 | AW14: 49.72 | AX14: 63.86 | AY14: 27.50 | BK14: Beneficio 1 | BL14: =BL13*BL9 -> 25.00 | BN14: 0.45 | BO14: 0.55 | BP14: 2.25 | BQ14: 5.50 | BR14: 4.50 | BS14: 2.75 | BT14: 5.00 | BU14: 1.13 | BV14: 2.25 | BW14: 2.50 | BX14: 4.50 | BY14: 2.72 | BZ14: 3.36 | CA14: 5.50 | CB14: 4.50 | CC14: 3.03 | CD14: 2.48 | CE14: 5.50 | CF14: 4.50 | CG14: 2.72 | CH14: 2.23 | CI14: 5.50 | CL14: Beneficio 2 | CM14: =CM10*CM12 -> 100.00 | CO14: 0.45 | CP14: 0.55 | CQ14: 4.50 | CR14: 11.00 | CS14: 9.00 | CT14: 5.50 | CU14: 2.25 | CV14: 5.00 | CW14: 4.50 | CX14: 5.50 | CY14: 9.00 | CZ14: 5.44 | DA14: 4.45 | DB14: 11.00 | DC14: 9.00 | DD14: 6.06 | DE14: 4.96 | DF14: 11.00 | DG14: 9.00 | DH14: 5.44 | DI14: 6.73 | DJ14: 11.00 | DP14: 0.45 | DQ14: 0.55 | DR14: 2.25 | DS14: 5.50 | DT14: 4.50 | DU14: 2.75 | DV14: 5.00 | DW14: 1.13 | DX14: 2.25 | DY14: 2.50 | EB14: COURNOT | EC14: STACKELGERG | ED14: CÁRTEL | EE14: BERTRAND | EH14: 0.45 | EI14: 0.55 | EJ14: 13.50 | EK14: 33.00 | EL14: 27.00 | EM14: 16.50 | EN14: 9.00 | EO14: 20.00 | EP14: 13.50 | EQ14: 33.00 | ER14: 27.00 | ES14: 16.50 | ET14: 30.00 | EU14: 6.75 | EV14: 13.50 | EW14: 15.00 | EX14: 6.75 | EY14: 15.00 | EZ14: 13.50 | FA14: 16.50 | FB14: 27.00 | FC14: 18.18518519 | FD14: 14.88 | FE14: 33.00 | FF14: 27.00 | FG14: 16.33333333 | FH14: 20.18 | FI14: 33.00 | FJ14: 27.00 | FK14: 16.33333333 | FL14: 13.36 | FM14: 33.00 | FO14: 22.44081633 | FP14: 22.44081633 | FQ14: 19.60 | GC14: COURNOT | GD14: STACKELGERG | GE14: CÁRTEL | GF14: BERTRAND | GG14: LLIDER PRECIO | GI14: 0.45 | GJ14: 0.55 | GK14: 27.00 | GL14: 66.00 | GM14: 54.00 | GN14: 33.00 | GO14: 18.00 | GP14: 40.00 | GQ14: 40.00 | GR14: 18.00 | GS14: 27.00 | GT14: 66.00 | GU14: 54.00 | GV14: 33.00 | GW14: 60.00 | GX14: 13.50 | GY14: 27.00 | GZ14: 30.00 | HA14: 30.00 | HB14: 13.50 | HC14: 13.50 | HD14: 30.00 | HE14: 60.00 | HF14: 27.00 | HG14: 27.00 | HH14: 60.00 | HI14: 54.00 | HJ14: 36.37 | HK14: 29.76 | HL14: 66.00 | HM14: 54.00 | HN14: 32.66666667 | HO14: 40.36 | HP14: 66.00 | HQ14: 54.00 | HR14: 32.66666667 | HS14: 26.73 | HT14: 66.00 | HV14: -39.42022472 | HW14: -39.42022472 | HX14: 35.60
D15: 0.50 | E15: 0.50 | F15: 25.00 | G15: 50.00 | H15: 50.00 | I15: 25.00 | J15: 16.67 | K15: 33.33 | L15: 50.00 | M15: 27.77777778 | N15: 27.78 | O15: 50.00 | P15: 50.00 | Q15: 25 | R15: 37.50 | S15: 50.00 | T15: 50.00 | U15: 25 | V15: 25.00 | W15: 50.00 | AA15: Beneficio 2 | AB15: =AB13*AB10 -> 0.00 | AD15: 0.50 | AE15: 0.50 | AF15: 50.00 | AG15: 25.00 | AH15: 25.00 | AI15: 50.00 | AJ15: 50.00 | AK15: 25.00 | AL15: 25.00 | AM15: 50.00 | AN15: 50.00 | AO15: 50.00 | AP15: 75.00 | AQ15: 25.00 | AR15: 50.00 | AS15: 43.78 | AT15: 43.78 | AU15: 50.00 | AV15: 50.00 | AW15: 45.25 | AX15: 65.50 | AY15: 25.00 | BK15: Beneficio 2 | BL15: =BL13*BL10 -> 12.50 | BN15: 0.50 | BO15: 0.50 | BP15: 2.50 | BQ15: 5.00 | BR15: 5.00 | BS15: 2.50 | BT15: 5.00 | BU15: 1.25 | BV15: 2.50 | BW15: 2.50 | BX15: 5.00 | BY15: 2.50 | BZ15: 3.75 | CA15: 5.00 | CB15: 5.00 | CC15: 2.78 | CD15: 2.78 | CE15: 5.00 | CF15: 5.00 | CG15: 2.50 | CH15: 2.50 | CI15: 5.00 | CO15: 0.50 | CP15: 0.50 | CQ15: 5.00 | CR15: 10.00 | CS15: 10.00 | CT15: 5.00 | CU15: 2.50 | CV15: 5.00 | CW15: 5.00 | CX15: 5.00 | CY15: 10.00 | CZ15: 5.00 | DA15: 5.00 | DB15: 10.00 | DC15: 10.00 | DD15: 5.56 | DE15: 5.56 | DF15: 10.00 | DG15: 10.00 | DH15: 5.00 | DI15: 7.50 | DJ15: 10.00 | DP15: 0.50 | DQ15: 0.50 | DR15: 2.50 | DS15: 5.00 | DT15: 5.00 | DU15: 2.50 | DV15: 5.00 | DW15: 1.25 | DX15: 2.50 | DY15: 2.50 | EA15: Q de la empresa 1 | EB15: =EB5/(-3*EB6) -> 20.00 | EC15: =$EC$5/(-2*$EC$6) -> 30.00 | ED15: =ED5/(-4*ED6) -> 15.00 | EE15: =$EC$5/(-2*$EC$6) -> 30.00 | EH15: 0.50 | EI15: 0.50 | EJ15: 15.00 | EK15: 30.00 | EL15: 30.00 | EM15: 15.00 | EN15: 10.00 | EO15: 20.00 | EP15: 15.00 | EQ15: 30.00 | ER15: 30.00 | ES15: 15.00 | ET15: 30.00 | EU15: 7.50 | EV15: 15.00 | EW15: 15.00 | EX15: 7.50 | EY15: 15.00 | EZ15: 15.00 | FA15: 15.00 | FB15: 30.00 | FC15: 16.66666667 | FD15: 16.67 | FE15: 30.00 | FF15: 30.00 | FG15: 15 | FH15: 22.50 | FI15: 30.00 | FJ15: 30.00 | FK15: 15 | FL15: 15.00 | FM15: 30.00 | FO15: 20 | FP15: 20 | FQ15: =FR4 -> 20.00 | GB15: Q de la empresa 1 | GC15: =((2*(GC5+GC8*-1)*(GC6*-1+GC10))-(GC5*GC6*-1)-(GC6*-1*GC11*-1))/(4*(GC6*-1+GC7)*(GC6*-1+GC10)-(GC6^2)) -> 40.00 | GD15: =(GC5-((GC5*GC6*-1)/(2*(GC6*-1+GC10)))-((GC11*-1*GC6*-1)/(2*(GC6*-1+GC10)))+(GC8*-1))/(((2*GC6*-1)-((2*GC6*GC6)/(2*(GC6*-1+GC10)))+(2*GC7))) -> 60.00 | GE15: =GE2*((GC5+GC8*-1)/(2*(GC6*-1+GC7))) -> 30.00 | GF15: =(GF2)*((GF5+GF8*-1)/(GF6*-1+(2*GF7))) -> 60.00 | GG15: =((GG5/GG6*-1)-(GG11*-1/(2*GG10))+(GG8*-1)*((1/GG6*-1)+(1/(2*GG10))))/(2+((2*GG7)*((1/GG6*-1)+(1/(2*GG10))))) ->  | GI15: 0.50 | GJ15: 0.50 | GK15: 30.00 | GL15: 60.00 | GM15: 60.00 | GN15: 30.00 | GO15: 20.00 | GP15: 40.00 | GQ15: 40.00 | GR15: 20.00 | GS15: 30.00 | GT15: 60.00 | GU15: 60.00 | GV15: 30.00 | GW15: 60.00 | GX15: 15.00 | GY15: 30.00 | GZ15: 30.00 | HA15: 30.00 | HB15: 15.00 | HC15: 15.00 | HD15: 30.00 | HE15: 60.00 | HF15: 30.00 | HG15: 30.00 | HH15: 60.00 | HI15: 60.00 | HJ15: 33.33 | HK15: 33.33 | HL15: 60.00 | HM15: 60.00 | HN15: 30 | HO15: 45.00 | HP15: 60.00 | HQ15: 60.00 | HR15: 30 | HS15: 30.00 | HT15: 60.00 | HV15: -50 | HW15: -50 | HX15: =HY4 -> 40.00
A16: STACKELBERG | D16: 0.55 | E16: 0.45 | F16: 27.50 | G16: 45.00 | H16: 55.00 | I16: 22.50 | J16: 18.33 | K16: 33.33 | L16: 55.00 | M16: 24.7979798 | N16: 30.31 | O16: 45.00 | P16: 55.00 | Q16: 22.27272727 | R16: 41.11 | S16: 45.00 | T16: 55.00 | U16: 22.27272727 | V16: 27.22 | W16: 45.00 | AD16: 0.55 | AE16: 0.45 | AF16: 55.00 | AG16: 22.50 | AH16: 27.50 | AI16: 45.00 | AJ16: 50.00 | AK16: 27.50 | AL16: 27.50 | AM16: 50.00 | AN16: 55.00 | AO16: 45.00 | AP16: 77.50 | AQ16: 22.50 | AR16: 55.00 | AS16: 39.34 | AT16: 48.09 | AU16: 45.00 | AV16: 55.00 | AW16: 40.68 | AX16: 66.94 | AY16: 22.50 | BN16: 0.55 | BO16: 0.45 | BP16: 2.75 | BQ16: 4.50 | BR16: 5.50 | BS16: 2.25 | BT16: 5.00 | BU16: 1.38 | BV16: 2.75 | BW16: 2.50 | BX16: 5.50 | BY16: 2.23 | BZ16: 4.11 | CA16: 4.50 | CB16: 5.50 | CC16: 2.48 | CD16: 3.03 | CE16: 4.50 | CF16: 5.50 | CG16: 2.23 | CH16: 2.72 | CI16: 4.50 | CO16: 0.55 | CP16: 0.45 | CQ16: 5.50 | CR16: 9.00 | CS16: 11.00 | CT16: 4.50 | CU16: 2.75 | CV16: 5.00 | CW16: 5.50 | CX16: 4.50 | CY16: 11.00 | CZ16: 4.45 | DA16: 5.44 | DB16: 9.00 | DC16: 11.00 | DD16: 4.96 | DE16: 6.06 | DF16: 9.00 | DG16: 11.00 | DH16: 4.45 | DI16: 8.22 | DJ16: 9.00 | DP16: 0.55 | DQ16: 0.45 | DR16: 2.75 | DS16: 4.50 | DT16: 5.50 | DU16: 2.25 | DV16: 5.00 | DW16: 1.38 | DX16: 2.75 | DY16: 2.50 | EA16: Q de la empresa 2 | EB16: =EB5/(3*-EB6) -> 20.00 | EC16: =$EC$5/(4*-$EC$6) -> 15.00 | ED16: =ED5/(-4*ED6) -> 15.00 | EE16: =$EC$5/(2*-$EC$6) -> 30.00 | EH16: 0.55 | EI16: 0.45 | EJ16: 16.50 | EK16: 27.00 | EL16: 33.00 | EM16: 13.50 | EN16: 11.00 | EO16: 20.00 | EP16: 16.50 | EQ16: 27.00 | ER16: 33.00 | ES16: 13.50 | ET16: 30.00 | EU16: 8.25 | EV16: 16.50 | EW16: 15.00 | EX16: 8.25 | EY16: 15.00 | EZ16: 16.50 | FA16: 13.50 | FB16: =EL16 -> 33.00 | FC16: =(-$EB$23+($EB$5*FB16)+(($EB$6)*(FB16^2)))/((-$EB$6)*FB16) -> 14.88 | FD16: =(-$EB$23+($EC$5*FE16)+(($EC$6)*(FE16^2)))/((-$EC$6)*FE16) -> 18.19 | FE16: =EK16 -> 27.00 | FF16: 33.00 | FG16: 13.36363636 | FH16: 24.67 | FI16: 27.00 | FJ16: 33.00 | FK16: 13.36363636 | FL16: 16.33 | FM16: 27.00 | FO16: 18.22216749 | FP16: 18.22216749 | FQ16: =FQ15+$FS$6 -> 20.30 | GB16: Q de la empresa 2 | GC16: =((2*(GC5+GC11*-1)*(GC6*-1+GC7))-(GC5*GC6*-1)-(GC6*-1*GC8*-1))/(4*(GC6*-1+GC7)*(GC6*-1+GC10)-(GC6^2)) -> 40.00 | GD16: =((GC5+GC11*-1)/(2*(GC6*-1+GC10)))-(((GC6*-1)/(2*(GC6*-1+GC10)))*GD15) -> 30.00 | GE16: =GE3*((GC5+GC11*-1)/(2*(GC6*-1+GC10))) -> 30.00 | GF16: =(GF2)*((GF5+GF11*-1)/(GF6*-1+(2*GF10))) -> 60.00 | GG16: =(GG19+GG11*-1)/(2*GG10) ->  | GI16: 0.55 | GJ16: 0.45 | GK16: 33.00 | GL16: 54.00 | GM16: 66.00 | GN16: 27.00 | GO16: 22.00 | GP16: 40.00 | GQ16: 40.00 | GR16: 22.00 | GS16: 33.00 | GT16: 54.00 | GU16: 66.00 | GV16: 27.00 | GW16: 60.00 | GX16: 16.50 | GY16: 33.00 | GZ16: 30.00 | HA16: 30.00 | HB16: 16.50 | HC16: 16.50 | HD16: 30.00 | HE16: 60.00 | HF16: 33.00 | HG16: 33.00 | HH16: 60.00 | HI16: 66.00 | HJ16: 29.76 | HK16: 36.37 | HL16: 54.00 | HM16: 66.00 | HN16: 26.72727273 | HO16: 49.33 | HP16: 54.00 | HQ16: 66.00 | HR16: 26.72727273 | HS16: 32.67 | HT16: 54.00 | HV16: -50.67220844 | HW16: -50.67220844 | HX16: =HX15+$FS$6 -> 40.30
A17: Q de la empresa 1 | B17: =B5/(-2*B6) -> 50.00 | D17: 0.60 | E17: 0.40 | F17: 30.00 | G17: 40.00 | H17: 60.00 | I17: 20.00 | J17: 20.00 | K17: 33.33 | L17: 60.00 | M17: 21.48148148 | N17: 32.22 | O17: 40.00 | P17: 60.00 | Q17: 19.16666667 | R17: 44.38 | S17: 40.00 | T17: 60.00 | U17: 19.16666667 | V17: 28.75 | W17: 40.00 | AA17: Q de la empresa 1 | AB17: =$BL$5/(-3*$BL$6) -> 3.33 | AD17: 0.60 | AE17: 0.40 | AF17: 60.00 | AG17: 20.00 | AH17: 30.00 | AI17: 40.00 | AJ17: 50.00 | AK17: 30.00 | AL17: 30.00 | AM17: 50.00 | AN17: 60.00 | AO17: 40.00 | AP17: 80.00 | AQ17: 20.00 | AR17: 60.00 | AS17: 34.81 | AT17: 52.22 | AU17: 40.00 | AV17: 60.00 | AW17: 36.04 | AX17: 68.13 | AY17: 20.00 | BK17: Q de la empresa 1 | BL17: =$BL$5/(-3*$BL$6) -> 3.33 | BN17: 0.60 | BO17: 0.40 | BP17: 3.00 | BQ17: 4.00 | BR17: 6.00 | BS17: 2.00 | BT17: 5.00 | BU17: 1.50 | BV17: 3.00 | BW17: 2.50 | BX17: 6.00 | BY17: 1.92 | BZ17: 4.44 | CA17: 4.00 | CB17: 6.00 | CC17: 2.15 | CD17: 3.22 | CE17: 4.00 | CF17: 6.00 | CG17: 1.92 | CH17: 2.88 | CI17: 4.00 | CO17: 0.60 | CP17: 0.40 | CQ17: 6.00 | CR17: 8.00 | CS17: 12.00 | CT17: 4.00 | CU17: 3.00 | CV17: 5.00 | CW17: 6.00 | CX17: 4.00 | CY17: 12.00 | CZ17: 3.83 | DA17: 5.75 | DB17: 8.00 | DC17: 12.00 | DD17: 4.30 | DE17: 6.44 | DF17: 8.00 | DG17: 12.00 | DH17: 3.83 | DI17: 8.88 | DJ17: 8.00 | DP17: 0.60 | DQ17: 0.40 | DR17: 3.00 | DS17: 4.00 | DT17: 6.00 | DU17: 2.00 | DV17: 5.00 | DW17: 1.50 | DX17: 3.00 | DY17: 2.50 | EA17: Producción Industria | EB17: =SUM(EB15:EB16) -> 40.00 | EC17: =SUM(EC15:EC16) -> 45.00 | ED17: =ED5/(-2*ED6) -> 30.00 | EE17: =SUM(EE15:EE16) -> 60.00 | EH17: 0.60 | EI17: 0.40 | EJ17: 18.00 | EK17: 24.00 | EL17: 36.00 | EM17: 12.00 | EN17: 12.00 | EO17: 20.00 | EP17: 18.00 | EQ17: 24.00 | ER17: 36.00 | ES17: 12.00 | ET17: 30.00 | EU17: 9.00 | EV17: 18.00 | EW17: 15.00 | EX17: 9.00 | EY17: 15.00 | EZ17: 18.00 | FA17: 12.00 | FB17: =EL17 -> 36.00 | FC17: 12.88888889 | FD17: 19.33 | FE17: =EK17 -> 24.00 | FF17: 36.00 | FG17: 11.5 | FH17: 26.63 | FI17: 24.00 | FJ17: 36.00 | FK17: 11.5 | FL17: 17.25 | FM17: 24.00 | FO17: 16.48737864 | FP17: 16.48737864 | FQ17: 20.60 | GB17: Producción Industria | GC17: =SUM(GC15:GC16) -> 80.00 | GD17: =SUM(GD15:GD16) -> 90.00 | GE17: =SUM(GE15:GE16) -> 60.00 | GF17: =SUM(GF15:GF16) -> 120.00 | GG17: =SUM(GG15:GG16) ->  | GI17: 0.60 | GJ17: 0.40 | GK17: 36.00 | GL17: 48.00 | GM17: 72.00 | GN17: 24.00 | GO17: 24.00 | GP17: 40.00 | GQ17: 40.00 | GR17: 24.00 | GS17: 36.00 | GT17: 48.00 | GU17: 72.00 | GV17: 24.00 | GW17: 60.00 | GX17: 18.00 | GY17: 36.00 | GZ17: 30.00 | HA17: 30.00 | HB17: 18.00 | HC17: 18.00 | HD17: 30.00 | HE17: 60.00 | HF17: 36.00 | HG17: 36.00 | HH17: 60.00 | HI17: 72.00 | HJ17: 25.78 | HK17: 38.67 | HL17: 48.00 | HM17: 72.00 | HN17: 23 | HO17: 53.25 | HP17: 48.00 | HQ17: 72.00 | HR17: 23 | HS17: 34.50 | HT17: 48.00 | HV17: -51.33891626 | HW17: -51.33891626 | HX17: 40.60
A18: Q de la empresa 2 | B18: =B5/(4*-B6) -> 25.00 | D18: 0.65 | E18: 0.35 | F18: 32.50 | G18: 35.00 | H18: 65.00 | I18: 17.50 | J18: 21.67 | K18: 33.33 | L18: 65.00 | M18: 17.90598291 | N18: 33.25 | O18: 35.00 | P18: 65.00 | Q18: 15.76923077 | R18: 47.14 | S18: 35.00 | T18: 65.00 | U18: 15.76923077 | V18: 29.29 | W18: 35.00 | AA18: Q de la empresa 2 | AB18: =$BL$5/(-3*$BL$6) -> 3.33 | AD18: 0.65 | AE18: 0.35 | AF18: 65.00 | AG18: 17.50 | AH18: 32.50 | AI18: 35.00 | AJ18: 50.00 | AK18: 32.50 | AL18: 32.50 | AM18: 50.00 | AN18: 65.00 | AO18: 35.00 | AP18: 82.50 | AQ18: 17.50 | AR18: 65.00 | AS18: 30.21 | AT18: 56.11 | AU18: 35.00 | AV18: 65.00 | AW18: 31.35 | AX18: 68.93 | AY18: 17.50 | BK18: Q de la empresa 2 | BL18: =$BL$5/(-3*$BL$6) -> 3.33 | BN18: 0.65 | BO18: 0.35 | BP18: 3.25 | BQ18: 3.50 | BR18: 6.50 | BS18: 1.75 | BT18: 5.00 | BU18: 1.63 | BV18: 3.25 | BW18: 2.50 | BX18: 6.50 | BY18: 1.58 | BZ18: 4.71 | CA18: 3.50 | CB18: 6.50 | CC18: 1.79 | CD18: 3.33 | CE18: 3.50 | CF18: 6.50 | CG18: 1.58 | CH18: 2.93 | CI18: 3.50 | CL18: Q de la empresa 1 | CM18: =CM5/(-3*CM6) -> 6.67 | CO18: 0.65 | CP18: 0.35 | CQ18: 6.50 | CR18: 7.00 | CS18: 13.00 | CT18: 3.50 | CU18: 3.25 | CV18: 5.00 | CW18: 6.50 | CX18: 3.50 | CY18: 13.00 | CZ18: 3.15 | DA18: 5.86 | DB18: 7.00 | DC18: 13.00 | DD18: 3.58 | DE18: 6.65 | DF18: 7.00 | DG18: 13.00 | DH18: 3.15 | DI18: 9.43 | DJ18: 7.00 | DP18: 0.65 | DQ18: 0.35 | DR18: 3.25 | DS18: 3.50 | DT18: 6.50 | DU18: 1.75 | DV18: 5.00 | DW18: 1.63 | DX18: 3.25 | DY18: 2.50 | EA18: MAX Q de la empresa 2 | EB18: =EB5/(2*-EB6) -> 30.00 | EC18: =EC5/(2*-EC6) -> 30.00 | ED18: =ED5/(2*-ED6) -> 30.00 | EE18: =EE5/(2*-EE6) -> 30.00 | EH18: 0.65 | EI18: 0.35 | EJ18: 19.50 | EK18: 21.00 | EL18: 39.00 | EM18: 10.50 | EN18: 13.00 | EO18: 20.00 | EP18: 19.50 | EQ18: 21.00 | ER18: 39.00 | ES18: 10.50 | ET18: 30.00 | EU18: 9.75 | EV18: 19.50 | EW18: 15.00 | EX18: 9.75 | EY18: 15.00 | EZ18: 19.50 | FA18: 10.50 | FB18: 39.00 | FC18: 10.74358974 | FD18: 19.95 | FE18: 21.00 | FF18: 39.00 | FG18: 9.461538462 | FH18: 28.29 | FI18: 21.00 | FJ18: 39.00 | FK18: 9.461538462 | FL18: 17.57 | FM18: 21.00 | FO18: 14.7937799 | FP18: 14.7937799 | FQ18: 20.90 | GB18: MAX Q de la empresa 2 | GC18: =MAX($GC$15:$GF$16) -> 60.00 | GD18: =MAX($GC$15:$GF$16) -> 60.00 | GE18: =MAX($GC$15:$GF$16) -> 60.00 | GF18: =MAX($GC$15:$GF$16) -> 60.00 | GG18: =MAX($GC$15:$GG$16) ->  | GI18: 0.65 | GJ18: 0.35 | GK18: 39.00 | GL18: 42.00 | GM18: 78.00 | GN18: 21.00 | GO18: 26.00 | GP18: 40.00 | GQ18: 40.00 | GR18: 26.00 | GS18: 39.00 | GT18: 42.00 | GU18: 78.00 | GV18: 21.00 | GW18: 60.00 | GX18: 19.50 | GY18: 39.00 | GZ18: 30.00 | HA18: 30.00 | HB18: 19.50 | HC18: 19.50 | HD18: 30.00 | HE18: 60.00 | HF18: 39.00 | HG18: 39.00 | HH18: 60.00 | HI18: 78.00 | HJ18: 21.49 | HK18: 39.90 | HL18: 42.00 | HM18: 78.00 | HN18: 18.92307692 | HO18: 56.57 | HP18: 42.00 | HQ18: 78.00 | HR18: 18.92307692 | HS18: 35.14 | HT18: 42.00 | HV18: -52.0002445 | HW18: -52.0002445 | HX18: 40.90
A19: Producción de la industria | B19: =B18+B17 -> 75.00 | D19: 0.70 | E19: 0.30 | F19: 35.00 | G19: 30.00 | H19: 70.00 | I19: 15.00 | J19: 23.33 | K19: 33.33 | L19: 70.00 | M19: 14.12698413 | N19: 32.96 | O19: 30.00 | P19: 70.00 | Q19: 12.14285714 | R19: 49.17 | S19: 30.00 | T19: 70.00 | U19: 12.14285714 | V19: 28.33 | W19: 30.00 | AA19: Producción Industria | AB19: =SUM(AB17:AB18) -> 6.67 | AD19: 0.70 | AE19: 0.30 | AF19: 70.00 | AG19: 15.00 | AH19: 35.00 | AI19: 30.00 | AJ19: 50.00 | AK19: 35.00 | AL19: 35.00 | AM19: 50.00 | AN19: 70.00 | AO19: 30.00 | AP19: 85.00 | AQ19: 15.00 | AR19: 70.00 | AS19: 25.56 | AT19: 59.63 | AU19: 30.00 | AV19: 70.00 | AW19: 26.61 | AX19: 69.17 | AY19: 15.00 | BK19: Producción Industria | BL19: =SUM(BL17:BL18) -> 6.67 | BN19: 0.70 | BO19: 0.30 | BP19: 3.50 | BQ19: 3.00 | BR19: 7.00 | BS19: 1.50 | BT19: 5.00 | BU19: 1.75 | BV19: 3.50 | BW19: 2.50 | BX19: 7.00 | BY19: 1.21 | BZ19: 4.92 | CA19: 3.00 | CB19: 7.00 | CC19: 1.41 | CD19: 3.30 | CE19: 3.00 | CF19: 7.00 | CG19: 1.21 | CH19: 2.83 | CI19: 3.00 | CL19: Q de la empresa 2 | CM19: =CM5/(-3*CM6) -> 6.67 | CO19: 0.70 | CP19: 0.30 | CQ19: 7.00 | CR19: 6.00 | CS19: 14.00 | CT19: 3.00 | CU19: 3.50 | CV19: 5.00 | CW19: 7.00 | CX19: 3.00 | CY19: 14.00 | CZ19: 2.43 | DA19: 5.67 | DB19: 6.00 | DC19: 14.00 | DD19: 2.83 | DE19: 6.59 | DF19: 6.00 | DG19: 14.00 | DH19: 2.43 | DI19: 9.83 | DJ19: 6.00 | DP19: 0.70 | DQ19: 0.30 | DR19: 3.50 | DS19: 3.00 | DT19: 7.00 | DU19: 1.50 | DV19: 5.00 | DW19: 1.75 | DX19: 3.50 | DY19: 2.50 | EA19: Precio | EB19: =EB5+(EB6*EB17) -> 100.00 | EC19: =EC5-((EC6*EC17)*-1) -> 75.00 | ED19: =ED5/2 -> 150.00 | EE19: 0.00 | EH19: 0.70 | EI19: 0.30 | EJ19: 21.00 | EK19: 18.00 | EL19: 42.00 | EM19: 9.00 | EN19: 14.00 | EO19: 20.00 | EP19: 21.00 | EQ19: 18.00 | ER19: 42.00 | ES19: 9.00 | ET19: 30.00 | EU19: 10.50 | EV19: 21.00 | EW19: 15.00 | EX19: 10.50 | EY19: 15.00 | EZ19: 21.00 | FA19: 9.00 | FB19: 42.00 | FC19: 8.476190476 | FD19: 19.78 | FE19: 18.00 | FF19: 42.00 | FG19: 7.285714286 | FH19: 29.50 | FI19: 18.00 | FJ19: 42.00 | FK19: 7.285714286 | FL19: 17.00 | FM19: 18.00 | FO19: 13.13962264 | FP19: 13.13962264 | FQ19: 21.20 | GB19: Precio | GC19: =GC5+(GC6*GC17) -> 200.00 | GD19: =GD5-((GD6*GD17)*-1) -> 150.00 | GE19: =GE5-((GE6*GE17)*-1) -> 300.00 | GF19: =GF5+((GF6*GF17)) -> 0.00 | GG19: =((GG5/GG6*-1)-(GG11*-1/(2*GG10))-GG15)/((1/GG6*-1)+(1/(2*GG10))) ->  | GI19: 0.70 | GJ19: 0.30 | GK19: 42.00 | GL19: 36.00 | GM19: 84.00 | GN19: 18.00 | GO19: 28.00 | GP19: 40.00 | GQ19: 40.00 | GR19: 28.00 | GS19: 42.00 | GT19: 36.00 | GU19: 84.00 | GV19: 18.00 | GW19: 60.00 | GX19: 21.00 | GY19: 42.00 | GZ19: 30.00 | HA19: 30.00 | HB19: 21.00 | HC19: 21.00 | HD19: 30.00 | HE19: 60.00 | HF19: 42.00 | HG19: 42.00 | HH19: 60.00 | HI19: 84.00 | HJ19: 16.95 | HK19: 39.56 | HL19: 36.00 | HM19: 84.00 | HN19: 14.57142857 | HO19: 59.00 | HP19: 36.00 | HQ19: 84.00 | HR19: 14.57142857 | HS19: 34.00 | HT19: 36.00 | HV19: -52.65631068 | HW19: -52.65631068 | HX19: 41.20
A20: Precio | B20: =B5-((B6*B19)*-1) -> 50.00 | D20: 0.75 | E20: 0.25 | F20: 37.50 | G20: 25.00 | H20: 75.00 | I20: 12.50 | J20: 25.00 | K20: 33.33 | L20: 75.00 | M20: 10.18518519 | N20: 30.56 | O20: 25.00 | P20: 75.00 | Q20: 8.333333333 | R20: 50.00 | S20: 25.00 | T20: 75.00 | U20: 8.333333333 | V20: 25.00 | W20: 25.00 | AA20: Precio | AB20: =AB5+(AB6*AB19) -> 186.67 | AD20: 0.75 | AE20: 0.25 | AF20: 75.00 | AG20: 12.50 | AH20: 37.50 | AI20: 25.00 | AJ20: 50.00 | AK20: 37.50 | AL20: 37.50 | AM20: 50.00 | AN20: 75.00 | AO20: 25.00 | AP20: 87.50 | AQ20: 12.50 | AR20: 75.00 | AS20: 20.85 | AT20: 62.56 | AU20: 25.00 | AV20: 75.00 | AW20: 21.83 | AX20: 68.50 | AY20: 12.50 | BK20: Precio | BL20: =BL5+(BL6*BL19) -> 6.67 | BN20: 0.75 | BO20: 0.25 | BP20: 3.75 | BQ20: 2.50 | BR20: 7.50 | BS20: 1.25 | BT20: 5.00 | BU20: 1.88 | BV20: 3.75 | BW20: 2.50 | BX20: 7.50 | BY20: 0.83 | BZ20: 5.00 | CA20: 2.50 | CB20: 7.50 | CC20: 1.02 | CD20: 3.06 | CE20: 2.50 | CF20: 7.50 | CG20: 0.83 | CH20: 2.50 | CI20: 2.50 | CL20: Producción Industria | CM20: =SUM(CM18:CM19) -> 13.33 | CO20: 0.75 | CP20: 0.25 | CQ20: 7.50 | CR20: 5.00 | CS20: 15.00 | CT20: 2.50 | CU20: 3.75 | CV20: 5.00 | CW20: 7.50 | CX20: 2.50 | CY20: 15.00 | CZ20: 1.67 | DA20: 5.00 | DB20: 5.00 | DC20: 15.00 | DD20: 2.04 | DE20: 6.11 | DF20: 5.00 | DG20: 15.00 | DH20: 1.67 | DI20: 10.00 | DJ20: 5.00 | DP20: 0.75 | DQ20: 0.25 | DR20: 3.75 | DS20: 2.50 | DT20: 7.50 | DU20: 1.25 | DV20: 5.00 | DW20: 1.88 | DX20: 3.75 | DY20: 2.50 | EH20: 0.75 | EI20: 0.25 | EJ20: 22.50 | EK20: 15.00 | EL20: 45.00 | EM20: 7.50 | EN20: 15.00 | EO20: 20.00 | EP20: 22.50 | EQ20: 15.00 | ER20: 45.00 | ES20: 7.50 | ET20: 30.00 | EU20: 11.25 | EV20: 22.50 | EW20: 15.00 | EX20: 11.25 | EY20: 15.00 | EZ20: 22.50 | FA20: 7.50 | FB20: =EL20 -> 45.00 | FC20: 6.111111111 | FD20: 18.33 | FE20: 15.00 | FF20: 45.00 | FG20: 5 | FH20: 30.00 | FI20: 15.00 | FJ20: 45.00 | FK20: 5 | FL20: 15.00 | FM20: 15.00 | FO20: 11.52325581 | FP20: 11.52325581 | FQ20: 21.50 | GI20: 0.75 | GJ20: 0.25 | GK20: 45.00 | GL20: 30.00 | GM20: 90.00 | GN20: 15.00 | GO20: 30.00 | GP20: 40.00 | GQ20: 40.00 | GR20: 30.00 | GS20: 45.00 | GT20: 30.00 | GU20: 90.00 | GV20: 15.00 | GW20: 60.00 | GX20: 22.50 | GY20: 45.00 | GZ20: 30.00 | HA20: 30.00 | HB20: 22.50 | HC20: 22.50 | HD20: 30.00 | HE20: =$GF$15 -> 60.00 | HF20: 45.00 | HG20: 45.00 | HH20: 60.00 | HI20: 90.00 | HJ20: 12.22 | HK20: 36.67 | HL20: 30.00 | HM20: 90.00 | HN20: 10 | HO20: 60.00 | HP20: 30.00 | HQ20: 90.00 | HR20: 10 | HS20: 30.00 | HT20: 30.00 | HV20: -53.30722892 | HW20: -53.30722892 | HX20: 41.50
A21: Beneficio E1 | B21: =B20*B17 -> 2,500.00 | D21: 0.80 | E21: 0.20 | F21: 40.00 | G21: 20.00 | H21: 80.00 | I21: 10.00 | J21: 26.67 | K21: 33.33 | L21: 80.00 | M21: 6.111111111 | N21: 24.44 | O21: 20.00 | P21: 80.00 | Q21: 4.375 | R21: 48.75 | S21: 20.00 | T21: 80.00 | U21: 4.375 | V21: 17.50 | W21: 20.00 | AA21: Beneficio | AB21: =AB17*AB20 -> 622.22 | AD21: 0.80 | AE21: 0.20 | AF21: 80.00 | AG21: 10.00 | AH21: 40.00 | AI21: 20.00 | AJ21: 50.00 | AK21: 40.00 | AL21: 40.00 | AM21: 50.00 | AN21: 80.00 | AO21: 20.00 | AP21: 90.00 | AQ21: 10.00 | AR21: 80.00 | AS21: 16.11 | AT21: 64.44 | AU21: 20.00 | AV21: 80.00 | AW21: 17.03 | AX21: 66.25 | AY21: 10.00 | BK21: Beneficio | BL21: =BL17*BL20 -> 22.22 | BN21: 0.80 | BO21: 0.20 | BP21: 4.00 | BQ21: 2.00 | BR21: 8.00 | BS21: 1.00 | BT21: 5.00 | BU21: 2.00 | BV21: 4.00 | BW21: 2.50 | BX21: 8.00 | BY21: 0.44 | BZ21: 4.88 | CA21: 2.00 | CB21: 8.00 | CC21: 0.61 | CD21: 2.44 | CE21: 2.00 | CF21: 8.00 | CG21: 0.44 | CH21: 1.75 | CI21: 2.00 | CL21: Precio | CM21: =CM5-((CM6*CM20)*-1) -> 13.33 | CO21: 0.80 | CP21: 0.20 | CQ21: 8.00 | CR21: 4.00 | CS21: 16.00 | CT21: 2.00 | CU21: 4.00 | CV21: 5.00 | CW21: 8.00 | CX21: 2.00 | CY21: 16.00 | CZ21: 0.88 | DA21: 3.50 | DB21: 4.00 | DC21: 16.00 | DD21: 1.22 | DE21: 4.89 | DF21: 4.00 | DG21: 16.00 | DH21: 0.88 | DI21: 9.75 | DJ21: 4.00 | DP21: 0.80 | DQ21: 0.20 | DR21: 4.00 | DS21: 2.00 | DT21: 8.00 | DU21: 1.00 | DV21: 5.00 | DW21: 2.00 | DX21: 4.00 | DY21: 2.50 | EA21: P de la empresa 1 | EB21: =(EB5*EB15)-(EB6*EB15*EB15)-(EB6*EB15*EB16) -> 10,000.00 | EC21: =EC15*EC19 -> 2,250.00 | ED21: =ED15*ED19 -> 2,250.00 | EE21: =EE15*EE19 -> 0.00 | EH21: 0.80 | EI21: 0.20 | EJ21: 24.00 | EK21: 12.00 | EL21: 48.00 | EM21: 6.00 | EN21: 16.00 | EO21: 20.00 | EP21: 24.00 | EQ21: 12.00 | ER21: 48.00 | ES21: 6.00 | ET21: 30.00 | EU21: 12.00 | EV21: 24.00 | EW21: 15.00 | EX21: 12.00 | EY21: 15.00 | EZ21: 24.00 | FA21: 6.00 | FB21: 48.00 | FC21: 3.666666667 | FD21: 14.67 | FE21: 12.00 | FF21: 48.00 | FG21: 2.625 | FH21: 29.25 | FI21: 12.00 | FJ21: 48.00 | FK21: 2.625 | FL21: 10.50 | FM21: 12.00 | FO21: 9.943119266 | FP21: 9.943119266 | FQ21: 21.80 | GB21: P de la empresa 1 | GC21: =(GC15*GC19)-((GC7*(GC15^2))+(GC8*GC15)+GC9) -> 8,000.00 | GD21: =(GD15*GD19)-((GD7*(GD15^2))+(GD8*GD15)+GD9) -> 9,000.00 | GE21: =(GE15*GE19)-((GE7*(GE15^2))+(GE8*GE15)+GE9) -> 9,000.00 | GF21: =(GF15*GF19)-((GF7*(GF15^2))+(GF8*GF15)+GF9) -> 0.00 | GG21: =GG15*GG19-(GC7*(GC15^2)+(GC8*GC15)+GC9) ->  | GI21: 0.80 | GJ21: 0.20 | GK21: 48.00 | GL21: 24.00 | GM21: 96.00 | GN21: 12.00 | GO21: 32.00 | GP21: 40.00 | GQ21: 40.00 | GR21: 32.00 | GS21: 48.00 | GT21: 24.00 | GU21: 96.00 | GV21: 12.00 | GW21: 60.00 | GX21: 24.00 | GY21: 48.00 | GZ21: 30.00 | HA21: 30.00 | HB21: 24.00 | HC21: 24.00 | HD21: 30.00 | HE21: 60.00 | HF21: 48.00 | HG21: 48.00 | HH21: 60.00 | HI21: 96.00 | HJ21: 7.33 | HK21: 29.33 | HL21: 24.00 | HM21: 96.00 | HN21: 5.25 | HO21: 58.50 | HP21: 24.00 | HQ21: 96.00 | HR21: 5.25 | HS21: 21.00 | HT21: 24.00 | HV21: -53.95311005 | HW21: -53.95311005 | HX21: 41.80
A22: Beneficio E2 | B22: =B20*B18 -> 1,250.00 | D22: 0.85 | E22: 0.15 | F22: 42.50 | G22: 15.00 | H22: 85.00 | I22: 7.50 | J22: 28.33 | K22: 33.33 | L22: 85.00 | M22: 1.928104575 | N22: 10.93 | O22: 15.00 | P22: 85.00 | Q22: 0.2941176471 | R22: 43.33 | S22: 15.00 | T22: 85.00 | U22: 0.2941176471 | V22: 1.67 | W22: 15.00 | AD22: 0.85 | AE22: 0.15 | AF22: 85.00 | AG22: 7.50 | AH22: 42.50 | AI22: 15.00 | AJ22: 50.00 | AK22: 42.50 | AL22: 42.50 | AM22: 50.00 | AN22: 85.00 | AO22: 15.00 | AP22: 92.50 | AQ22: 7.50 | AR22: 85.00 | AS22: 11.34 | AT22: 64.26 | AU22: 15.00 | AV22: 85.00 | AW22: 12.21 | AX22: 60.83 | AY22: 7.50 | BN22: 0.85 | BO22: 0.15 | BP22: 4.25 | BQ22: 1.50 | BR22: 8.50 | BS22: 0.75 | BT22: 5.00 | BU22: 2.13 | BV22: 4.25 | BW22: 2.50 | BX22: 8.50 | BY22: 0.03 | BZ22: 4.33 | CA22: 1.50 | CB22: 8.50 | CC22: 0.19 | CD22: 1.09 | CE22: 1.50 | CF22: 8.50 | CG22: 0.03 | CH22: 0.17 | CI22: 1.50 | CL22: Beneficio | CM22: =CM18*CM21 -> 88.89 | CO22: 0.85 | CP22: 0.15 | CQ22: 8.50 | CR22: 3.00 | CS22: 17.00 | CT22: 1.50 | CU22: 4.25 | CV22: 5.00 | CW22: 8.50 | CX22: 1.50 | CY22: 17.00 | CZ22: 0.06 | DA22: 0.33 | DB22: 3.00 | DC22: 17.00 | DD22: 0.39 | DE22: 2.19 | DF22: 3.00 | DG22: 17.00 | DH22: 0.06 | DI22: 8.67 | DJ22: 3.00 | DP22: 0.85 | DQ22: 0.15 | DR22: 4.25 | DS22: 1.50 | DT22: 8.50 | DU22: 0.75 | DV22: 5.00 | DW22: 2.13 | DX22: 4.25 | DY22: 2.50 | EA22: P de la empresa 2 | EB22: =(EB5*EB16)-(EB6*EB15*EB16)-(EB6*EB16*EB16) -> 10,000.00 | EC22: =EC16*EC19 -> 1,125.00 | ED22: =ED16*ED19 -> 2,250.00 | EE22: =EE16*EE19 -> 0.00 | EH22: 0.85 | EI22: 0.15 | EJ22: 25.50 | EK22: 9.00 | EL22: 51.00 | EM22: 4.50 | EN22: 17.00 | EO22: 20.00 | EP22: 25.50 | EQ22: 9.00 | ER22: 51.00 | ES22: 4.50 | ET22: 30.00 | EU22: 12.75 | EV22: 25.50 | EW22: 15.00 | EX22: 12.75 | EY22: 15.00 | EZ22: 25.50 | FA22: 4.50 | FB22: 51.00 | FC22: 1.156862745 | FD22: 6.56 | FE22: 9.00 | FF22: 51.00 | FG22: 0.1764705882 | FH22: 26.00 | FI22: 9.00 | FJ22: 51.00 | FK22: 0.1764705882 | FL22: 1.00 | FM22: 9.00 | FO22: 8.397737557 | FP22: 8.397737557 | FQ22: 22.10 | GB22: P de la empresa 2 | GC22: =GC16*GC19-(GC10*(GC16^2)+(GC11*GC16)+GC12) -> 8,000.00 | GD22: =GD16*GD19-(GC10*(GD16^2)+(GC11*GD16)+GC12) -> 4,500.00 | GE22: =GE16*GE19-(GC10*(GE16^2)+(GC11*GE16)+GC12) -> 9,000.00 | GF22: =GF16*GF19-(GC10*(GF16^2)+(GC11*GF16)+GC12) -> 0.00 | GG22: =GG16*GG19-(GC10*(GC16^2)+(GC11*GC16)+GC12) ->  | GI22: 0.85 | GJ22: 0.15 | GK22: 51.00 | GL22: 18.00 | GM22: 102.00 | GN22: 9.00 | GO22: 34.00 | GP22: 40.00 | GQ22: 40.00 | GR22: 34.00 | GS22: 51.00 | GT22: 18.00 | GU22: 102.00 | GV22: 9.00 | GW22: 60.00 | GX22: 25.50 | GY22: 51.00 | GZ22: 30.00 | HA22: 30.00 | HB22: 25.50 | HC22: 25.50 | HD22: 30.00 | HE22: 60.00 | HF22: 51.00 | HG22: 51.00 | HH22: 60.00 | HI22: 102.00 | HJ22: 2.31 | HK22: 13.11 | HL22: 18.00 | HM22: 102.00 | HN22: 0.3529411765 | HO22: 52.00 | HP22: 18.00 | HQ22: 102.00 | HR22: 0.3529411765 | HS22: 2.00 | HT22: 18.00 | HV22: -54.59406176 | HW22: -54.59406176 | HX22: 42.10
D23: 0.90 | E23: 0.10 | F23: 45.00 | G23: 10.00 | H23: 90.00 | I23: 5.00 | J23: 30.00 | K23: 33.33 | L23: 90.00 | M23: -2.345679012 | N23: (21.11) | O23: 10.00 | P23: 90.00 | Q23: -3.888888889 | R23: 27.50 | S23: 10.00 | T23: 90.00 | U23: -3.888888889 | V23: (35.00) | W23: 10.00 | AA23: COLUSIÓN | AD23: 0.90 | AE23: 0.10 | AF23: 90.00 | AG23: 5.00 | AH23: 45.00 | AI23: 10.00 | AJ23: 50.00 | AK23: 45.00 | AL23: 45.00 | AM23: 50.00 | AN23: 90.00 | AO23: 10.00 | AP23: 95.00 | AQ23: 5.00 | AR23: 90.00 | AS23: 6.54 | AT23: 58.89 | AU23: 10.00 | AV23: 90.00 | AW23: 7.36 | AX23: 47.50 | AY23: 5.00 | BK23: COLUSIÓN | BN23: 0.90 | BO23: 0.10 | BP23: 4.50 | BQ23: 1.00 | BR23: 9.00 | BS23: 0.50 | BT23: 5.00 | BU23: 2.25 | BV23: 4.50 | BW23: 2.50 | BX23: 9.00 | BY23: -0.39 | BZ23: 2.75 | CA23: 1.00 | CB23: 9.00 | CC23: -0.23 | CD23: -2.11 | CE23: 1.00 | CF23: 9.00 | CG23: -0.39 | CH23: -3.50 | CI23: 1.00 | CO23: 0.90 | CP23: 0.10 | CQ23: 9.00 | CR23: 2.00 | CS23: 18.00 | CT23: 1.00 | CU23: 4.50 | CV23: 5.00 | CW23: 9.00 | CX23: 1.00 | CY23: 18.00 | CZ23: -0.78 | DA23: -7.00 | DB23: 2.00 | DC23: 18.00 | DD23: -0.47 | DE23: -4.22 | DF23: 2.00 | DG23: 18.00 | DH23: -0.78 | DI23: 5.50 | DJ23: 2.00 | DP23: 0.90 | DQ23: 0.10 | DR23: 4.50 | DS23: 1.00 | DT23: 9.00 | DU23: 0.50 | DV23: 5.00 | DW23: 2.25 | DX23: 4.50 | DY23: 2.50 | EB23: =EB15*EB19 -> 2,000.00 | EH23: 0.90 | EI23: 0.10 | EJ23: 27.00 | EK23: 6.00 | EL23: 54.00 | EM23: 3.00 | EN23: 18.00 | EO23: 20.00 | EP23: 27.00 | EQ23: 6.00 | ER23: 54.00 | ES23: 3.00 | ET23: 30.00 | EU23: 13.50 | EV23: 27.00 | EW23: 15.00 | EX23: 13.50 | EY23: 15.00 | EZ23: 27.00 | FA23: 3.00 | FB23: 54.00 | FC23: -1.407407407 | FD23: (12.67) | FE23: 6.00 | FF23: 54.00 | FG23: -2.333333333 | FH23: 16.50 | FI23: 6.00 | FJ23: 54.00 | FK23: -2.333333333 | FL23: (21.00) | FM23: 6.00 | FO23: 6.885714286 | FP23: 6.885714286 | FQ23: 22.40 | GB23: isobeneficio y1 | GC23: =(GC5*GC15)-(GC6*GC15*GC15)-(GC6*GC15*GC16)-(GC7*(GC15^2)+(GC8*GC15)+GC9) -> 40,000.00 | GI23: 0.90 | GJ23: 0.10 | GK23: 54.00 | GL23: 12.00 | GM23: 108.00 | GN23: 6.00 | GO23: 36.00 | GP23: 40.00 | GQ23: 40.00 | GR23: 36.00 | GS23: 54.00 | GT23: 12.00 | GU23: 108.00 | GV23: 6.00 | GW23: 60.00 | GX23: 27.00 | GY23: 54.00 | GZ23: 30.00 | HA23: 30.00 | HB23: 27.00 | HC23: 27.00 | HD23: 30.00 | HE23: 60.00 | HF23: 54.00 | HG23: 54.00 | HH23: 60.00 | HI23: 108.00 | HJ23: -2.81 | HK23: -25.33 | HL23: 12.00 | HM23: 108.00 | HN23: -4.666666667 | HO23: 33.00 | HP23: 12.00 | HQ23: 108.00 | HR23: -4.666666667 | HS23: -42.00 | HT23: 12.00 | HV23: -55.23018868 | HW23: -55.23018868 | HX23: 42.40
D24: 0.95 | E24: 0.05 | F24: 47.50 | G24: 5.00 | H24: 95.00 | I24: 2.50 | J24: 31.67 | K24: 33.33 | L24: 95.00 | M24: -6.695906433 | N24: (127.22) | O24: 5.00 | P24: 95.00 | Q24: -8.157894737 | R24: (30.00) | S24: 5.00 | T24: 95.00 | U24: -8.157894737 | V24: (155.00) | W24: 5.00 | AA24: Q de la empresa 1 | AB24: =$BL$5/(-4*$BL$6) -> 2.50 | AD24: 0.95 | AE24: 0.05 | AF24: 95.00 | AG24: 2.50 | AH24: 47.50 | AI24: 5.00 | AJ24: 50.00 | AK24: 47.50 | AL24: 47.50 | AM24: 50.00 | AN24: 95.00 | AO24: 5.00 | AP24: 97.50 | AQ24: 2.50 | AR24: 95.00 | AS24: 1.73 | AT24: 32.78 | AU24: 5.00 | AV24: 95.00 | AW24: 2.50 | AX24: 2.50 | AY24: 2.50 | BK24: Q de la empresa 1 | BL24: =$BL$5/(-4*$BL$6) -> 2.50 | BN24: 0.95 | BO24: 0.05 | BP24: 4.75 | BQ24: 0.50 | BR24: 9.50 | BS24: 0.25 | BT24: 5.00 | BU24: 2.38 | BV24: 4.75 | BW24: 2.50 | BX24: 9.50 | BY24: -0.82 | BZ24: -3.00 | CA24: 0.50 | CB24: 9.50 | CC24: -0.67 | CD24: -12.72 | CE24: 0.50 | CF24: 9.50 | CG24: -0.82 | CH24: -15.50 | CI24: 0.50 | CO24: 0.95 | CP24: 0.05 | CQ24: 9.50 | CR24: 1.00 | CS24: 19.00 | CT24: 0.50 | CU24: 4.75 | CV24: 5.00 | CW24: 9.50 | CX24: 0.50 | CY24: 19.00 | CZ24: -1.63 | DA24: -31.00 | DB24: 1.00 | DC24: 19.00 | DD24: -1.34 | DE24: -25.44 | DF24: 1.00 | DG24: 19.00 | DH24: -1.63 | DI24: -6.00 | DJ24: 1.00 | DP24: 0.95 | DQ24: 0.05 | DR24: 4.75 | DS24: 0.50 | DT24: 9.50 | DU24: 0.25 | DV24: 5.00 | DW24: 2.38 | DX24: 4.75 | DY24: 2.50 | EB24: =EB16*EB19 -> 2,000.00 | EH24: 0.95 | EI24: 0.05 | EJ24: 28.50 | EK24: 3.00 | EL24: 57.00 | EM24: 1.50 | EN24: 19.00 | EO24: 20.00 | EP24: 28.50 | EQ24: 3.00 | ER24: 57.00 | ES24: 1.50 | ET24: 30.00 | EU24: 14.25 | EV24: 28.50 | EW24: 15.00 | EX24: 14.25 | EY24: 15.00 | EZ24: 28.50 | FA24: 1.50 | FB24: 57.00 | FC24: -4.01754386 | FD24: (76.33) | FE24: 3.00 | FF24: 57.00 | FG24: -4.894736842 | FH24: (18.00) | FI24: 3.00 | FJ24: 57.00 | FK24: -4.894736842 | FL24: (93.00) | FM24: 3.00 | FO24: 5.405726872 | FP24: 5.405726872 | FQ24: 22.70 | GB24: isobeneficio y2 | GC24: =(GC5*GC16)-(GC6*GC15*GC16)-(GC6*GC16*GC16)-(GC10*(GC16^2)+(GC11*GC16)+GC12) -> 40,000.00 | GI24: 0.95 | GJ24: 0.05 | GK24: 57.00 | GL24: 6.00 | GM24: 114.00 | GN24: 3.00 | GO24: 38.00 | GP24: 40.00 | GQ24: 40.00 | GR24: 38.00 | GS24: 57.00 | GT24: 6.00 | GU24: 114.00 | GV24: 3.00 | GW24: 60.00 | GX24: 28.50 | GY24: 57.00 | GZ24: 30.00 | HA24: 30.00 | HB24: 28.50 | HC24: 28.50 | HD24: 30.00 | HE24: 60.00 | HF24: 57.00 | HG24: 57.00 | HH24: 60.00 | HI24: 114.00 | HJ24: -8.04 | HK24: -152.67 | HL24: 6.00 | HM24: 114.00 | HN24: -9.789473684 | HO24: -36.00 | HP24: 6.00 | HQ24: 114.00 | HR24: -9.789473684 | HS24: -186.00 | HT24: 6.00 | HV24: -55.86159251 | HW24: -55.86159251 | HX24: 42.70
A25: COLUSIÓN | D25: 1.00 | E25: 0 | F25: =$B$5/(2*$B$6*-1)*D25 -> 50.00 | G25: 0 | H25: =$B$5/($B$6*-1)*D25 -> 100.00 | I25: =$B$5/(2*$B$6*-1)*E25 -> 0 | J25: 33.33 | K25: 33.33 | L25: 100.00 | M25: -11.11111111 | O25: 0 | P25: 100.00 | Q25: -12.5 | S25: 0 | T25: 100.00 | U25: -12.5 | W25: 0 | AA25: Q de la empresa 2 | AB25: =$BL$5/(-4*$BL$6) -> 2.50 | AD25: 1.00 | AE25: 0 | AF25: 100.00 | AG25: 0 | AH25: 50.00 | AI25: 0 | AJ25: 50.00 | AK25: 50.00 | AL25: 50.00 | AM25: 50.00 | AN25: 100.00 | AO25: 0.00 | AQ25: 0.00 | AR25: 100.00 | AS25: -3.11 | AU25: 0.00 | AV25: 100.00 | AW25: -2.38 | AY25: 0.00 | BK25: Q de la empresa 2 | BL25: =$BL$5/(-4*$BL$6) -> 2.50 | BN25: 1.00 | BO25: 0 | BP25: 5.00 | BQ25: 0 | BR25: 10.00 | BS25: 0 | BT25: 5.00 | BU25: 2.50 | BV25: 5.00 | BW25: 2.50 | BX25: 10.00 | BY25: -1.25 | CA25: 0.00 | CB25: 10.00 | CC25: -1.11 | CE25: 0.00 | CF25: 10.00 | CG25: -1.25 | CI25: 0.00 | CL25: Q de la empresa 1 | CM25: =CM5/(-2*CM6) -> 10.00 | CO25: 1.00 | CP25: 0 | CQ25: 10.00 | CR25: 0 | CS25: 20.00 | CT25: 0 | CU25: 5.00 | CV25: 5.00 | CW25: 10.00 | CX25: 0 | CY25: 20.00 | CZ25: -2.50 | DB25: 0.00 | DC25: 20.00 | DD25: -2.22 | DF25: 0.00 | DG25: 20.00 | DH25: -2.50 | DJ25: 0.00 | DP25: 1.00 | DQ25: 0 | DR25: 5.00 | DS25: 0 | DT25: 10.00 | DU25: 0 | DV25: 5.00 | DW25: 2.50 | DX25: 5.00 | DY25: 2.50 | EH25: 1.00 | EI25: 0 | EJ25: 30.00 | EK25: 0 | EL25: 60.00 | EM25: 0 | EN25: 20.00 | EO25: 20.00 | EP25: 30.00 | EQ25: 0 | ER25: 60.00 | ES25: 0 | ET25: 30.00 | EU25: 15.00 | EV25: 30.00 | EW25: 15.00 | EX25: 15.00 | EY25: 15.00 | EZ25: 30.00 | FA25: 0 | FB25: 60.00 | FC25: -6.666666667 | FE25: 0 | FF25: 60.00 | FG25: -7.5 | FI25: 0 | FJ25: 60.00 | FK25: -7.5 | FM25: 0 | FO25: 3.956521739 | FP25: 3.956521739 | FQ25: =FR4*1.15 -> 23 | GI25: 1.00 | GJ25: 0 | GK25: =($GC$5+$GC$8*-1)/(2*($GC$6*-1+$GC$7))-((($GC$6*-1)/(2*($GC$6*-1+$GC$7)))*GL25) -> 60.00 | GL25: 0 | GM25: 120.00 | GN25: 0 | GO25: 40.00 | GP25: 40.00 | GQ25: 40.00 | GR25: 40.00 | GS25: 60.00 | GT25: 0 | GU25: 120.00 | GV25: 0 | GW25: 60.00 | GX25: 30.00 | GY25: 60.00 | GZ25: 30.00 | HA25: 30.00 | HB25: 30.00 | HC25: 30.00 | HD25: 30.00 | HE25: 60.00 | HF25: 60.00 | HG25: 60.00 | HH25: 60.00 | HI25: 120.00 | HJ25: -13.33 | HL25: 0 | HM25: 120.00 | HN25: -15 | HP25: 0 | HQ25: 120.00 | HR25: -15 | HT25: 0 | HV25: -62.52173913 | HW25: -62.52173913 | HX25: =HY4*1.15 -> 46
A26: Q de la empresa 1 | B26: =$B$5/(-4*$B$6) -> 25.00 | AA26: Producción de la industria | AB26: =AB24+AB25 -> 5.00 | BK26: Producción de la industria | BL26: =BL24+BL25 -> 5.00 | CL26: Q de la empresa 2 | CM26: =CM5/(-4*CM6) -> 5.00 | EY26: =(-$EB$22/(-$EB$6*EJ25))+($EB$5/-$EB$6)-EJ25 -> -36.66666667
A27: Q de la empresa 2 | B27: =$B$5/(-4*$B$6) -> 25.00 | AA27: Precio | AB27: =AB5-((AB6*AB26)*-1) -> 190.00 | BK27: Precio | BL27: =BL5-((BL6*BL26)*-1) -> 10.00 | CL27: Producción Industria | CM27: =SUM(CM25:CM26) -> 15.00 | GE27: =((-GC21)+(GC5*HI6)-((GC6*-1)*HI6^2)-(GC7*HI6^2)+(GC8*-1*HI6)-GC9)/((GC6*-1)*HI6) -> -152.67
A28: Producción de la industria | B28: =B26+B27 -> 50.00 | AA28: Beneficio | AB28: =AB25*AB27 -> 475.00 | BK28: Beneficio | BL28: =BL25*BL27 -> 25.00 | CL28: Precio | CM28: =CM5+(CM6*CM27) -> 10.00 | GL28: para trabajar el modelo de Bertrand, se recomienda igualar la estructura de costos
A29: Precio | B29: =B5-((B6*B28)*-1) -> 100.00 | CL29: Beneficio 1 | CM29: =CM25*CM28 -> 100.00 | GL29: de ambas empresas
A30: Beneficio | B30: =B27*B29 -> 2,500.00 | CL30: Beneficio 2 | CM30: =CM26*CM28 -> 50.00 | GL30: de lo contrario, tienen costos marginales diferentes y precios diferentres
AI31: =AB10 -> 50.00 | AJ31: =(-$BL$15+($BL$5*AI31)+(($BL$6)*(AI31^2)))/((-$BL$6)*AI31) -> -40.125 | BS31: =BL10 -> 2.50 | BT31: =(-$BL$15+($BL$5*BS31)+(($BL$6)*(BS31^2)))/((-$BL$6)*BS31) -> 5 | GL31: con tres posibles soluciones: | GU31: =EL5 -> 0 | GV31: =(-$EB$23+($EB$5*FB5)+(($EB$6)*(FB5^2)))/((-$EB$6)*FB5) -> 
A32: BEN0 | B32: =B14*2/3 -> 1,481.48 | GL32: precio bajo, perecio alto o precio promedio | GU32: 3.00 | GV32: -76.33 | GW32: =(-GC21+($GC$5*HI6)+(($GC$6)*(FB6^2)))/((-$GC$6)*FB6) -> -296.33
A33: BEN1 | B33: =B14*1/3 -> 740.74 | GU33: 6.00 | GV33: -12.66666667
A34: BEN4 | B34: =B14*4/3 -> 2,962.96 | GU34: 9.00 | GV34: 6.555555556
A35: BEN5 | B35: =B14*5/3 -> 3,703.70 | GI35: Ponderador 1 | GJ35: Ponderador 2 | GK35: y | GL35: p | GM35: CM1 | GN35: CM2 | GU35: 12.00 | GV35: 14.66666667
A36: BEN6 | B36: =$B$14*1/4 -> 555.56 | GI36: 0 | GJ36: =1-GI36 -> 1.00 | GK36: =($GC$5/$GC$6*-1)*GI36 -> 0 | GL36: =$GC$5+($GC$6*GK36) -> 600.00 | GM36: =(2*GK36*$GC$7)+($GC$8) -> 0 | GN36: =(2*GK36*$GC$10)+($GC$11) -> 0 | GU36: 15.00 | GV36: 18.33333333
A37: BEN7 | B37: =$B$14*2/4 -> 1,111.11 | GI37: 0.05 | GJ37: =1-GI37 -> 0.95 | GK37: =($GC$5/$GC$6*-1)*GI37 -> 6.00 | GL37: =$GC$5+($GC$6*GK37) -> 570.00 | GM37: =(2*GK37*$GC$7)+($GC$8) -> 0 | GN37: =(2*GK37*$GC$10)+($GC$11) -> 0
A38: BEN8 | B38: =$B$14*3/4 -> 1,666.67 | GI38: 0.10 | GJ38: 0.90 | GK38: 12.00 | GL38: 540.00 | GM38: 0 | GN38: 0
A39: BEN9 | B39: =$B$14*5/4 -> 2,777.78 | GI39: 0.15 | GJ39: 0.85 | GK39: 18.00 | GL39: 510.00 | GM39: 0 | GN39: 0
GI40: 0.20 | GJ40: 0.80 | GK40: 24.00 | GL40: 480.00 | GM40: 0 | GN40: 0
GI41: 0.25 | GJ41: 0.75 | GK41: 30.00 | GL41: 450.00 | GM41: 0 | GN41: 0
GI42: 0.30 | GJ42: 0.70 | GK42: 36.00 | GL42: 420.00 | GM42: 0 | GN42: 0
A43: a | B43: =Du_Isobe!D6 -> 10.0 | D43: E2CR3 | F43: E1CR3 | H43: E2ISO1 | L43: E2ISO2 | N43: E1ISO2 | P43: Ben 0 | T43: Ben 1 | X43: Ben 4 | AB43: Ben 5 | AF43: Ben 6 | AJ43: Ben 7 | AN43: Ben 8 | AR43: Ben 9 | AV43: Beneficio prueba movible | BJ43: EMPRESA 1 | BL43: EMPRESA 2 | BN43: Cournot | GI43: 0.35 | GJ43: 0.65 | GK43: 42.00 | GL43: 390.00 | GM43: 0 | GN43: 0
A44: b | B44: =Du_Isobe!D7 -> -1.0 | D44: X | E44: Y | F44: X | G44: Y | H44: X | I44: Y | J44: X | K44: Y | L44: X | M44: Y | N44: X | O44: Y | P44: X | Q44: Y | R44: X | S44: Y | T44: X | U44: Y | V44: X | W44: Y | X44: X | Y44: Y | Z44: X | AA44: Y | AB44: X | AC44: Y | AD44: X | AE44: Y | AF44: X | AG44: Y | AH44: X | AI44: Y | AJ44: X | AK44: Y | AL44: X | AM44: Y | AN44: X | AO44: Y | AP44: X | AQ44: Y | AR44: X | AS44: Y | AT44: X | AU44: Y | AV44: X | AW44: Y | AX44: X | AY44: Y | AZ44: Ponderador 1 | BA44: Ponderador 2 | BB44: X1line | BC44: Y1line | BD44: X2line | BE44: Y2line | BF44: LINEA IMAGINARIA | BH44: X1line | BI44: Y1line | BJ44: X | BK44: Y | BL44: X | BM44: Y | BN44: X1line | BO44: Y1line | GI44: 0.40 | GJ44: 0.60 | GK44: 48.00 | GL44: 360.00 | GM44: 0 | GN44: 0
D45: 0 | E45: =(-$B$52+($B$43*D45)+(($B$44)*(D45^2)))/((-$B$44)*D45) ->  | F45: =(-$B$52+($B$43*G45)+(($B$44)*(G45^2)))/((-$B$44)*G45) -> (1.11) | G45: 10.00 | H45: =D45 -> 0 | I45: =(-$B$59+($B$43*H45)+(($B$44)*(H45^2)))/((-$B$44)*H45) ->  | J45: =(-$B$60+($B$43*K45)+(($B$44)*(K45^2)))/((-$B$44)*K45) -> (0.63) | K45: =G45 -> 10.00 | L45: =H45 -> 0 | M45: =(-$B$68+($B$43*L45)+(($B$44)*(L45^2)))/((-$B$44)*L45) ->  | N45: =(-$B$68+($B$43*O45)+(($B$44)*(O45^2)))/((-$B$44)*O45) -> (1.25) | O45: =G45 -> 10.00 | P45: =H45 -> 0 | Q45: =(-$B$70+($B$43*P45)+(($B$44)*(P45^2)))/((-$B$44)*P45) ->  | R45: =(-$B$70+($B$43*S45)+(($B$44)*(S45^2)))/((-$B$44)*S45) -> (0.74) | S45: =G45 -> 10.00 | T45: =P45 -> 0 | U45: =(-$B$71+($B$43*T45)+(($B$44)*(T45^2)))/((-$B$44)*T45) ->  | V45: =(-$B$71+($B$43*W45)+(($B$44)*(W45^2)))/((-$B$44)*W45) -> (0.37) | W45: =K45 -> 10.00 | X45: =T45 -> 0 | Y45: =(-$B$72+($B$43*X45)+(($B$44)*(X45^2)))/((-$B$44)*X45) ->  | Z45: =(-$B$72+($B$43*AA45)+(($B$44)*(AA45^2)))/((-$B$44)*AA45) -> (1.48) | AA45: =S45 -> 10.00 | AB45: =X45 -> 0 | AC45: =(-$B$73+($B$43*AB45)+(($B$44)*(AB45^2)))/((-$B$44)*AB45) ->  | AD45: =(-$B$73+($B$43*AE45)+(($B$44)*(AE45^2)))/((-$B$44)*AE45) -> (1.85) | AE45: =W45 -> 10.00 | AF45: =AB45 -> 0 | AG45: =(-$B$74+($B$43*AF45)+(($B$44)*(AF45^2)))/((-$B$44)*AF45) ->  | AH45: =(-$B$74+($B$43*AI45)+(($B$44)*(AI45^2)))/((-$B$44)*AI45) -> (0.28) | AI45: =AA45 -> 10.00 | AJ45: =AF45 -> 0 | AK45: =(-$B$75+($B$43*AJ45)+(($B$44)*(AJ45^2)))/((-$B$44)*AJ45) ->  | AL45: =(-$B$75+($B$43*AM45)+(($B$44)*(AM45^2)))/((-$B$44)*AM45) -> (0.56) | AM45: =AE45 -> 10.00 | AN45: =AJ45 -> 0 | AO45: =(-$B$76+($B$43*AN45)+(($B$44)*(AN45^2)))/((-$B$44)*AN45) ->  | AP45: =(-$B$76+($B$43*AQ45)+(($B$44)*(AQ45^2)))/((-$B$44)*AQ45) -> (0.83) | AQ45: =AI45 -> 10.00 | AR45: =AN45 -> 0 | AS45: =(-$B$77+($B$43*AR45)+(($B$44)*(AR45^2)))/((-$B$44)*AR45) ->  | AT45: =(-$B$77+($B$43*AU45)+(($B$44)*(AU45^2)))/((-$B$44)*AU45) -> (1.39) | AU45: =AM45 -> 10.00 | AV45: =AR45 -> 0 | AW45: =(-$B$78+($B$43*AV45)+(($B$44)*(AV45^2)))/((-$B$44)*AV45) ->  | AX45: =(-$B$78+($B$43*AY45)+(($B$44)*(AY45^2)))/((-$B$44)*AY45) -> (0.63) | AY45: =AQ45 -> 10.00 | AZ45: 0 | BA45: =1-AZ45 -> 1.00 | BB45: =$B$55 -> 5.00 | BC45: =$B$56*AZ45 -> 0 | BD45: =$B$55*AZ45 -> 0 | BE45: =$B$56 -> 2.50 | BF45: =$B$43/(2*$B$44*-1)*AZ45 -> 0 | BG45: =$B$43/(2*$B$44*-1)*BA45 -> 5.00 | BH45: =$B$64 -> 2.50 | BI45: =$B$64*AZ45 -> 0 | BJ45: =$B$43/(2*$B$44*-1)*AZ45 -> 0 | BK45: =($B$43/$B$44)*-BA45 -> 10.00 | BL45: =$B$43/($B$44*-1)*AZ45 -> 0 | BM45: =$B$43/(2*$B$44*-1)*BA45 -> 5.00 | BN45: =$B$47*AZ45 -> 0 | BO45: =$B$47 -> 3.33 | GI45: 0.45 | GJ45: 0.55 | GK45: 54.00 | GL45: 330.00 | GM45: 0 | GN45: 0
D46: 0.50 | E46: =(-$B$52+($B$43*D46)+(($B$44)*(D46^2)))/((-$B$44)*D46) -> -12.72 | F46: =(-$B$52+($B$43*G46)+(($B$44)*(G46^2)))/((-$B$44)*G46) -> (0.67) | G46: 9.50 | H46: =D46 -> 0.50 | I46: =(-$B$59+($B$43*H46)+(($B$44)*(H46^2)))/((-$B$44)*H46) -> -15.5 | J46: =(-$B$60+($B$43*K46)+(($B$44)*(K46^2)))/((-$B$44)*K46) -> (0.16) | K46: =G46 -> 9.50 | L46: =H46 -> 0.50 | M46: =(-$B$68+($B$43*L46)+(($B$44)*(L46^2)))/((-$B$44)*L46) -> -15.5 | N46: =(-$B$68+($B$43*O46)+(($B$44)*(O46^2)))/((-$B$44)*O46) -> (0.82) | O46: =G46 -> 9.50 | P46: =H46 -> 0.50 | Q46: =(-$B$70+($B$43*P46)+(($B$44)*(P46^2)))/((-$B$44)*P46) -> -5.314814815 | R46: =(-$B$70+($B$43*S46)+(($B$44)*(S46^2)))/((-$B$44)*S46) -> (0.28) | S46: =G46 -> 9.50 | T46: =P46 -> 0.50 | U46: =(-$B$71+($B$43*T46)+(($B$44)*(T46^2)))/((-$B$44)*T46) -> 2.092592593 | V46: =(-$B$71+($B$43*W46)+(($B$44)*(W46^2)))/((-$B$44)*W46) -> 0.11 | W46: =K46 -> 9.50 | X46: =T46 -> 0.50 | Y46: =(-$B$72+($B$43*X46)+(($B$44)*(X46^2)))/((-$B$44)*X46) -> -20.12962963 | Z46: =(-$B$72+($B$43*AA46)+(($B$44)*(AA46^2)))/((-$B$44)*AA46) -> (1.06) | AA46: =S46 -> 9.50 | AB46: =X46 -> 0.50 | AC46: =(-$B$73+($B$43*AB46)+(($B$44)*(AB46^2)))/((-$B$44)*AB46) -> -27.53703704 | AD46: =(-$B$73+($B$43*AE46)+(($B$44)*(AE46^2)))/((-$B$44)*AE46) -> (1.45) | AE46: =W46 -> 9.50 | AF46: =AB46 -> 0.50 | AG46: =(-$B$74+($B$43*AF46)+(($B$44)*(AF46^2)))/((-$B$44)*AF46) -> 3.944444444 | AH46: =(-$B$74+($B$43*AI46)+(($B$44)*(AI46^2)))/((-$B$44)*AI46) -> 0.21 | AI46: =AA46 -> 9.50 | AJ46: =AF46 -> 0.50 | AK46: =(-$B$75+($B$43*AJ46)+(($B$44)*(AJ46^2)))/((-$B$44)*AJ46) -> -1.611111111 | AL46: =(-$B$75+($B$43*AM46)+(($B$44)*(AM46^2)))/((-$B$44)*AM46) -> (0.08) | AM46: =AE46 -> 9.50 | AN46: =AJ46 -> 0.50 | AO46: =(-$B$76+($B$43*AN46)+(($B$44)*(AN46^2)))/((-$B$44)*AN46) -> -7.166666667 | AP46: =(-$B$76+($B$43*AQ46)+(($B$44)*(AQ46^2)))/((-$B$44)*AQ46) -> (0.38) | AQ46: =AI46 -> 9.50 | AR46: =AN46 -> 0.50 | AS46: =(-$B$77+($B$43*AR46)+(($B$44)*(AR46^2)))/((-$B$44)*AR46) -> -18.27777778 | AT46: =(-$B$77+($B$43*AU46)+(($B$44)*(AU46^2)))/((-$B$44)*AU46) -> (0.96) | AU46: =AM46 -> 9.50 | AV46: =AR46 -> 0.50 | AW46: =(-$B$78+($B$43*AV46)+(($B$44)*(AV46^2)))/((-$B$44)*AV46) -> -3.1 | AX46: =(-$B$78+($B$43*AY46)+(($B$44)*(AY46^2)))/((-$B$44)*AY46) -> (0.16) | AY46: =AQ46 -> 9.50 | AZ46: 0.05 | BA46: =1-AZ46 -> 0.95 | BB46: =$B$55 -> 5.00 | BC46: =$B$56*AZ46 -> 0.13 | BD46: =$B$55*AZ46 -> 0.25 | BE46: =$B$56 -> 2.50 | BF46: =$B$43/(2*$B$44*-1)*AZ46 -> 0.25 | BG46: =$B$43/(2*$B$44*-1)*BA46 -> 4.75 | BH46: =$B$64 -> 2.50 | BI46: =$B$64*AZ46 -> 0.13 | BJ46: =$B$43/(2*$B$44*-1)*AZ46 -> 0.25 | BK46: =($B$43/$B$44)*-BA46 -> 9.50 | BL46: =$B$43/($B$44*-1)*AZ46 -> 0.50 | BM46: =$B$43/(2*$B$44*-1)*BA46 -> 4.75 | BN46: =$B$47*AZ46 -> 0.17 | BO46: =$B$47 -> 3.33 | GI46: 0.50 | GJ46: 0.50 | GK46: 60.00 | GL46: 300.00 | GM46: 0 | GN46: 0
A47: Q de la empresa 1 | B47: =B43/(-3*B44) -> 3.33 | D47: 1.00 | E47: -2.11 | F47: (0.23) | G47: 9.00 | H47: 1.00 | I47: -3.5 | J47: 0.31 | K47: 9.00 | L47: 1.00 | M47: -3.5 | N47: (0.39) | O47: 9.00 | P47: 1.00 | Q47: 1.592592593 | R47: 0.18 | S47: 9.00 | T47: 1.00 | U47: 5.296296296 | V47: 0.59 | W47: 9.00 | X47: 1.00 | Y47: -5.814814815 | Z47: (0.65) | AA47: 9.00 | AB47: 1.00 | AC47: -9.518518519 | AD47: (1.06) | AE47: 9.00 | AF47: 1.00 | AG47: 6.222222222 | AH47: 0.69 | AI47: 9.00 | AJ47: 1.00 | AK47: 3.444444444 | AL47: 0.38 | AM47: 9.00 | AN47: 1.00 | AO47: 0.6666666667 | AP47: 0.07 | AQ47: 9.00 | AR47: 1.00 | AS47: -4.888888889 | AT47: (0.54) | AU47: 9.00 | AV47: 1.00 | AW47: 2.7 | AX47: 0.30 | AY47: 9.00 | AZ47: 0.10 | BA47: 0.90 | BB47: 5.00 | BC47: 0.25 | BD47: 0.50 | BE47: 2.50 | BF47: 0.50 | BG47: 4.50 | BH47: 2.50 | BI47: 0.25 | BJ47: 0.50 | BK47: 9.00 | BL47: 1.00 | BM47: 4.50 | BN47: 0.33 | BO47: 3.33 | GI47: 0.55 | GJ47: 0.45 | GK47: 66.00 | GL47: 270.00 | GM47: 0 | GN47: 0
A48: Q de la empresa 2 | B48: =B43/(3*-B44) -> 3.33 | D48: 1.50 | E48: 1.09 | F48: 0.19 | G48: 8.50 | H48: 1.50 | I48: 0.1666666667 | J48: 0.76 | K48: 8.50 | L48: 1.50 | M48: 0.1666666667 | N48: 0.03 | O48: 8.50 | P48: 1.50 | Q48: 3.561728395 | R48: 0.63 | S48: 8.50 | T48: 1.50 | U48: 6.030864198 | V48: 1.06 | W48: 8.50 | X48: 1.50 | Y48: -1.37654321 | Z48: (0.24) | AA48: 8.50 | AB48: 1.50 | AC48: -3.845679012 | AD48: (0.68) | AE48: 8.50 | AF48: 1.50 | AG48: 6.648148148 | AH48: 1.17 | AI48: 8.50 | AJ48: 1.50 | AK48: 4.796296296 | AL48: 0.85 | AM48: 8.50 | AN48: 1.50 | AO48: 2.944444444 | AP48: 0.52 | AQ48: 8.50 | AR48: 1.50 | AS48: -0.7592592593 | AT48: (0.13) | AU48: 8.50 | AV48: 1.50 | AW48: 4.3 | AX48: 0.76 | AY48: 8.50 | AZ48: 0.15 | BA48: 0.85 | BB48: 5.00 | BC48: 0.38 | BD48: 0.75 | BE48: 2.50 | BF48: 0.75 | BG48: 4.25 | BH48: 2.50 | BI48: 0.38 | BJ48: 0.75 | BK48: 8.50 | BL48: 1.50 | BM48: 4.25 | BN48: 0.50 | BO48: 3.33 | GI48: 0.60 | GJ48: 0.40 | GK48: 72.00 | GL48: 240.00 | GM48: 0 | GN48: 0
A49: Producción Industria | B49: =SUM(B47:B48) -> 6.67 | D49: 2.00 | E49: 2.44 | F49: 0.61 | G49: 8.00 | H49: 2.00 | I49: 1.75 | J49: 1.22 | K49: 8.00 | L49: 2.00 | M49: 1.75 | N49: 0.44 | O49: 8.00 | P49: 2.00 | Q49: 4.296296296 | R49: 1.07 | S49: 8.00 | T49: 2.00 | U49: 6.148148148 | V49: 1.54 | W49: 8.00 | X49: 2.00 | Y49: 0.5925925926 | Z49: 0.15 | AA49: 8.00 | AB49: 2.00 | AC49: -1.259259259 | AD49: (0.31) | AE49: 8.00 | AF49: 2.00 | AG49: 6.611111111 | AH49: 1.65 | AI49: 8.00 | AJ49: 2.00 | AK49: 5.222222222 | AL49: 1.31 | AM49: 8.00 | AN49: 2.00 | AO49: 3.833333333 | AP49: 0.96 | AQ49: 8.00 | AR49: 2.00 | AS49: 1.055555556 | AT49: 0.26 | AU49: 8.00 | AV49: 2.00 | AW49: 4.85 | AX49: 1.21 | AY49: 8.00 | AZ49: 0.20 | BA49: 0.80 | BB49: 5.00 | BC49: 0.50 | BD49: 1.00 | BE49: 2.50 | BF49: 1.00 | BG49: 4.00 | BH49: 2.50 | BI49: 0.50 | BJ49: 1.00 | BK49: 8.00 | BL49: 2.00 | BM49: 4.00 | BN49: 0.67 | BO49: 3.33 | GI49: 0.65 | GJ49: 0.35 | GK49: 78.00 | GL49: 210.00 | GM49: 0 | GN49: 0
A50: MAX Q de la empresa 2 | B50: =B43/(2*-B44) -> 5.00 | D50: 2.50 | E50: 3.06 | F50: 1.02 | G50: 7.50 | H50: 2.50 | I50: 2.5 | J50: 1.67 | K50: 7.50 | L50: 2.50 | M50: 2.5 | N50: 0.83 | O50: 7.50 | P50: 2.50 | Q50: 4.537037037 | R50: 1.51 | S50: 7.50 | T50: 2.50 | U50: 6.018518519 | V50: 2.01 | W50: 7.50 | X50: 2.50 | Y50: 1.574074074 | Z50: 0.52 | AA50: 7.50 | AB50: 2.50 | AC50: 0.09259259259 | AD50: 0.03 | AE50: 7.50 | AF50: 2.50 | AG50: 6.388888889 | AH50: 2.13 | AI50: 7.50 | AJ50: 2.50 | AK50: 5.277777778 | AL50: 1.76 | AM50: 7.50 | AN50: 2.50 | AO50: 4.166666667 | AP50: 1.39 | AQ50: 7.50 | AR50: 2.50 | AS50: 1.944444444 | AT50: 0.65 | AU50: 7.50 | AV50: 2.50 | AW50: 4.98 | AX50: 1.66 | AY50: 7.50 | AZ50: 0.25 | BA50: 0.75 | BB50: 5.00 | BC50: 0.63 | BD50: 1.25 | BE50: 2.50 | BF50: 1.25 | BG50: 3.75 | BH50: 2.50 | BI50: 0.63 | BJ50: 1.25 | BK50: 7.50 | BL50: 2.50 | BM50: 3.75 | BN50: 0.83 | BO50: 3.33 | GI50: 0.70 | GJ50: 0.30 | GK50: 84.00 | GL50: 180.00 | GM50: 0 | GN50: 0
A51: Precio | B51: =B43+(B44*B49) -> 3.33 | D51: 3.00 | E51: 3.30 | F51: 1.41 | G51: 7.00 | H51: 3.00 | I51: 2.833333333 | J51: 2.11 | K51: 7.00 | L51: 3.00 | M51: 2.833333333 | N51: 1.21 | O51: 7.00 | P51: 3.00 | Q51: 4.530864198 | R51: 1.94 | S51: 7.00 | T51: 3.00 | U51: 5.765432099 | V51: 2.47 | W51: 7.00 | X51: 3.00 | Y51: 2.061728395 | Z51: 0.88 | AA51: 7.00 | AB51: 3.00 | AC51: 0.8271604938 | AD51: 0.35 | AE51: 7.00 | AF51: 3.00 | AG51: 6.074074074 | AH51: 2.60 | AI51: 7.00 | AJ51: 3.00 | AK51: 5.148148148 | AL51: 2.21 | AM51: 7.00 | AN51: 3.00 | AO51: 4.222222222 | AP51: 1.81 | AQ51: 7.00 | AR51: 3.00 | AS51: 2.37037037 | AT51: 1.02 | AU51: 7.00 | AV51: 3.00 | AW51: 4.9 | AX51: 2.10 | AY51: 7.00 | AZ51: 0.30 | BA51: 0.70 | BB51: 5.00 | BC51: 0.75 | BD51: 1.50 | BE51: 2.50 | BF51: 1.50 | BG51: 3.50 | BH51: 2.50 | BI51: 0.75 | BJ51: 1.50 | BK51: 7.00 | BL51: 3.00 | BM51: 3.50 | BN51: 1.00 | BO51: 3.33 | GI51: 0.75 | GJ51: 0.25 | GK51: 90.00 | GL51: 150.00 | GM51: 0 | GN51: 0
A52: Beneficio | B52: =B47*B51 -> 11.11 | D52: 3.50 | E52: 3.33 | F52: 1.79 | G52: 6.50 | H52: 3.50 | I52: 2.928571429 | J52: 2.54 | K52: 6.50 | L52: 3.50 | M52: 2.928571429 | N52: 1.58 | O52: 6.50 | P52: 3.50 | Q52: 4.383597884 | R52: 2.36 | S52: 6.50 | T52: 3.50 | U52: 5.441798942 | V52: 2.93 | W52: 6.50 | X52: 3.50 | Y52: 2.267195767 | Z52: 1.22 | AA52: 6.50 | AB52: 3.50 | AC52: 1.208994709 | AD52: 0.65 | AE52: 6.50 | AF52: 3.50 | AG52: 5.706349206 | AH52: 3.07 | AI52: 6.50 | AJ52: 3.50 | AK52: 4.912698413 | AL52: 2.65 | AM52: 6.50 | AN52: 3.50 | AO52: 4.119047619 | AP52: 2.22 | AQ52: 6.50 | AR52: 3.50 | AS52: 2.531746032 | AT52: 1.36 | AU52: 6.50 | AV52: 3.50 | AW52: 4.7 | AX52: 2.53 | AY52: 6.50 | AZ52: 0.35 | BA52: 0.65 | BB52: 5.00 | BC52: 0.88 | BD52: 1.75 | BE52: 2.50 | BF52: 1.75 | BG52: 3.25 | BH52: 2.50 | BI52: 0.88 | BJ52: 1.75 | BK52: 6.50 | BL52: 3.50 | BM52: 3.25 | BN52: 1.17 | BO52: 3.33 | GI52: 0.80 | GJ52: 0.20 | GK52: 96.00 | GL52: 120.00 | GM52: 0 | GN52: 0
D53: 4.00 | E53: 3.22 | F53: 2.15 | G53: 6.00 | H53: 4.00 | I53: 2.875 | J53: 2.96 | K53: 6.00 | L53: 4.00 | M53: 2.875 | N53: 1.92 | O53: 6.00 | P53: 4.00 | Q53: 4.148148148 | R53: 2.77 | S53: 6.00 | T53: 4.00 | U53: 5.074074074 | V53: 3.38 | W53: 6.00 | X53: 4.00 | Y53: 2.296296296 | Z53: 1.53 | AA53: 6.00 | AB53: 4.00 | AC53: 1.37037037 | AD53: 0.91 | AE53: 6.00 | AF53: 4.00 | AG53: 5.305555556 | AH53: 3.54 | AI53: 6.00 | AJ53: 4.00 | AK53: 4.611111111 | AL53: 3.07 | AM53: 6.00 | AN53: 4.00 | AO53: 3.916666667 | AP53: 2.61 | AQ53: 6.00 | AR53: 4.00 | AS53: 2.527777778 | AT53: 1.69 | AU53: 6.00 | AV53: 4.00 | AW53: 4.425 | AX53: 2.95 | AY53: 6.00 | AZ53: 0.40 | BA53: 0.60 | BB53: 5.00 | BC53: 1.00 | BD53: 2.00 | BE53: 2.50 | BF53: 2.00 | BG53: 3.00 | BH53: 2.50 | BI53: 1.00 | BJ53: 2.00 | BK53: 6.00 | BL53: 4.00 | BM53: 3.00 | BN53: 1.33 | BO53: 3.33 | GI53: 0.85 | GJ53: 0.15 | GK53: 102.00 | GL53: 90.00 | GM53: 0 | GN53: 0
A54: STACKELBERG | D54: 4.50 | E54: 3.03 | F54: 2.48 | G54: 5.50 | H54: 4.50 | I54: 2.722222222 | J54: 3.36 | K54: 5.50 | L54: 4.50 | M54: 2.722222222 | N54: 2.23 | O54: 5.50 | P54: 4.50 | Q54: 3.853909465 | R54: 3.15 | S54: 5.50 | T54: 4.50 | U54: 4.676954733 | V54: 3.83 | W54: 5.50 | X54: 4.50 | Y54: 2.20781893 | Z54: 1.81 | AA54: 5.50 | AB54: 4.50 | AC54: 1.384773663 | AD54: 1.13 | AE54: 5.50 | AF54: 4.50 | AG54: 4.882716049 | AH54: 3.99 | AI54: 5.50 | AJ54: 4.50 | AK54: 4.265432099 | AL54: 3.49 | AM54: 5.50 | AN54: 4.50 | AO54: 3.648148148 | AP54: 2.98 | AQ54: 5.50 | AR54: 4.50 | AS54: 2.413580247 | AT54: 1.97 | AU54: 5.50 | AV54: 4.50 | AW54: 4.1 | AX54: 3.35 | AY54: 5.50 | AZ54: 0.45 | BA54: 0.55 | BB54: 5.00 | BC54: 1.13 | BD54: 2.25 | BE54: 2.50 | BF54: 2.25 | BG54: 2.75 | BH54: 2.50 | BI54: 1.13 | BJ54: 2.25 | BK54: 5.50 | BL54: 4.50 | BM54: 2.75 | BN54: 1.50 | BO54: 3.33 | GI54: 0.90 | GJ54: 0.10 | GK54: 108.00 | GL54: 60.00 | GM54: 0 | GN54: 0
A55: Q de la empresa 1 | B55: =B43/(-2*B44) -> 5.00 | D55: 5.00 | E55: 2.78 | F55: 2.78 | G55: 5.00 | H55: 5.00 | I55: 2.5 | J55: 3.75 | K55: 5.00 | L55: 5.00 | M55: 2.5 | N55: 2.50 | O55: 5.00 | P55: 5.00 | Q55: 3.518518519 | R55: 3.52 | S55: 5.00 | T55: 5.00 | U55: 4.259259259 | V55: 4.26 | W55: 5.00 | X55: 5.00 | Y55: 2.037037037 | Z55: 2.04 | AA55: 5.00 | AB55: 5.00 | AC55: 1.296296296 | AD55: 1.30 | AE55: 5.00 | AF55: 5.00 | AG55: 4.444444444 | AH55: 4.44 | AI55: 5.00 | AJ55: 5.00 | AK55: 3.888888889 | AL55: 3.89 | AM55: 5.00 | AN55: 5.00 | AO55: 3.333333333 | AP55: 3.33 | AQ55: 5.00 | AR55: 5.00 | AS55: 2.222222222 | AT55: 2.22 | AU55: 5.00 | AV55: 5.00 | AW55: 3.74 | AX55: 3.74 | AY55: 5.00 | AZ55: 0.50 | BA55: 0.50 | BB55: 5.00 | BC55: 1.25 | BD55: 2.50 | BE55: 2.50 | BF55: 2.50 | BG55: 2.50 | BH55: 2.50 | BI55: 1.25 | BJ55: 2.50 | BK55: 5.00 | BL55: 5.00 | BM55: 2.50 | BN55: 1.67 | BO55: 3.33 | GI55: 0.95 | GJ55: 0.05 | GK55: 114.00 | GL55: 30.00 | GM55: 0 | GN55: 0
A56: Q de la empresa 2 | B56: =B43/(4*-B44) -> 2.50 | D56: 5.50 | E56: 2.48 | F56: 3.03 | G56: 4.50 | H56: 5.50 | I56: 2.227272727 | J56: 4.11 | K56: 4.50 | L56: 5.50 | M56: 2.227272727 | N56: 2.72 | O56: 4.50 | P56: 5.50 | Q56: 3.153198653 | R56: 3.85 | S56: 4.50 | T56: 5.50 | U56: 3.826599327 | V56: 4.68 | W56: 4.50 | X56: 5.50 | Y56: 1.806397306 | Z56: 2.21 | AA56: 4.50 | AB56: 5.50 | AC56: 1.132996633 | AD56: 1.38 | AE56: 4.50 | AF56: 5.50 | AG56: 3.994949495 | AH56: 4.88 | AI56: 4.50 | AJ56: 5.50 | AK56: 3.48989899 | AL56: 4.27 | AM56: 4.50 | AN56: 5.50 | AO56: 2.984848485 | AP56: 3.65 | AQ56: 4.50 | AR56: 5.50 | AS56: 1.974747475 | AT56: 2.41 | AU56: 4.50 | AV56: 5.50 | AW56: 3.354545455 | AX56: 4.10 | AY56: 4.50 | AZ56: 0.55 | BA56: 0.45 | BB56: 5.00 | BC56: 1.38 | BD56: 2.75 | BE56: 2.50 | BF56: 2.75 | BG56: 2.25 | BH56: 2.50 | BI56: 1.38 | BJ56: 2.75 | BK56: 4.50 | BL56: 5.50 | BM56: 2.25 | BN56: 1.83 | BO56: 3.33 | GI56: 1.00 | GJ56: 0 | GK56: 120.00 | GL56: 0 | GM56: 0 | GN56: 0
A57: Producción de la industria | B57: =B56+B55 -> 7.50 | D57: 6.00 | E57: 2.15 | F57: 3.22 | G57: 4.00 | H57: 6.00 | I57: 1.916666667 | J57: 4.44 | K57: 4.00 | L57: 6.00 | M57: 1.916666667 | N57: 2.88 | O57: 4.00 | P57: 6.00 | Q57: 2.765432099 | R57: 4.15 | S57: 4.00 | T57: 6.00 | U57: 3.382716049 | V57: 5.07 | W57: 4.00 | X57: 6.00 | Y57: 1.530864198 | Z57: 2.30 | AA57: 4.00 | AB57: 6.00 | AC57: 0.9135802469 | AD57: 1.37 | AE57: 4.00 | AF57: 6.00 | AG57: 3.537037037 | AH57: 5.31 | AI57: 4.00 | AJ57: 6.00 | AK57: 3.074074074 | AL57: 4.61 | AM57: 4.00 | AN57: 6.00 | AO57: 2.611111111 | AP57: 3.92 | AQ57: 4.00 | AR57: 6.00 | AS57: 1.685185185 | AT57: 2.53 | AU57: 4.00 | AV57: 6.00 | AW57: 2.95 | AX57: 4.43 | AY57: 4.00 | AZ57: 0.60 | BA57: 0.40 | BB57: 5.00 | BC57: 1.50 | BD57: 3.00 | BE57: 2.50 | BF57: 3.00 | BG57: 2.00 | BH57: 2.50 | BI57: 1.50 | BJ57: 3.00 | BK57: 4.00 | BL57: 6.00 | BM57: 2.00 | BN57: 2.00 | BO57: 3.33
A58: Precio | B58: =B43-((B44*B57)*-1) -> 2.50 | D58: 6.50 | E58: 1.79 | F58: 3.33 | G58: 3.50 | H58: 6.50 | I58: 1.576923077 | J58: 4.71 | K58: 3.50 | L58: 6.50 | M58: 1.576923077 | N58: 2.93 | O58: 3.50 | P58: 6.50 | Q58: 2.36039886 | R58: 4.38 | S58: 3.50 | T58: 6.50 | U58: 2.93019943 | V58: 5.44 | W58: 3.50 | X58: 6.50 | Y58: 1.220797721 | Z58: 2.27 | AA58: 3.50 | AB58: 6.50 | AC58: 0.650997151 | AD58: 1.21 | AE58: 3.50 | AF58: 6.50 | AG58: 3.072649573 | AH58: 5.71 | AI58: 3.50 | AJ58: 6.50 | AK58: 2.645299145 | AL58: 4.91 | AM58: 3.50 | AN58: 6.50 | AO58: 2.217948718 | AP58: 4.12 | AQ58: 3.50 | AR58: 6.50 | AS58: 1.363247863 | AT58: 2.53 | AU58: 3.50 | AV58: 6.50 | AW58: 2.530769231 | AX58: 4.70 | AY58: 3.50 | AZ58: 0.65 | BA58: 0.35 | BB58: 5.00 | BC58: 1.63 | BD58: 3.25 | BE58: 2.50 | BF58: 3.25 | BG58: 1.75 | BH58: 2.50 | BI58: 1.63 | BJ58: 3.25 | BK58: 3.50 | BL58: 6.50 | BM58: 1.75 | BN58: 2.17 | BO58: 3.33
A59: Beneficio E1 | B59: =B58*B55 -> 12.50 | D59: 7.00 | E59: 1.41 | F59: 3.30 | G59: 3.00 | H59: 7.00 | I59: 1.214285714 | J59: 4.92 | K59: 3.00 | L59: 7.00 | M59: 1.214285714 | N59: 2.83 | O59: 3.00 | P59: 7.00 | Q59: 1.941798942 | R59: 4.53 | S59: 3.00 | T59: 7.00 | U59: 2.470899471 | V59: 5.77 | W59: 3.00 | X59: 7.00 | Y59: 0.8835978836 | Z59: 2.06 | AA59: 3.00 | AB59: 7.00 | AC59: 0.3544973545 | AD59: 0.83 | AE59: 3.00 | AF59: 7.00 | AG59: 2.603174603 | AH59: 6.07 | AI59: 3.00 | AJ59: 7.00 | AK59: 2.206349206 | AL59: 5.15 | AM59: 3.00 | AN59: 7.00 | AO59: 1.80952381 | AP59: 4.22 | AQ59: 3.00 | AR59: 7.00 | AS59: 1.015873016 | AT59: 2.37 | AU59: 3.00 | AV59: 7.00 | AW59: 2.1 | AX59: 4.90 | AY59: 3.00 | AZ59: 0.70 | BA59: 0.30 | BB59: 5.00 | BC59: 1.75 | BD59: 3.50 | BE59: 2.50 | BF59: 3.50 | BG59: 1.50 | BH59: 2.50 | BI59: 1.75 | BJ59: 3.50 | BK59: 3.00 | BL59: 7.00 | BM59: 1.50 | BN59: 2.33 | BO59: 3.33
A60: Beneficio E2 | B60: =B58*B56 -> 6.25 | D60: 7.50 | E60: 1.02 | F60: 3.06 | G60: 2.50 | H60: 7.50 | I60: 0.8333333333 | J60: 5.00 | K60: 2.50 | L60: 7.50 | M60: 0.8333333333 | N60: 2.50 | O60: 2.50 | P60: 7.50 | Q60: 1.512345679 | R60: 4.54 | S60: 2.50 | T60: 7.50 | U60: 2.00617284 | V60: 6.02 | W60: 2.50 | X60: 7.50 | Y60: 0.524691358 | Z60: 1.57 | AA60: 2.50 | AB60: 7.50 | AC60: 0.03086419753 | AD60: 0.09 | AE60: 2.50 | AF60: 7.50 | AG60: 2.12962963 | AH60: 6.39 | AI60: 2.50 | AJ60: 7.50 | AK60: 1.759259259 | AL60: 5.28 | AM60: 2.50 | AN60: 7.50 | AO60: 1.388888889 | AP60: 4.17 | AQ60: 2.50 | AR60: 7.50 | AS60: 0.6481481481 | AT60: 1.94 | AU60: 2.50 | AV60: 7.50 | AW60: 1.66 | AX60: 4.98 | AY60: 2.50 | AZ60: 0.75 | BA60: 0.25 | BB60: 5.00 | BC60: 1.88 | BD60: 3.75 | BE60: 2.50 | BF60: 3.75 | BG60: 1.25 | BH60: 2.50 | BI60: 1.88 | BJ60: 3.75 | BK60: 2.50 | BL60: 7.50 | BM60: 1.25 | BN60: 2.50 | BO60: 3.33
D61: 8.00 | E61: 0.61 | F61: 2.44 | G61: 2.00 | H61: 8.00 | I61: 0.4375 | J61: 4.88 | K61: 2.00 | L61: 8.00 | M61: 0.4375 | N61: 1.75 | O61: 2.00 | P61: 8.00 | Q61: 1.074074074 | R61: 4.30 | S61: 2.00 | T61: 8.00 | U61: 1.537037037 | V61: 6.15 | W61: 2.00 | X61: 8.00 | Y61: 0.1481481481 | Z61: 0.59 | AA61: 2.00 | AB61: 8.00 | AC61: -0.3148148148 | AD61: (1.26) | AE61: 2.00 | AF61: 8.00 | AG61: 1.652777778 | AH61: 6.61 | AI61: 2.00 | AJ61: 8.00 | AK61: 1.305555556 | AL61: 5.22 | AM61: 2.00 | AN61: 8.00 | AO61: 0.9583333333 | AP61: 3.83 | AQ61: 2.00 | AR61: 8.00 | AS61: 0.2638888889 | AT61: 1.06 | AU61: 2.00 | AV61: 8.00 | AW61: 1.2125 | AX61: 4.85 | AY61: 2.00 | AZ61: 0.80 | BA61: 0.20 | BB61: 5.00 | BC61: 2.00 | BD61: 4.00 | BE61: 2.50 | BF61: 4.00 | BG61: 1.00 | BH61: 2.50 | BI61: 2.00 | BJ61: 4.00 | BK61: 2.00 | BL61: 8.00 | BM61: 1.00 | BN61: 2.67 | BO61: 3.33
D62: 8.50 | E62: 0.19 | F62: 1.09 | G62: 1.50 | H62: 8.50 | I62: 0.02941176471 | J62: 4.33 | K62: 1.50 | L62: 8.50 | M62: 0.02941176471 | N62: 0.17 | O62: 1.50 | P62: 8.50 | Q62: 0.628540305 | R62: 3.56 | S62: 1.50 | T62: 8.50 | U62: 1.064270153 | V62: 6.03 | W62: 1.50 | X62: 8.50 | Y62: -0.24291939 | Z62: (1.38) | AA62: 1.50 | AB62: 8.50 | AC62: -0.6786492375 | AD62: (3.85) | AE62: 1.50 | AF62: 8.50 | AG62: 1.173202614 | AH62: 6.65 | AI62: 1.50 | AJ62: 8.50 | AK62: 0.8464052288 | AL62: 4.80 | AM62: 1.50 | AN62: 8.50 | AO62: 0.5196078431 | AP62: 2.94 | AQ62: 1.50 | AR62: 8.50 | AS62: -0.1339869281 | AT62: (0.76) | AU62: 1.50 | AV62: 8.50 | AW62: 0.7588235294 | AX62: 4.30 | AY62: 1.50 | AZ62: 0.85 | BA62: 0.15 | BB62: 5.00 | BC62: 2.13 | BD62: 4.25 | BE62: 2.50 | BF62: 4.25 | BG62: 0.75 | BH62: 2.50 | BI62: 2.13 | BJ62: 4.25 | BK62: 1.50 | BL62: 8.50 | BM62: 0.75 | BN62: 2.83 | BO62: 3.33
A63: COLUSIÓN | D63: 9.00 | E63: -0.23 | F63: (2.11) | G63: 1.00 | H63: 9.00 | I63: -0.3888888889 | J63: 2.75 | K63: 1.00 | L63: 9.00 | M63: -0.3888888889 | N63: (3.50) | O63: 1.00 | P63: 9.00 | Q63: 0.1769547325 | R63: 1.59 | S63: 1.00 | T63: 9.00 | U63: 0.5884773663 | V63: 5.30 | W63: 1.00 | X63: 9.00 | Y63: -0.646090535 | Z63: (5.81) | AA63: 1.00 | AB63: 9.00 | AC63: -1.057613169 | AD63: (9.52) | AE63: 1.00 | AF63: 9.00 | AG63: 0.6913580247 | AH63: 6.22 | AI63: 1.00 | AJ63: 9.00 | AK63: 0.3827160494 | AL63: 3.44 | AM63: 1.00 | AN63: 9.00 | AO63: 0.07407407407 | AP63: 0.67 | AQ63: 1.00 | AR63: 9.00 | AS63: -0.5432098765 | AT63: (4.89) | AU63: 1.00 | AV63: 9.00 | AW63: 0.3 | AX63: 2.70 | AY63: 1.00 | AZ63: 0.90 | BA63: 0.10 | BB63: 5.00 | BC63: 2.25 | BD63: 4.50 | BE63: 2.50 | BF63: 4.50 | BG63: 0.50 | BH63: 2.50 | BI63: 2.25 | BJ63: 4.50 | BK63: 1.00 | BL63: 9.00 | BM63: 0.50 | BN63: 3.00 | BO63: 3.33
A64: Q de la empresa 1 | B64: =$B$43/(-4*$B$44) -> 2.50 | D64: 9.50 | E64: -0.67 | F64: (12.72) | G64: 0.50 | H64: 9.50 | I64: -0.8157894737 | J64: (3.00) | K64: 0.50 | L64: 9.50 | M64: -0.8157894737 | N64: (15.50) | O64: 0.50 | P64: 9.50 | Q64: -0.2797270955 | R64: (5.31) | S64: 0.50 | T64: 9.50 | U64: 0.1101364522 | V64: 2.09 | W64: 0.50 | X64: 9.50 | Y64: -1.059454191 | Z64: (20.13) | AA64: 0.50 | AB64: 9.50 | AC64: -1.449317739 | AD64: (27.54) | AE64: 0.50 | AF64: 9.50 | AG64: 0.2076023392 | AH64: 3.94 | AI64: 0.50 | AJ64: 9.50 | AK64: -0.08479532164 | AL64: (1.61) | AM64: 0.50 | AN64: 9.50 | AO64: -0.3771929825 | AP64: (7.17) | AQ64: 0.50 | AR64: 9.50 | AS64: -0.9619883041 | AT64: (18.28) | AU64: 0.50 | AV64: 9.50 | AW64: -0.1631578947 | AX64: (3.10) | AY64: 0.50 | AZ64: 0.95 | BA64: 0.05 | BB64: 5.00 | BC64: 2.38 | BD64: 4.75 | BE64: 2.50 | BF64: 4.75 | BG64: 0.25 | BH64: 2.50 | BI64: 2.38 | BJ64: 4.75 | BK64: 0.50 | BL64: 9.50 | BM64: 0.25 | BN64: 3.17 | BO64: 3.33
A65: Q de la empresa 2 | B65: =$B$43/(-4*$B$44) -> 2.50 | D65: 10.00 | E65: -1.11 | G65: 0 | H65: 10.00 | I65: -1.25 | K65: 0 | L65: 10.00 | M65: -1.25 | O65: 0 | P65: 10.00 | Q65: -0.7407407407 | S65: 0 | T65: 10.00 | U65: -0.3703703704 | W65: 0 | X65: 10.00 | Y65: -1.481481481 | AA65: 0 | AB65: 10.00 | AC65: -1.851851852 | AE65: 0 | AF65: 10.00 | AG65: -0.2777777778 | AI65: 0 | AJ65: 10.00 | AK65: -0.5555555556 | AM65: 0 | AN65: 10.00 | AO65: -0.8333333333 | AQ65: 0 | AR65: 10.00 | AS65: -1.388888889 | AU65: 0 | AV65: 10.00 | AW65: -0.63 | AY65: 0 | AZ65: 1.00 | BA65: 0 | BB65: 5.00 | BC65: 2.50 | BD65: 5.00 | BE65: 2.50 | BF65: 5.00 | BG65: 0 | BH65: 2.50 | BI65: 2.50 | BJ65: 5.00 | BK65: 0 | BL65: 10.00 | BM65: 0 | BN65: 3.33 | BO65: 3.33
A66: Producción de la industria | B66: =B64+B65 -> 5.00
A67: Precio | B67: =B43-((B44*B66)*-1) -> 5.00
A68: Beneficio | B68: =B65*B67 -> 12.50
A70: BEN0 | B70: =B52*2/3 -> 7.41
A71: BEN1 | B71: =B52*1/3 -> 3.70
A72: BEN4 | B72: =B52*4/3 -> 14.81
A73: BEN5 | B73: =B52*5/3 -> 18.52
A74: BEN6 | B74: =$B52*1/4 -> 2.78
A75: BEN7 | B75: =$B$52*2/4 -> 5.56
A76: BEN8 | B76: =$B$52*3/4 -> 8.33
A77: BEN9 | B77: =$B$52*5/4 -> 13.89
A78: BEN10 | B78: =Du_Isobe!D8 -> 6.30
K95: =($D$104/(2*$D$105)) -> 5.00
A100: COURNOT
H102: EMPRESA 1 | J102: EMPRESA 2 | L102: y1 | N102: y2 | P102: E2CR3 | R102: E1CR3 | T102: E2ISO1 | X102: E2ISO2 | Z102: E1ISO2
A103: Parámetros funciones inversas de las demandas | F103: Ponderador 1 | G103: Ponderador 2 | H103: y1 | I103: y2 | J103: y2 | K103: y1 | L103: X1line | M103: Y1line | N103: X1line | O103: Y1line | P103: y1 | Q103: y2 | R103: X | S103: Y | T103: X | U103: Y | V103: X | W103: Y | X103: X | Y103: Y | Z103: X | AA103: Y
A104: b0 | B104: =Du_Cournot_pd!C6 -> 20.0 | C104: b0' | D104: =Du_Cournot_pd!E6 -> 20.0 | F104: 0 | G104: =1-F104 -> 1.00 | H104: =($B$104/(2*$B$105))-(($B$106/(2*$B$105))*I104) -> 5.00 | I104: =$B$104/($B$105)*F104 -> 0 | J104: =$D$104/($D$105)*F104 -> 0 | K104: =($D$104/(2*$D$105))-(($B$106/(2*$D$105))*J104) -> 5.00 | L104: =$B$112*F104 -> 0 | M104: =$B$113 -> 3.33 | N104: =$B$112 -> 3.33 | O104: =$B$113*F104 -> 0 | P104: =J104 -> 0 | Q104: =(-$B$119+($B$104*P104)-(($B$105)*(P104^2)))/(($B$106)*P104) ->  | R104: =(-$B$120+($D$104*S104)-(($D$105)*(S104^2)))/(($B$106)*S104) ->  | S104: =I104 -> 0 | T104: =P104 -> 0 | U104: =(-$B$21+($B$5*T104)+(($B$6)*(T104^2)))/((-$B$6)*T104) ->  | V104: =(-$B$22+($B$5*W104)+(($B$6)*(W104^2)))/((-$B$6)*W104) ->  | W104: =S104 -> 0 | X104: =T104 -> 0 | Y104: =(-$B$30+($B$5*X104)+(($B$6)*(X104^2)))/((-$B$6)*X104) ->  | Z104: =(-$B$30+($B$5*AA104)+(($B$6)*(AA104^2)))/((-$B$6)*AA104) ->  | AA104: =S104 -> 0
A105: b1 | B105: =Du_Cournot_pd!C7*-1 -> 2.0 | C105: b2 | D105: =Du_Cournot_pd!E7*-1 -> 2.0 | F105: 0.05 | G105: =1-F105 -> 0.95 | H105: =($B$104/(2*$B$105))-(($B$106/(2*$B$105))*I105) -> 4.75 | I105: =$B$104/($B$105)*F105 -> 0.50 | J105: =$D$104/($D$105)*F105 -> 0.50 | K105: =($D$104/(2*$D$105))-(($B$106/(2*$D$105))*J105) -> 4.75 | L105: =$B$112*F105 -> 0.17 | M105: 3.33 | N105: =$B$112 -> 3.33 | O105: =$B$113*F105 -> 0.17 | P105: =J105 -> 0.50 | Q105: =(-$B$119+($B$104*P105)-(($B$105)*(P105^2)))/(($B$106)*P105) -> -12.72222222 | R105: =(-$B$120+($D$104*S105)-(($D$105)*(S105^2)))/(($B$106)*S105) -> (12.72) | S105: 0.50 | T105: =P105 -> 0.50 | U105: =(-$B$21+($B$5*T105)+(($B$6)*(T105^2)))/((-$B$6)*T105) -> -2400.5 | V105: =(-$B$22+($B$5*W105)+(($B$6)*(W105^2)))/((-$B$6)*W105) -> (1,150.50) | W105: =S105 -> 0.50 | X105: =T105 -> 0.50 | Y105: =(-$B$30+($B$5*X105)+(($B$6)*(X105^2)))/((-$B$6)*X105) -> -2400.5 | Z105: =(-$B$30+($B$5*AA105)+(($B$6)*(AA105^2)))/((-$B$6)*AA105) -> (2,400.50) | AA105: =S105 -> 0.50
A106: g | B106: =Du_Cournot_pd!C8*-1 -> 2.0 | C106: g | D106: =Du_Cournot_pd!E8 -> -2.0 | F106: 0.10 | G106: 0.90 | H106: 4.50 | I106: 1.00 | J106: 1.00 | K106: 4.50 | L106: 0.33 | M106: 3.33 | N106: 3.33 | O106: 0.33 | P106: 1.00 | Q106: -2.111111111 | R106: (2.11) | S106: 1.00 | T106: 1.00 | U106: -1151 | V106: (526.00) | W106: 1.00 | X106: 1.00 | Y106: -1151 | Z106: (1,151.00) | AA106: 1.00
F107: 0.15 | G107: 0.85 | H107: 4.25 | I107: 1.50 | J107: 1.50 | K107: 4.25 | L107: 0.50 | M107: 3.33 | N107: 3.33 | O107: 0.50 | P107: 1.50 | Q107: 1.092592593 | R107: 1.09 | S107: 1.50 | T107: 1.50 | U107: -734.8333333 | V107: (318.17) | W107: 1.50 | X107: 1.50 | Y107: -734.8333333 | Z107: (734.83) | AA107: 1.50
A108: Inserte los datos correspondientes | F108: 0.20 | G108: 0.80 | H108: 4.00 | I108: 2.00 | J108: 2.00 | K108: 4.00 | L108: 0.67 | M108: 3.33 | N108: 3.33 | O108: 0.67 | P108: 2.00 | Q108: 2.444444444 | R108: 2.44 | S108: 2.00 | T108: 2.00 | U108: -527 | V108: (214.50) | W108: 2.00 | X108: 2.00 | Y108: -527 | Z108: (527.00) | AA108: 2.00
A109: índice de diferenciación | C109: =(B106*B106)/(B105*D105) -> 1.0 | F109: 0.25 | G109: 0.75 | H109: 3.75 | I109: 2.50 | J109: 2.50 | K109: 3.75 | L109: 0.83 | M109: 3.33 | N109: 3.33 | O109: 0.83 | P109: 2.50 | Q109: 3.055555556 | R109: 3.06 | S109: 2.50 | T109: 2.50 | U109: -402.5 | V109: (152.50) | W109: 2.50 | X109: 2.50 | Y109: -402.5 | Z109: (402.50) | AA109: 2.50
F110: 0.30 | G110: 0.70 | H110: 3.50 | I110: 3.00 | J110: 3.00 | K110: 3.50 | L110: 1.00 | M110: 3.33 | N110: 3.33 | O110: 1.00 | P110: 3.00 | Q110: 3.296296296 | R110: 3.30 | S110: 3.00 | T110: 3.00 | U110: -319.6666667 | V110: (111.33) | W110: 3.00 | X110: 3.00 | Y110: -319.6666667 | Z110: (319.67) | AA110: 3.00
A111: Producción de equilibrio | F111: 0.35 | G111: 0.65 | H111: 3.25 | I111: 3.50 | J111: 3.50 | K111: 3.25 | L111: 1.17 | M111: 3.33 | N111: 3.33 | O111: 1.17 | P111: 3.50 | Q111: 3.325396825 | R111: 3.33 | S111: 3.50 | T111: 3.50 | U111: -260.6428571 | V111: (82.07) | W111: 3.50 | X111: 3.50 | Y111: -260.6428571 | Z111: (260.64) | AA111: 3.50
A112: Q de la empresa 1 | B112: =((2*B104*B105*D105)/((4*B105*B105*D105)-(B106*B106*B105)))-((D104*B106)/(4*B105*D105-B106*B106)) -> 3.333333333 | C112: =((2*B104*B105*D105)/((4*B105*B105*D105)-(B106*B106*B105))) -> 6.666666667 | D112: =-((D104*B106)/(4*B105*D105-B106*B106)) -> -3.333333333 | E112: =D112+C112 -> 3.333333333 | F112: 0.40 | G112: 0.60 | H112: 3.00 | I112: 4.00 | J112: 4.00 | K112: 3.00 | L112: 1.33 | M112: 3.33 | N112: 3.33 | O112: 1.33 | P112: 4.00 | Q112: 3.222222222 | R112: 3.22 | S112: 4.00 | T112: 4.00 | U112: -216.5 | V112: (60.25) | W112: 4.00 | X112: 4.00 | Y112: -216.5 | Z112: (216.50) | AA112: 4.00
A113: Q de la empresa 2 | B113: =((2*D104*B105*D105)/((4*B105*D105*D105)-(B106*B106*D105)))-((B104*B106)/(4*B105*D105-B106*B106)) -> 3.333333333 | F113: 0.45 | G113: 0.55 | H113: 2.75 | I113: 4.50 | J113: 4.50 | K113: 2.75 | L113: 1.50 | M113: 3.33 | N113: 3.33 | O113: 1.50 | P113: 4.50 | Q113: 3.030864198 | R113: 3.03 | S113: 4.50 | T113: 4.50 | U113: -182.2777778 | V113: (43.39) | W113: 4.50 | X113: 4.50 | Y113: -182.2777778 | Z113: (182.28) | AA113: 4.50
A114: Producción Industria | B114: =SUM(B112:B113) -> 6.666666667 | F114: 0.50 | G114: 0.50 | H114: 2.50 | I114: 5.00 | J114: 5.00 | K114: 2.50 | L114: 1.67 | M114: 3.33 | N114: 3.33 | O114: 1.67 | P114: 5.00 | Q114: 2.777777778 | R114: 2.78 | S114: 5.00 | T114: 5.00 | U114: -155 | V114: (30.00) | W114: 5.00 | X114: 5.00 | Y114: -155 | Z114: (155.00) | AA114: 5.00
F115: 0.55 | G115: 0.45 | H115: 2.25 | I115: 5.50 | J115: 5.50 | K115: 2.25 | L115: 1.83 | M115: 3.33 | N115: 3.33 | O115: 1.83 | P115: 5.50 | Q115: 2.47979798 | R115: 2.48 | S115: 5.50 | T115: 5.50 | U115: -132.7727273 | V115: (19.14) | W115: 5.50 | X115: 5.50 | Y115: -132.7727273 | Z115: (132.77) | AA115: 5.50
A116: Precio E1 | B116: =B104-((2*B104*B105*B105*D105)/((4*B105*B105*D105)-(B106*B106*B105)))+((D104*B105*B106)/((4*B105*D105)-(B106*B106)))-((2*D104*B105*D105*B106)/((4*B105*D105*D105)-(B106*B106*D105)))+((B104*B106*B106)/((4*B105*D105)-(B106*B106))) -> 6.666666667 | F116: 0.60 | G116: 0.40 | H116: 2.00 | I116: 6.00 | J116: 6.00 | K116: 2.00 | L116: 2.00 | M116: 3.33 | N116: 3.33 | O116: 2.00 | P116: 6.00 | Q116: 2.148148148 | R116: 2.15 | S116: 6.00 | T116: 6.00 | U116: -114.3333333 | V116: (10.17) | W116: 6.00 | X116: 6.00 | Y116: -114.3333333 | Z116: (114.33) | AA116: 6.00
A117: Precio E2 | B117: =D104-((2*D104*B105*D105*D105)/((4*B105*D105*D105)-(D105*B106*B106)))+((B104*D105*B106)/((4*B105*D105)-(B106*B106)))-((2*B104*B105*D105*B106)/((4*B105*B105*D105)-(B105*B106*B106)))+((D104*B106*B106)/((4*B105*D105)-(B106*B106))) -> 6.7 | F117: 0.65 | G117: 0.35 | H117: 1.75 | I117: 6.50 | J117: 6.50 | K117: 1.75 | L117: 2.17 | M117: 3.33 | N117: 3.33 | O117: 2.17 | P117: 6.50 | Q117: 1.790598291 | R117: 1.79 | S117: 6.50 | T117: 6.50 | U117: -98.80769231 | V117: (2.65) | W117: 6.50 | X117: 6.50 | Y117: -98.80769231 | Z117: (98.81) | AA117: 6.50
F118: 0.70 | G118: 0.30 | H118: 1.50 | I118: 7.00 | J118: 7.00 | K118: 1.50 | L118: 2.33 | M118: 3.33 | N118: 3.33 | O118: 2.33 | P118: 7.00 | Q118: 1.412698413 | R118: 1.41 | S118: 7.00 | T118: 7.00 | U118: -85.57142857 | V118: 3.71 | W118: 7.00 | X118: 7.00 | Y118: -85.57142857 | Z118: (85.57) | AA118: 7.00
A119: Beneficio E1 | B119: =B112*B116 -> 22.22222222 | F119: 0.75 | G119: 0.25 | H119: 1.25 | I119: 7.50 | J119: 7.50 | K119: 1.25 | L119: 2.50 | M119: 3.33 | N119: 3.33 | O119: 2.50 | P119: 7.50 | Q119: 1.018518519 | R119: 1.02 | S119: 7.50 | T119: 7.50 | U119: -74.16666667 | V119: 9.17 | W119: 7.50 | X119: 7.50 | Y119: -74.16666667 | Z119: (74.17) | AA119: 7.50
A120: Beneficio E2 | B120: =B113*B117 -> 22.22222222 | F120: 0.80 | G120: 0.20 | H120: 1.00 | I120: 8.00 | J120: 8.00 | K120: 1.00 | L120: 2.67 | M120: 3.33 | N120: 3.33 | O120: 2.67 | P120: 8.00 | Q120: 0.6111111111 | R120: 0.61 | S120: 8.00 | T120: 8.00 | U120: -64.25 | V120: 13.88 | W120: 8.00 | X120: 8.00 | Y120: -64.25 | Z120: (64.25) | AA120: 8.00
F121: 0.85 | G121: 0.15 | H121: 0.75 | I121: 8.50 | J121: 8.50 | K121: 0.75 | L121: 2.83 | M121: 3.33 | N121: 3.33 | O121: 2.83 | P121: 8.50 | Q121: 0.1928104575 | R121: 0.19 | S121: 8.50 | T121: 8.50 | U121: -55.55882353 | V121: 17.97 | W121: 8.50 | X121: 8.50 | Y121: -55.55882353 | Z121: (55.56) | AA121: 8.50
A122: MAX Q de la empresa 2 | B122: =B104/(2*B105) -> 5 | F122: 0.90 | G122: 0.10 | H122: 0.50 | I122: 9.00 | J122: 9.00 | K122: 0.50 | L122: 3.00 | M122: 3.33 | N122: 3.33 | O122: 3.00 | P122: 9.00 | Q122: -0.2345679012 | R122: (0.23) | S122: 9.00 | T122: 9.00 | U122: -47.88888889 | V122: 21.56 | W122: 9.00 | X122: 9.00 | Y122: -47.88888889 | Z122: (47.89) | AA122: 9.00
F123: 0.95 | G123: 0.05 | H123: 0.25 | I123: 9.50 | J123: 9.50 | K123: 0.25 | L123: 3.17 | M123: 3.33 | N123: 3.33 | O123: 3.17 | P123: 9.50 | Q123: -0.6695906433 | R123: (0.67) | S123: 9.50 | T123: 9.50 | U123: -41.07894737 | V123: 24.71 | W123: 9.50 | X123: 9.50 | Y123: -41.07894737 | Z123: (41.08) | AA123: 9.50
F124: 1.00 | G124: 0 | H124: 0 | I124: 10.00 | J124: =$D$104/($D$105)*F124 -> 10.00 | K124: 0 | L124: 3.33 | M124: 3.33 | N124: 3.33 | O124: 3.33 | P124: 10.00 | Q124: -1.111111111 | R124: (1.11) | S124: 10.00 | T124: 10.00 | U124: -35 | V124: 27.50 | W124: 10.00 | X124: 10.00 | Y124: -35 | Z124: (35.00) | AA124: 10.00
H126: =$B$104/(2*$B$105)*F124 -> 5.00 | I126: =($D$104/$B$106)-((2*$B$105/$B$106)*H124) -> 10.00
B127: =B104 -> 20.0 | C127: =D104 -> 20.0
B128: =((2*B104*B105*B105*D105)/((4*B105*B105*D105)-(B106*B106*B105))) -> 13.33333333 | C128: =((2*D104*B105*D105*D105)/((4*B105*D105*D105)-(D105*B106*B106))) -> 13.33333333
B129: =((D104*B105*B106)/((4*B105*D105)-(B106*B106))) -> 6.666666667 | C129: =((B104*D105*B106)/((4*B105*D105)-(B106*B106))) -> 6.666666667
B130: =((2*D104*B105*D105*B106)/((4*B105*D105*D105)-(B106*B106*D105))) -> 13.33333333 | C130: =((2*B104*B105*D105*B106)/((4*B105*B105*D105)-(B105*B106*B106))) -> 13.33333333
B131: =((B104*B106*B106)/((4*B105*D105)-(B106*B106))) -> 6.666666667 | C131: =((D104*B106*B106)/((4*B105*D105)-(B106*B106))) -> 6.666666667
B133: =B127-B128+B129-B130+B131 -> 6.7 | C133: =C127-C128+C129-C130+C131 -> 6.7
